BIOGUIDE_ID,OFFICE,QUARTER,CATEGORY,DATE,PAYEE,START DATE,END DATE,PURPOSE,AMOUNT,YEAR,TRANSCODE,TRANSCODELONG,RECORDID,RECIP (orig.)
,OFFICE OF THE SPEAKER,2011Q3,PERSONNEL COMPENSATION,,"CASSIDY, ED",2011-07-01,2011-09-30,DIRECTOR OF HOUSE OPERATIONS,"42,000.00",FISCAL YEAR 2011,,,,"CASSIDY, ED"
,OFFICE OF THE SPEAKER,2011Q3,PERSONNEL COMPENSATION,,"GREEN, JO-MARIE S",2011-07-01,2011-09-30,GEN COUNSEL & CHIEF OF LEG OPS,"42,999.99",FISCAL YEAR 2011,,,,"GREEN, JO-MARIE S"
,OFFICE OF THE SPEAKER,2011Q3,PERSONNEL COMPENSATION,,"JACKSON,BARRY S",2011-07-01,2011-09-30,CHIEF OF STAFF,"43,125.00",FISCAL YEAR 2011,,,,"JACKSON,BARRY S"
,OFFICE OF THE SPEAKER,2011Q3,PERSONNEL COMPENSATION,,"PIERSON, JAY",2011-07-01,2011-09-30,FLOOR ASSISTANT,"42,099.99",FISCAL YEAR 2011,,,,"PIERSON, JAY"
,OFFICE OF THE SPEAKER,2011Q3,PERSONNEL COMPENSATION,,"PORTER, EMILY S",2011-07-01,2011-09-30,ASST TO THE SPEAKER FOR POLICY,"27,500.01",FISCAL YEAR 2011,,,,"PORTER, EMILY S"
,OFFICE OF THE SPEAKER,2011Q3,PERSONNEL COMPENSATION,,"RICCI,MICHAEL",2011-07-01,2011-09-30,DIRECTOR OF SPEECHWRITING,"31,500.00",FISCAL YEAR 2011,,,,"RICCI,MICHAEL"
,OFFICE OF THE SPEAKER,2011Q3,PERSONNEL COMPENSATION,,"SCHNITTGER, DAVID M",2011-07-01,2011-09-30,"DEP CHIEF OF STAFF,COMMUN OPS","43,125.00",FISCAL YEAR 2011,,,,"SCHNITTGER, DAVID M"
,OFFICE OF THE SPEAKER,2011Q3,PERSONNEL COMPENSATION,,"SOMMERS, MICHAEL J",2011-07-01,2011-09-30,DEP CHIEF OF STAF FOR LEAD OPS,"43,125.00",FISCAL YEAR 2011,,,,"SOMMERS, MICHAEL J"
,OFFICE OF THE SPEAKER,2011Q3,PERSONNEL COMPENSATION,,"STEWART, JENNIFER M",2011-07-01,2011-09-30,ASST TO SPEAKER FOR POLICY,"27,500.01",FISCAL YEAR 2011,,,,"STEWART, JENNIFER M"
,OFFICE OF THE SPEAKER,2011Q3,PERSONNEL COMPENSATION,,"ANDRES, ELIZABETH G",2011-07-01,2011-09-30,DIRECTOR OF ADVANCE,"18,725.01",FISCAL YEAR 2011,,,,"ANDRES, ELIZABETH G"
,OFFICE OF THE SPEAKER,2011Q3,PERSONNEL COMPENSATION,,"ANDREWS,THOMAS S",2011-07-01,2011-09-30,SENIOR STAFF ASSISTANT,"8,000.01",FISCAL YEAR 2011,,,,"ANDREWS,THOMAS S"
,OFFICE OF THE SPEAKER,2011Q3,PERSONNEL COMPENSATION,,"ANDREWS,THOMAS S",2011-06-01,2011-07-31,SENIOR STAFF ASSISTANT (OVERTIME),"1,534.60",FISCAL YEAR 2011,,,,"ANDREWS,THOMAS S"
,OFFICE OF THE SPEAKER,2011Q3,PERSONNEL COMPENSATION,,"AVONDOGLIO,BRYANT J",2011-07-01,2011-09-30,ADVANCE & DIGITAL PRODUC MGR,"20,000.01",FISCAL YEAR 2011,,,,"AVONDOGLIO,BRYANT J"
,OFFICE OF THE SPEAKER,2011Q3,PERSONNEL COMPENSATION,,"BECKER,ALEXANDER M",2011-07-01,2011-09-30,STAFF ASSISTANT,"6,999.99",FISCAL YEAR 2011,,,,"BECKER,ALEXANDER M"
,OFFICE OF THE SPEAKER,2011Q3,PERSONNEL COMPENSATION,,"BECKER,ALEXANDER M",2011-06-01,2011-07-31,STAFF ASSISTANT (OVERTIME),605.76,FISCAL YEAR 2011,,,,"BECKER,ALEXANDER M"
,OFFICE OF THE SPEAKER,2011Q3,PERSONNEL COMPENSATION,,"BENJAMIN, WILLIAM C",2011-07-01,2011-09-30,DIR OF INFORMATION TECHNOLOGY,"23,250.00",FISCAL YEAR 2011,,,,"BENJAMIN, WILLIAM C"
,OFFICE OF THE SPEAKER,2011Q3,PERSONNEL COMPENSATION,,"BLAKE,KRISTENE",2011-07-01,2011-09-30,EXECUTIVE ASSISTANT,"15,000.00",FISCAL YEAR 2011,,,,"BLAKE,KRISTENE"
,OFFICE OF THE SPEAKER,2011Q3,PERSONNEL COMPENSATION,,"BOYD,KATHRYN E",2011-07-01,2011-09-30,ASST COMMUNICATIONS DIRECTOR,"20,000.01",FISCAL YEAR 2011,,,,"BOYD,KATHRYN E"
,OFFICE OF THE SPEAKER,2011Q3,PERSONNEL COMPENSATION,,"BUCK, BRENDAN K",2011-07-01,2011-09-30,PRESS SECRETARY,"28,749.99",FISCAL YEAR 2011,,,,"BUCK, BRENDAN K"
,OFFICE OF THE SPEAKER,2011Q3,PERSONNEL COMPENSATION,,"CHAPLIN, KRISTEN F",2011-07-01,2011-09-30,DIR OF SCHEDLNG & SPEC EVENTS,"24,375.00",FISCAL YEAR 2011,,,,"CHAPLIN, KRISTEN F"
,OFFICE OF THE SPEAKER,2011Q3,PERSONNEL COMPENSATION,,"DESTEFANO,JOHN",2011-07-01,2011-09-30,SR ADVISOR FOR MEMBER SERVICES,"41,250.00",FISCAL YEAR 2011,,,,"DESTEFANO,JOHN"
,OFFICE OF THE SPEAKER,2011Q3,PERSONNEL COMPENSATION,,"ECKARD,NASTASHA",2011-07-01,2011-09-30,LEGISLATIVE ASSISTANT,"12,999.99",FISCAL YEAR 2011,,,,"ECKARD,NASTASHA"
,OFFICE OF THE SPEAKER,2011Q3,PERSONNEL COMPENSATION,,"GILLESPIE,MAURA M",2011-07-01,2011-09-30,STAFF ASSISTANT,"6,999.99",FISCAL YEAR 2011,,,,"GILLESPIE,MAURA M"
,OFFICE OF THE SPEAKER,2011Q3,PERSONNEL COMPENSATION,,"GILLESPIE,MAURA M",2011-06-01,2011-07-31,STAFF ASSISTANT (OVERTIME),884.41,FISCAL YEAR 2011,,,,"GILLESPIE,MAURA M"
,OFFICE OF THE SPEAKER,2011Q3,PERSONNEL COMPENSATION,,"GREENE,WILLIAM P",2011-07-01,2011-09-30,DIRECTOR-OUTREACH,"33,825.00",FISCAL YEAR 2011,,,,"GREENE,WILLIAM P"
,OFFICE OF THE SPEAKER,2011Q3,PERSONNEL COMPENSATION,,"HALEY, KATHERINE C",2011-07-01,2011-09-30,ASST TO SPEAKER FOR POLICY,"22,125.00",FISCAL YEAR 2011,,,,"HALEY, KATHERINE C"
,OFFICE OF THE SPEAKER,2011Q3,PERSONNEL COMPENSATION,,"HERRLE, CYNTHIA A",2011-07-01,2011-09-30,ASST TO THE SPEAKER FOR POLICY,"35,550.00",FISCAL YEAR 2011,,,,"HERRLE, CYNTHIA A"
,OFFICE OF THE SPEAKER,2011Q3,PERSONNEL COMPENSATION,,"KAMIS,KYLA M",2011-07-01,2011-09-30,"PROFESSIONAL STAFF MEMBER, O&I","9,999.99",FISCAL YEAR 2011,,,,"KAMIS,KYLA M"
,OFFICE OF THE SPEAKER,2011Q3,PERSONNEL COMPENSATION,,"KINZEL,WILL C",2011-07-01,2011-09-30,ASST TO THE SPEAKER FOR POLICY,"28,599.99",FISCAL YEAR 2011,,,,"KINZEL,WILL C"
,OFFICE OF THE SPEAKER,2011Q3,PERSONNEL COMPENSATION,,"KOLB,COURTNEY L",2011-07-01,2011-08-12,DEPUTY PRESS SECRETARY,"6,650.00",FISCAL YEAR 2011,,,,"KOLB,COURTNEY L"
,OFFICE OF THE SPEAKER,2011Q3,PERSONNEL COMPENSATION,,"KOLB,COURTNEY L",2011-08-01,2011-08-12,DEPUTY PRESS SECRETARY (OTHER COMPENSATION),"2,454.17",FISCAL YEAR 2011,,,,"KOLB,COURTNEY L"
,OFFICE OF THE SPEAKER,2011Q3,PERSONNEL COMPENSATION,,"LAMPERT,JUSTIN",2011-07-01,2011-09-30,RESEARCH ASSISTANT,"11,250.00",FISCAL YEAR 2011,,,,"LAMPERT,JUSTIN"
,OFFICE OF THE SPEAKER,2011Q3,PERSONNEL COMPENSATION,,"LOLLI,TIMOTHY R",2011-07-01,2011-09-30,STAFF ASSISTANT,"7,500.00",FISCAL YEAR 2011,,,,"LOLLI,TIMOTHY R"
,OFFICE OF THE SPEAKER,2011Q3,PERSONNEL COMPENSATION,,"LOLLI,TIMOTHY R",2011-06-01,2011-07-31,STAFF ASSISTANT (OVERTIME),800.48,FISCAL YEAR 2011,,,,"LOLLI,TIMOTHY R"
,OFFICE OF THE SPEAKER,2011Q3,PERSONNEL COMPENSATION,,"LOZUPONE, AMY S",2011-07-01,2011-09-30,DIRECTOR OF ADMIN OPERATIONS,"35,750.01",FISCAL YEAR 2011,,,,"LOZUPONE, AMY S"
,OFFICE OF THE SPEAKER,2011Q3,PERSONNEL COMPENSATION,,"LUKEMAN,KATHERINE A",2011-09-06,2011-09-30,ASSISTANT TO GENERAL COUNSEL,"3,611.11",FISCAL YEAR 2011,,,,"LUKEMAN,KATHERINE A"
,OFFICE OF THE SPEAKER,2011Q3,PERSONNEL COMPENSATION,,"MINKLER,ANN W",2011-07-01,2011-09-30,STAFF ASSISTANT,"6,999.99",FISCAL YEAR 2011,,,,"MINKLER,ANN W"
,OFFICE OF THE SPEAKER,2011Q3,PERSONNEL COMPENSATION,,"MINKLER,ANN W",2011-06-01,2011-07-31,STAFF ASSISTANT (OVERTIME),625.95,FISCAL YEAR 2011,,,,"MINKLER,ANN W"
,OFFICE OF THE SPEAKER,2011Q3,PERSONNEL COMPENSATION,,"PAULSON, JUDY K",2011-07-01,2011-09-30,FINANCIAL ADMINISTRATOR,"8,124.99",FISCAL YEAR 2011,,,,"PAULSON, JUDY K"
,OFFICE OF THE SPEAKER,2011Q3,PERSONNEL COMPENSATION,,"PROPP,ELIZABETH R",2011-09-26,2011-09-30,DEPUTY PRESS SECRETARY,791.67,FISCAL YEAR 2011,,,,"PROPP,ELIZABETH R"
,OFFICE OF THE SPEAKER,2011Q3,PERSONNEL COMPENSATION,,"REED, HEATHER E",2011-09-19,2011-09-30,ASSISTANT PRESS SECRETARY,"1,500.00",FISCAL YEAR 2011,,,,"REED, HEATHER E"
,OFFICE OF THE SPEAKER,2011Q3,PERSONNEL COMPENSATION,,"SAGER,MICHAEL J",2011-07-01,2011-09-30,SYSTEMS ADMINISTRATOR,"20,000.01",FISCAL YEAR 2011,,,,"SAGER,MICHAEL J"
,OFFICE OF THE SPEAKER,2011Q3,PERSONNEL COMPENSATION,,"SAUNDERS,GRANT H",2011-07-01,2011-09-30,MEMBER SERVICES MANAGER,"10,749.99",FISCAL YEAR 2011,,,,"SAUNDERS,GRANT H"
,OFFICE OF THE SPEAKER,2011Q3,PERSONNEL COMPENSATION,,"SEYMOUR JR, DONALD P",2011-07-01,2011-08-31,DEPUTY COMMUNICATIONS DIRECTOR,"21,833.34",FISCAL YEAR 2011,,,,"SEYMOUR JR, DONALD P"
,OFFICE OF THE SPEAKER,2011Q3,PERSONNEL COMPENSATION,,"SEYMOUR JR, DONALD P",2011-09-01,2011-09-30,DIGITAL COMMUNICATIONS DIRECTO,"10,916.67",FISCAL YEAR 2011,,,,"SEYMOUR JR, DONALD P"
,OFFICE OF THE SPEAKER,2011Q3,PERSONNEL COMPENSATION,,"STEWART, DAVID B",2011-07-01,2011-09-30,ASST TO SPEAKER FOR POLICY,"33,125.01",FISCAL YEAR 2011,,,,"STEWART, DAVID B"
,OFFICE OF THE SPEAKER,2011Q3,PERSONNEL COMPENSATION,,"STOCKWELL,KERRY W",2011-07-01,2011-09-30,SPECIAL EVENTS COORDINATOR,"13,749.99",FISCAL YEAR 2011,,,,"STOCKWELL,KERRY W"
,OFFICE OF THE SPEAKER,2011Q3,PERSONNEL COMPENSATION,,"STRUNK, JEFFREY A",2011-07-01,2011-09-30,DEPUTY FLOOR DIRECTOR,"18,750.00",FISCAL YEAR 2011,,,,"STRUNK, JEFFREY A"
,OFFICE OF THE SPEAKER,2011Q3,PERSONNEL COMPENSATION,,"THORSEN, ANNE B",2011-07-01,2011-09-30,FLOOR DIRECTOR,"35,000.01",FISCAL YEAR 2011,,,,"THORSEN, ANNE B"
,OFFICE OF THE SPEAKER,2011Q3,PERSONNEL COMPENSATION,,"WOLF,ADAM J",2011-07-01,2011-09-30,FLOOR ASSISTANT,"11,675.01",FISCAL YEAR 2011,,,,"WOLF,ADAM J"
,OFFICE OF THE SPEAKER,2011Q3,FRANKED MAIL,2019-08-22,UNITED STATES POSTAL SERVICE,2011-07-01,2011-07-31,FRANKED MAIL,63.05,FISCAL YEAR 2011,AP,Accounts payable,240366,UNITED STATES POSTAL SERVICE
,OFFICE OF THE SPEAKER,2011Q3,FRANKED MAIL,2019-09-15,UNITED STATES POSTAL SERVICE,2011-07-01,2011-07-31,FRANKED MAIL,-63.05,FISCAL YEAR 2011,AP,Accounts payable,260178,UNITED STATES POSTAL SERVICE
,OFFICE OF THE SPEAKER,2011Q3,FRANKED MAIL,2019-09-23,UNITED STATES POSTAL SERVICE,2011-08-01,2011-08-31,FRANKED MAIL,21.26,FISCAL YEAR 2011,AP,Accounts payable,267766,UNITED STATES POSTAL SERVICE
,OFFICE OF THE SPEAKER,2011Q3,FRANKED MAIL,2019-09-29,UNITED STATES POSTAL SERVICE,2011-08-01,2011-08-31,FRANKED MAIL,-21.26,FISCAL YEAR 2011,AP,Accounts payable,273559,UNITED STATES POSTAL SERVICE
,OFFICE OF THE SPEAKER,2011Q3,TRAVEL,2019-07-08,"AVONDOGLIO, BRYANT J",2011-06-09,2011-06-12,COMMERCIAL TRANSPORTATION,551.4,FISCAL YEAR 2011,AP,Accounts payable,210974,"AVONDOGLIO, BRYANT J"
,OFFICE OF THE SPEAKER,2011Q3,TRAVEL,2019-07-08,"AVONDOGLIO, BRYANT J",2011-06-09,2011-06-11,LODGING,486.84,FISCAL YEAR 2011,AP,Accounts payable,210975,"AVONDOGLIO, BRYANT J"
,OFFICE OF THE SPEAKER,2011Q3,TRAVEL,2019-07-08,"AVONDOGLIO, BRYANT J",2011-06-10,2011-06-11,MEALS,17.26,FISCAL YEAR 2011,AP,Accounts payable,210976,"AVONDOGLIO, BRYANT J"
,OFFICE OF THE SPEAKER,2011Q3,TRAVEL,2019-07-08,"AVONDOGLIO, BRYANT J",2011-06-09,2011-06-12,CAR RENTAL,173.76,FISCAL YEAR 2011,AP,Accounts payable,210977,"AVONDOGLIO, BRYANT J"
,OFFICE OF THE SPEAKER,2011Q3,TRAVEL,2019-07-08,"AVONDOGLIO, BRYANT J",2011-06-12,2011-06-12,GASOLINE,28.62,FISCAL YEAR 2011,AP,Accounts payable,210979,"AVONDOGLIO, BRYANT J"
,OFFICE OF THE SPEAKER,2011Q3,TRAVEL,2019-07-08,"AVONDOGLIO, BRYANT J",2011-06-09,2011-06-09,TAXI/PARKING/TOLLS,20,FISCAL YEAR 2011,AP,Accounts payable,210981,"AVONDOGLIO, BRYANT J"
,OFFICE OF THE SPEAKER,2011Q3,TRAVEL,2019-07-12,"ANDRES, ELIZABETH G",2011-06-09,2011-06-12,COMMERCIAL TRANSPORTATION,532.4,FISCAL YEAR 2011,AP,Accounts payable,212537,"ANDRES, ELIZABETH G"
,OFFICE OF THE SPEAKER,2011Q3,TRAVEL,2019-07-12,"ANDRES, ELIZABETH G",2011-06-09,2011-06-12,LODGING,498.79,FISCAL YEAR 2011,AP,Accounts payable,212538,"ANDRES, ELIZABETH G"
,OFFICE OF THE SPEAKER,2011Q3,TRAVEL,2019-07-12,"ANDRES, ELIZABETH G",2011-06-11,2011-06-12,MEALS,37.59,FISCAL YEAR 2011,AP,Accounts payable,212539,"ANDRES, ELIZABETH G"
,OFFICE OF THE SPEAKER,2011Q3,TRAVEL,2019-07-19,"JACKSON,BARRY S",2011-04-02,2011-06-21,TAXI/PARKING/TOLLS,70,FISCAL YEAR 2011,AP,Accounts payable,217755,"JACKSON,BARRY S"
,OFFICE OF THE SPEAKER,2011Q3,TRAVEL,2019-07-19,"HALEY, KATHERINE C",2011-05-01,2011-06-28,TAXI/PARKING/TOLLS,58,FISCAL YEAR 2011,AP,Accounts payable,217756,"HALEY, KATHERINE C"
,OFFICE OF THE SPEAKER,2011Q3,TRAVEL,2019-07-19,"SCHNITTGER, DAVID M",2011-05-19,2011-06-23,TAXI/PARKING/TOLLS,65,FISCAL YEAR 2011,AP,Accounts payable,217759,"SCHNITTGER, DAVID M"
,OFFICE OF THE SPEAKER,2011Q3,TRAVEL,2019-07-20,"GREEN, JO-MARIE S",2011-05-17,2011-05-17,TAXI/PARKING/TOLLS,16,FISCAL YEAR 2011,AP,Accounts payable,220921,"GREEN, JO-MARIE S"
,OFFICE OF THE SPEAKER,2011Q3,TRAVEL,2019-08-31,"AVONDOGLIO, BRYANT J",2011-05-08,2011-05-10,TAXI/PARKING/TOLLS,295,FISCAL YEAR 2011,AP,Accounts payable,254369,"AVONDOGLIO, BRYANT J"
,OFFICE OF THE SPEAKER,2011Q3,TRAVEL,2019-08-31,"AVONDOGLIO, BRYANT J",2011-05-08,2011-05-10,TRAVEL SUBSISTENCE,-295,FISCAL YEAR 2011,AP,Accounts payable,254369,"AVONDOGLIO, BRYANT J"
,OFFICE OF THE SPEAKER,2011Q3,TRAVEL,2019-08-31,"SCHNITTGER, DAVID M",2011-05-09,2011-05-10,TAXI/PARKING/TOLLS,320.8,FISCAL YEAR 2011,AP,Accounts payable,254381,"SCHNITTGER, DAVID M"
,OFFICE OF THE SPEAKER,2011Q3,TRAVEL,2019-08-31,"SCHNITTGER, DAVID M",2011-05-09,2011-05-10,TRAVEL SUBSISTENCE,-320.8,FISCAL YEAR 2011,AP,Accounts payable,254381,"SCHNITTGER, DAVID M"
,OFFICE OF THE SPEAKER,2011Q3,TRAVEL,2019-09-06,"SMITH, KEVIN",2011-04-25,2011-06-29,TAXI/PARKING/TOLLS,83,FISCAL YEAR 2011,AP,Accounts payable,253079,"SMITH, KEVIN"
,OFFICE OF THE SPEAKER,2011Q3,"RENT, COMMUNICATION, UTILITIES",2019-07-01,FEDERAL EXPRESS CORP,2011-06-27,2011-06-27,POSTAGE / COURIER / BOX RENTAL,5.58,FISCAL YEAR 2011,AP,Accounts payable,208365,FEDERAL EXPRESS CORP
,OFFICE OF THE SPEAKER,2011Q3,"RENT, COMMUNICATION, UTILITIES",2019-07-01,FEDERAL EXPRESS CORP,2011-06-28,2011-06-28,POSTAGE / COURIER / BOX RENTAL,7.64,FISCAL YEAR 2011,AP,Accounts payable,208365,FEDERAL EXPRESS CORP
,OFFICE OF THE SPEAKER,2011Q3,"RENT, COMMUNICATION, UTILITIES",2019-07-11,FEDERAL EXPRESS CORP,2011-07-01,2011-07-01,POSTAGE / COURIER / BOX RENTAL,14.85,FISCAL YEAR 2011,AP,Accounts payable,212166,FEDERAL EXPRESS CORP
,OFFICE OF THE SPEAKER,2011Q3,"RENT, COMMUNICATION, UTILITIES",2019-07-20,FEDERAL EXPRESS CORP,2011-07-06,2011-07-06,POSTAGE / COURIER / BOX RENTAL,4.28,FISCAL YEAR 2011,AP,Accounts payable,217794,FEDERAL EXPRESS CORP
,OFFICE OF THE SPEAKER,2011Q3,"RENT, COMMUNICATION, UTILITIES",2019-07-22,FEDERAL EXPRESS CORP,2011-07-11,2011-07-11,POSTAGE / COURIER / BOX RENTAL,7.94,FISCAL YEAR 2011,AP,Accounts payable,223970,FEDERAL EXPRESS CORP
,OFFICE OF THE SPEAKER,2011Q3,"RENT, COMMUNICATION, UTILITIES",2019-08-09,FEDERAL EXPRESS CORP,2011-07-25,2011-07-25,POSTAGE / COURIER / BOX RENTAL,88.56,FISCAL YEAR 2011,AP,Accounts payable,231917,FEDERAL EXPRESS CORP
,OFFICE OF THE SPEAKER,2011Q3,"RENT, COMMUNICATION, UTILITIES",2019-08-12,FEDERAL EXPRESS CORP,2011-08-04,2011-08-04,POSTAGE / COURIER / BOX RENTAL,7.77,FISCAL YEAR 2011,AP,Accounts payable,235851,FEDERAL EXPRESS CORP
,OFFICE OF THE SPEAKER,2011Q3,"RENT, COMMUNICATION, UTILITIES",2019-08-12,FEDERAL EXPRESS CORP,2011-08-09,2011-08-09,POSTAGE / COURIER / BOX RENTAL,10.69,FISCAL YEAR 2011,AP,Accounts payable,235851,FEDERAL EXPRESS CORP
,OFFICE OF THE SPEAKER,2011Q3,"RENT, COMMUNICATION, UTILITIES",2019-08-19,FEDERAL EXPRESS CORP,2011-08-12,2011-08-12,POSTAGE / COURIER / BOX RENTAL,18.52,FISCAL YEAR 2011,AP,Accounts payable,244865,FEDERAL EXPRESS CORP
,OFFICE OF THE SPEAKER,2011Q3,"RENT, COMMUNICATION, UTILITIES",2019-09-01,FEDERAL EXPRESS CORP,2011-08-18,2011-08-18,POSTAGE / COURIER / BOX RENTAL,8.11,FISCAL YEAR 2011,AP,Accounts payable,250888,FEDERAL EXPRESS CORP
,OFFICE OF THE SPEAKER,2011Q3,"RENT, COMMUNICATION, UTILITIES",2019-09-02,FEDERAL EXPRESS CORP,2011-08-24,2011-08-24,POSTAGE / COURIER / BOX RENTAL,7.04,FISCAL YEAR 2011,AP,Accounts payable,252479,FEDERAL EXPRESS CORP
,OFFICE OF THE SPEAKER,2011Q3,"RENT, COMMUNICATION, UTILITIES",2019-09-02,FEDERAL EXPRESS CORP,2011-08-26,2011-08-26,POSTAGE / COURIER / BOX RENTAL,16.2,FISCAL YEAR 2011,AP,Accounts payable,252479,FEDERAL EXPRESS CORP
,OFFICE OF THE SPEAKER,2011Q3,"RENT, COMMUNICATION, UTILITIES",2019-09-02,FEDERAL EXPRESS CORP,2011-08-29,2011-08-29,POSTAGE / COURIER / BOX RENTAL,7.27,FISCAL YEAR 2011,AP,Accounts payable,252479,FEDERAL EXPRESS CORP
,OFFICE OF THE SPEAKER,2011Q3,"RENT, COMMUNICATION, UTILITIES",2019-09-13,FEDERAL EXPRESS CORP,2011-08-31,2011-08-31,POSTAGE / COURIER / BOX RENTAL,34.33,FISCAL YEAR 2011,AP,Accounts payable,257567,FEDERAL EXPRESS CORP
,OFFICE OF THE SPEAKER,2011Q3,"RENT, COMMUNICATION, UTILITIES",2019-09-13,FEDERAL EXPRESS CORP,2011-09-02,2011-09-02,POSTAGE / COURIER / BOX RENTAL,15.87,FISCAL YEAR 2011,AP,Accounts payable,257567,FEDERAL EXPRESS CORP
,OFFICE OF THE SPEAKER,2011Q3,"RENT, COMMUNICATION, UTILITIES",2019-09-19,FEDERAL EXPRESS CORP,2011-09-08,2011-09-08,POSTAGE / COURIER / BOX RENTAL,7.79,FISCAL YEAR 2011,AP,Accounts payable,263489,FEDERAL EXPRESS CORP
,OFFICE OF THE SPEAKER,2011Q3,"RENT, COMMUNICATION, UTILITIES",2019-09-23,FEDERAL EXPRESS CORP,2011-09-09,2011-09-09,POSTAGE / COURIER / BOX RENTAL,8.13,FISCAL YEAR 2011,AP,Accounts payable,269926,FEDERAL EXPRESS CORP
,OFFICE OF THE SPEAKER,2011Q3,"RENT, COMMUNICATION, UTILITIES",2019-09-23,FEDERAL EXPRESS CORP,2011-09-13,2011-09-13,POSTAGE / COURIER / BOX RENTAL,6.19,FISCAL YEAR 2011,AP,Accounts payable,269926,FEDERAL EXPRESS CORP
,OFFICE OF THE SPEAKER,2011Q3,"RENT, COMMUNICATION, UTILITIES",2019-09-30,FEDERAL EXPRESS CORP,2011-09-23,2011-09-23,POSTAGE / COURIER / BOX RENTAL,15.61,FISCAL YEAR 2011,AP,Accounts payable,274644,FEDERAL EXPRESS CORP
,OFFICE OF THE SPEAKER,2011Q3,PRINTING AND REPRODUCTION,2019-07-27,,2011-07-01,2011-07-31,PHOTOGRAPHIC (TRANSFER),196.1,FISCAL YEAR 2011,GL,General ledger,PIX0010657,
,OFFICE OF THE SPEAKER,2011Q3,PRINTING AND REPRODUCTION,2019-08-26,,2011-08-01,2011-08-31,PHOTOGRAPHIC (TRANSFER),264.34,FISCAL YEAR 2011,GL,General ledger,PIX0011623,
,OFFICE OF THE SPEAKER,2011Q3,PRINTING AND REPRODUCTION,2019-09-26,,2011-09-01,2011-09-30,PHOTOGRAPHIC (TRANSFER),92.2,FISCAL YEAR 2011,GL,General ledger,PIX0012578,
,OFFICE OF THE SPEAKER,2011Q3,OTHER SERVICES,2019-07-08,FAXPLUS INC,2011-02-04,2011-03-08,NON-TECHNOLOGY SERVICE CONTR,371.94,FISCAL YEAR 2011,AP,Accounts payable,210985,FAXPLUS INC
,OFFICE OF THE SPEAKER,2011Q3,SUPPLIES AND MATERIALS,2019-07-01,CAPITOLHOST,2010-12-01,2010-12-01,FOOD & BEVERAGE,90,FISCAL YEAR 2011,AP,Accounts payable,208030,CAPITOLHOST
,OFFICE OF THE SPEAKER,2011Q3,SUPPLIES AND MATERIALS,2019-07-01,CAPITOLHOST,2010-12-08,2010-12-08,FOOD & BEVERAGE,90,FISCAL YEAR 2011,AP,Accounts payable,208031,CAPITOLHOST
,OFFICE OF THE SPEAKER,2011Q3,SUPPLIES AND MATERIALS,2019-07-08,COCA-COLA ENTERPRISES,2011-06-21,2011-06-21,FOOD & BEVERAGE,180.05,FISCAL YEAR 2011,AP,Accounts payable,210983,COCA-COLA ENTERPRISES
,OFFICE OF THE SPEAKER,2011Q3,SUPPLIES AND MATERIALS,2019-07-14,JOE RAGAN'S COFFEE LTD,2011-06-02,2011-06-02,FOOD & BEVERAGE,400.2,FISCAL YEAR 2011,AP,Accounts payable,213566,JOE RAGAN'S COFFEE LTD
,OFFICE OF THE SPEAKER,2011Q3,SUPPLIES AND MATERIALS,2019-07-14,JOE RAGAN'S COFFEE LTD,2011-06-07,2011-06-07,FOOD & BEVERAGE,309.32,FISCAL YEAR 2011,AP,Accounts payable,213572,JOE RAGAN'S COFFEE LTD
,OFFICE OF THE SPEAKER,2011Q3,SUPPLIES AND MATERIALS,2019-07-14,JOE RAGAN'S COFFEE LTD,2011-06-14,2011-06-14,FOOD & BEVERAGE,456.36,FISCAL YEAR 2011,AP,Accounts payable,213574,JOE RAGAN'S COFFEE LTD
,OFFICE OF THE SPEAKER,2011Q3,SUPPLIES AND MATERIALS,2019-07-14,JOE RAGAN'S COFFEE LTD,2011-06-21,2011-06-21,FOOD & BEVERAGE,378.2,FISCAL YEAR 2011,AP,Accounts payable,213575,JOE RAGAN'S COFFEE LTD
,OFFICE OF THE SPEAKER,2011Q3,SUPPLIES AND MATERIALS,2019-07-14,JOE RAGAN'S COFFEE LTD,2011-06-28,2011-06-28,FOOD & BEVERAGE,512.91,FISCAL YEAR 2011,AP,Accounts payable,213578,JOE RAGAN'S COFFEE LTD
,OFFICE OF THE SPEAKER,2011Q3,SUPPLIES AND MATERIALS,2019-07-19,DESIGN CUISINE,2011-05-25,2011-05-25,FOOD & BEVERAGE,"6,644.90",FISCAL YEAR 2011,AP,Accounts payable,217763,DESIGN CUISINE
,OFFICE OF THE SPEAKER,2011Q3,SUPPLIES AND MATERIALS,2019-07-22,LEXIS-NEXIS,2011-03-01,2011-03-31,PUBLICATIONS/REFERENCE MAT'L,686,FISCAL YEAR 2011,AP,Accounts payable,223157,LEXIS-NEXIS
,OFFICE OF THE SPEAKER,2011Q3,SUPPLIES AND MATERIALS,2019-07-22,LEXIS-NEXIS,2011-04-01,2011-04-30,PUBLICATIONS/REFERENCE MAT'L,680,FISCAL YEAR 2011,AP,Accounts payable,223160,LEXIS-NEXIS
,OFFICE OF THE SPEAKER,2011Q3,SUPPLIES AND MATERIALS,2019-08-02,"STOCKWELL, KERRY",2011-06-30,2011-07-12,FOOD & BEVERAGE,97.58,FISCAL YEAR 2011,AP,Accounts payable,229219,"STOCKWELL, KERRY"
,OFFICE OF THE SPEAKER,2011Q3,SUPPLIES AND MATERIALS,2019-08-09,CITIBANK GOV CARD SERVICE,2011-06-01,2011-06-24,FOOD & BEVERAGE,"1,368.97",FISCAL YEAR 2011,AP,Accounts payable,233184,CITIBANK GOV CARD SERVICE
,OFFICE OF THE SPEAKER,2011Q3,SUPPLIES AND MATERIALS,2019-08-09,COCA-COLA ENTERPRISES,2011-07-19,2011-07-19,FOOD & BEVERAGE,276.06,FISCAL YEAR 2011,AP,Accounts payable,233185,COCA-COLA ENTERPRISES
,OFFICE OF THE SPEAKER,2011Q3,SUPPLIES AND MATERIALS,2019-08-11,COCA-COLA ENTERPRISES,2011-07-26,2011-07-26,FOOD & BEVERAGE,367.8,FISCAL YEAR 2011,AP,Accounts payable,234486,COCA-COLA ENTERPRISES
,OFFICE OF THE SPEAKER,2011Q3,SUPPLIES AND MATERIALS,2019-08-16,JOE RAGAN'S COFFEE LTD,2011-07-26,2011-07-26,FOOD & BEVERAGE,217.4,FISCAL YEAR 2011,AP,Accounts payable,237095,JOE RAGAN'S COFFEE LTD
,OFFICE OF THE SPEAKER,2011Q3,SUPPLIES AND MATERIALS,2019-08-16,JOE RAGAN'S COFFEE LTD,2011-07-05,2011-07-05,FOOD & BEVERAGE,516.51,FISCAL YEAR 2011,AP,Accounts payable,237101,JOE RAGAN'S COFFEE LTD
,OFFICE OF THE SPEAKER,2011Q3,SUPPLIES AND MATERIALS,2019-08-16,JOE RAGAN'S COFFEE LTD,2011-07-12,2011-07-12,FOOD & BEVERAGE,575.17,FISCAL YEAR 2011,AP,Accounts payable,237107,JOE RAGAN'S COFFEE LTD
,OFFICE OF THE SPEAKER,2011Q3,SUPPLIES AND MATERIALS,2019-08-16,JOE RAGAN'S COFFEE LTD,2011-07-19,2011-07-19,FOOD & BEVERAGE,388.36,FISCAL YEAR 2011,AP,Accounts payable,237111,JOE RAGAN'S COFFEE LTD
,OFFICE OF THE SPEAKER,2011Q3,SUPPLIES AND MATERIALS,2019-08-16,JOE RAGAN'S COFFEE LTD,2011-07-22,2011-07-22,FOOD & BEVERAGE,577.95,FISCAL YEAR 2011,AP,Accounts payable,237114,JOE RAGAN'S COFFEE LTD
,OFFICE OF THE SPEAKER,2011Q3,SUPPLIES AND MATERIALS,2019-08-19,"BUCK, BRENDAN K",2011-07-31,2011-07-31,FOOD & BEVERAGE,152.68,FISCAL YEAR 2011,AP,Accounts payable,244493,"BUCK, BRENDAN K"
,OFFICE OF THE SPEAKER,2011Q3,SUPPLIES AND MATERIALS,2019-08-24,JOE RAGAN'S COFFEE LTD,2011-06-30,2011-06-30,FOOD & BEVERAGE,56.7,FISCAL YEAR 2011,AP,Accounts payable,246925,JOE RAGAN'S COFFEE LTD
,OFFICE OF THE SPEAKER,2011Q3,SUPPLIES AND MATERIALS,2019-08-24,HAGUE QUALITY WATER,2011-08-04,2011-08-04,WATER,252,FISCAL YEAR 2011,AP,Accounts payable,246928,HAGUE QUALITY WATER
,OFFICE OF THE SPEAKER,2011Q3,SUPPLIES AND MATERIALS,2019-08-24,DESIGN CUISINE,2011-04-12,2011-04-12,FOOD & BEVERAGE,"8,087.00",FISCAL YEAR 2011,AP,Accounts payable,246931,DESIGN CUISINE
,OFFICE OF THE SPEAKER,2011Q3,SUPPLIES AND MATERIALS,2019-09-06,COCA-COLA ENTERPRISES,2011-08-09,2011-08-09,FOOD & BEVERAGE,193.34,FISCAL YEAR 2011,AP,Accounts payable,253081,COCA-COLA ENTERPRISES
,OFFICE OF THE SPEAKER,2011Q3,SUPPLIES AND MATERIALS,2019-09-06,CITIBANK GOV CARD SERVICE,2011-06-30,2011-07-26,FOOD & BEVERAGE,"3,443.72",FISCAL YEAR 2011,AP,Accounts payable,253579,CITIBANK GOV CARD SERVICE
,OFFICE OF THE SPEAKER,2011Q3,SUPPLIES AND MATERIALS,2019-09-06,CITIBANK GOV CARD SERVICE,2011-07-13,2011-07-13,HABITATION EXPENSE,900,FISCAL YEAR 2011,AP,Accounts payable,253581,CITIBANK GOV CARD SERVICE
,OFFICE OF THE SPEAKER,2011Q3,SUPPLIES AND MATERIALS,2019-09-06,CITIBANK GOV CARD SERVICE,2011-07-22,2011-07-22,PUBLICATIONS/REFERENCE MAT'L,273.96,FISCAL YEAR 2011,AP,Accounts payable,253584,CITIBANK GOV CARD SERVICE
,OFFICE OF THE SPEAKER,2011Q3,SUPPLIES AND MATERIALS,2019-09-06,"GILLESPIE, MAURA M",2011-08-04,2011-08-04,FOOD & BEVERAGE,23.9,FISCAL YEAR 2011,AP,Accounts payable,253632,"GILLESPIE, MAURA M"
,OFFICE OF THE SPEAKER,2011Q3,SUPPLIES AND MATERIALS,2019-09-09,HAGUE QUALITY WATER,2011-07-04,2011-07-04,WATER,252,FISCAL YEAR 2011,AP,Accounts payable,256009,HAGUE QUALITY WATER
,OFFICE OF THE SPEAKER,2011Q3,SUPPLIES AND MATERIALS,2019-09-09,JOE RAGAN'S COFFEE LTD,2011-07-26,2011-07-26,FOOD & BEVERAGE,15.95,FISCAL YEAR 2011,AP,Accounts payable,256010,JOE RAGAN'S COFFEE LTD
,OFFICE OF THE SPEAKER,2011Q3,SUPPLIES AND MATERIALS,2019-09-09,JOE RAGAN'S COFFEE LTD,2011-08-02,2011-08-02,FOOD & BEVERAGE,494.4,FISCAL YEAR 2011,AP,Accounts payable,256012,JOE RAGAN'S COFFEE LTD
,OFFICE OF THE SPEAKER,2011Q3,SUPPLIES AND MATERIALS,2019-09-09,JOE RAGAN'S COFFEE LTD,2011-08-16,2011-08-16,FOOD & BEVERAGE,563.84,FISCAL YEAR 2011,AP,Accounts payable,256014,JOE RAGAN'S COFFEE LTD
,OFFICE OF THE SPEAKER,2011Q3,SUPPLIES AND MATERIALS,2019-09-09,JOE RAGAN'S COFFEE LTD,2011-08-23,2011-08-23,FOOD & BEVERAGE,249.14,FISCAL YEAR 2011,AP,Accounts payable,256015,JOE RAGAN'S COFFEE LTD
,OFFICE OF THE SPEAKER,2011Q3,SUPPLIES AND MATERIALS,2019-09-26,CITIBANK GOV CARD SERVICE,2011-07-29,2011-08-03,FOOD & BEVERAGE,774.55,FISCAL YEAR 2011,AP,Accounts payable,270532,CITIBANK GOV CARD SERVICE
,OFFICE OF THE SPEAKER,2011Q3,SUPPLIES AND MATERIALS,2019-09-26,CITIBANK GOV CARD SERVICE,2011-08-04,2011-08-04,HABITATION EXPENSE,110,FISCAL YEAR 2011,AP,Accounts payable,270533,CITIBANK GOV CARD SERVICE
,OFFICE OF THE SPEAKER,2011Q3,SUPPLIES AND MATERIALS,2019-09-29,COCA-COLA ENTERPRISES,2011-09-13,2011-09-13,FOOD & BEVERAGE,332.16,FISCAL YEAR 2011,AP,Accounts payable,273375,COCA-COLA ENTERPRISES
,OFFICE OF THE SPEAKER,2011Q3,PERSONNEL BENEFITS,2019-07-16,HON. JOHN A. BOEHNER,2011-07-01,2011-07-31,OFFICIAL EXPENSES FOR LEADERS,"2,083.33",FISCAL YEAR 2011,AP,Accounts payable,216389,HON. JOHN A. BOEHNER
,OFFICE OF THE SPEAKER,2011Q3,PERSONNEL BENEFITS,2019-08-16,HON. JOHN A. BOEHNER,2011-08-01,2011-08-31,OFFICIAL EXPENSES FOR LEADERS,"2,083.33",FISCAL YEAR 2011,AP,Accounts payable,239003,HON. JOHN A. BOEHNER
,OFFICE OF THE SPEAKER,2011Q3,PERSONNEL BENEFITS,2019-09-16,HON. JOHN A. BOEHNER,2011-09-01,2011-09-30,OFFICIAL EXPENSES FOR LEADERS,"2,083.33",FISCAL YEAR 2011,AP,Accounts payable,261924,HON. JOHN A. BOEHNER
,OFFICE OF THE MAJORITY LEADER,2011Q3,PERSONNEL COMPENSATION,,"BRADLEY, NEIL L",2011-07-01,2011-09-30,DEPUTY CHEIF OF STAFF,"43,125.00",FISCAL YEAR 2011,,,,"BRADLEY, NEIL L"
,OFFICE OF THE MAJORITY LEADER,2011Q3,PERSONNEL COMPENSATION,,"DAYSPRING, BRADFORD",2011-07-01,2011-09-30,COMMUNICATIONS DIRECTOR,"42,102.75",FISCAL YEAR 2011,,,,"DAYSPRING, BRADFORD"
,OFFICE OF THE MAJORITY LEADER,2011Q3,PERSONNEL COMPENSATION,,"DOLBOW, WILLIAM R",2011-07-01,2011-09-30,SENIOR ADVISOR,"43,125.00",FISCAL YEAR 2011,,,,"DOLBOW, WILLIAM R"
,OFFICE OF THE MAJORITY LEADER,2011Q3,PERSONNEL COMPENSATION,,"MURRAY,JOHN A",2011-07-01,2011-09-30,DEPUTY CHIEF OF STAFF,"43,125.00",FISCAL YEAR 2011,,,,"MURRAY,JOHN A"
,OFFICE OF THE MAJORITY LEADER,2011Q3,PERSONNEL COMPENSATION,,"NEVINS, KYLE W",2011-07-01,2011-09-30,DEPUTY CHIEF OF STAFF,"42,102.75",FISCAL YEAR 2011,,,,"NEVINS, KYLE W"
,OFFICE OF THE MAJORITY LEADER,2011Q3,PERSONNEL COMPENSATION,,"STOMBRES, STEVEN C",2011-07-01,2011-09-30,CHIEF OF STAFF,"43,125.00",FISCAL YEAR 2011,,,,"STOMBRES, STEVEN C"
,OFFICE OF THE MAJORITY LEADER,2011Q3,PERSONNEL COMPENSATION,,"BARRERA,AMY D",2011-07-01,2011-09-30,DIRECTOR OF ADMINISTRATION,"3,750.00",FISCAL YEAR 2011,,,,"BARRERA,AMY D"
,OFFICE OF THE MAJORITY LEADER,2011Q3,PERSONNEL COMPENSATION,,"BRAVO, MATTHEW",2011-07-01,2011-09-30,FLOOR ASSISTANT/SPECIAL ASSIST,"13,250.00",FISCAL YEAR 2011,,,,"BRAVO, MATTHEW"
,OFFICE OF THE MAJORITY LEADER,2011Q3,PERSONNEL COMPENSATION,,"CUMMINGS,TIMOTHY P",2011-08-08,2011-09-30,STAFF ASSISTANT,"3,533.33",FISCAL YEAR 2011,,,,"CUMMINGS,TIMOTHY P"
,OFFICE OF THE MAJORITY LEADER,2011Q3,PERSONNEL COMPENSATION,,"FALLON,LAENA E",2011-07-01,2011-09-30,PRESS SECRETARY,"27,500.01",FISCAL YEAR 2011,,,,"FALLON,LAENA E"
,OFFICE OF THE MAJORITY LEADER,2011Q3,PERSONNEL COMPENSATION,,"FERENCE, MICHAEL J",2011-07-01,2011-09-30,DIRECTOR OF OUTREACH,"39,750.00",FISCAL YEAR 2011,,,,"FERENCE, MICHAEL J"
,OFFICE OF THE MAJORITY LEADER,2011Q3,PERSONNEL COMPENSATION,,"FREDERICKS, AUTUMN",2011-07-01,2011-09-30,SHARED EMPLOYEE,"3,000.00",FISCAL YEAR 2011,,,,"FREDERICKS, AUTUMN"
,OFFICE OF THE MAJORITY LEADER,2011Q3,PERSONNEL COMPENSATION,,"GUSTAFSON,NICOLE M",2011-07-01,2011-09-30,POLICY ADVISOR/COUNSEL,"9,250.00",FISCAL YEAR 2011,,,,"GUSTAFSON,NICOLE M"
,OFFICE OF THE MAJORITY LEADER,2011Q3,PERSONNEL COMPENSATION,,"JAEGER, CHERYL L",2011-07-01,2011-09-30,SENIOR POLICY ADVISOR,"7,850.01",FISCAL YEAR 2011,,,,"JAEGER, CHERYL L"
,OFFICE OF THE MAJORITY LEADER,2011Q3,PERSONNEL COMPENSATION,,"JOHNSTON,STEVEN",2011-07-01,2011-09-30,ASSOCIATE DIR OF NEW MEDIA,"12,374.99",FISCAL YEAR 2011,,,,"JOHNSTON,STEVEN"
,OFFICE OF THE MAJORITY LEADER,2011Q3,PERSONNEL COMPENSATION,,"KEECH,EMILY H",2011-07-01,2011-09-30,STAFF ASSISTANT,"8,249.99",FISCAL YEAR 2011,,,,"KEECH,EMILY H"
,OFFICE OF THE MAJORITY LEADER,2011Q3,PERSONNEL COMPENSATION,,"LIRA,MATHEW L",2011-07-01,2011-09-30,DIRECTOR OF NEW MEDIA,"23,750.01",FISCAL YEAR 2011,,,,"LIRA,MATHEW L"
,OFFICE OF THE MAJORITY LEADER,2011Q3,PERSONNEL COMPENSATION,,"MAHAN,ROGER A",2011-07-01,2011-09-30,POLICY ADVISOR,"12,875.01",FISCAL YEAR 2011,,,,"MAHAN,ROGER A"
,OFFICE OF THE MAJORITY LEADER,2011Q3,PERSONNEL COMPENSATION,,"NELSON, VALERIE S",2011-07-01,2011-09-30,DIR OF MEMBER SERVICES,"28,749.99",FISCAL YEAR 2011,,,,"NELSON, VALERIE S"
,OFFICE OF THE MAJORITY LEADER,2011Q3,PERSONNEL COMPENSATION,,"O'CONNOR, KATHLEEN",2011-07-01,2011-09-30,DEPUTY DIR MEMBERS SERVICES,"14,624.99",FISCAL YEAR 2011,,,,"O'CONNOR, KATHLEEN"
,OFFICE OF THE MAJORITY LEADER,2011Q3,PERSONNEL COMPENSATION,,"PATRICK,BRIAN C",2011-07-01,2011-09-30,STRATEGIC COMMUNICATIONS,"18,875.00",FISCAL YEAR 2011,,,,"PATRICK,BRIAN C"
,OFFICE OF THE MAJORITY LEADER,2011Q3,PERSONNEL COMPENSATION,,"RODRIGUERA JR,SERGIO G",2011-06-27,2011-09-30,SPEECH WRITER,"14,361.10",FISCAL YEAR 2011,,,,"RODRIGUERA JR,SERGIO G"
,OFFICE OF THE MAJORITY LEADER,2011Q3,PERSONNEL COMPENSATION,,"SCHAFFER,CHRISTINE A",2011-07-01,2011-09-30,DEPUTY SCHEDULER,"15,250.01",FISCAL YEAR 2011,,,,"SCHAFFER,CHRISTINE A"
,OFFICE OF THE MAJORITY LEADER,2011Q3,PERSONNEL COMPENSATION,,"STEIN, SHIMON",2011-07-01,2011-09-30,SENIOR POLICY ADVISOR,"27,812.49",FISCAL YEAR 2011,,,,"STEIN, SHIMON"
,OFFICE OF THE MAJORITY LEADER,2011Q3,PERSONNEL COMPENSATION,,"STEVENS,AMANDA D",2011-07-01,2011-08-08,STAFF ASSISTANT,"4,544.44",FISCAL YEAR 2011,,,,"STEVENS,AMANDA D"
,OFFICE OF THE MAJORITY LEADER,2011Q3,PERSONNEL COMPENSATION,,"STRAUS,JESSICA",2011-07-01,2011-09-30,ASSISTANT PRESS SECRETARY,"14,249.99",FISCAL YEAR 2011,,,,"STRAUS,JESSICA"
,OFFICE OF THE MAJORITY LEADER,2011Q3,PERSONNEL COMPENSATION,,"TUELL,JAMES A",2011-07-01,2011-09-30,ASST TO THE CHIEF OF STAFF,"9,812.51",FISCAL YEAR 2011,,,,"TUELL,JAMES A"
,OFFICE OF THE MAJORITY LEADER,2011Q3,PERSONNEL COMPENSATION,,"VIESON, CHRISTOPHER W",2011-07-01,2011-09-30,DEPUTY DIRECTOR OF FLOOR OPERA,"18,624.99",FISCAL YEAR 2011,,,,"VIESON, CHRISTOPHER W"
,OFFICE OF THE MAJORITY LEADER,2011Q3,PERSONNEL COMPENSATION,,"WILLIAMS, KELLY K",2011-07-01,2011-09-30,FINANCIAL ADMINISTRATOR,"5,999.99",FISCAL YEAR 2011,,,,"WILLIAMS, KELLY K"
,OFFICE OF THE MAJORITY LEADER,2011Q3,PERSONNEL COMPENSATION,,"ZACKON,MATTHEW R",2011-07-01,2011-09-30,SPECIAL ASSISTANT,"8,249.99",FISCAL YEAR 2011,,,,"ZACKON,MATTHEW R"
,OFFICE OF THE MAJORITY LEADER,2011Q3,TRAVEL,2019-07-27,"JAEGER, CHERYL L",2011-03-07,2011-03-07,TRAVEL SUBSISTENCE,307.35,FISCAL YEAR 2011,AP,Accounts payable,225977,"JAEGER, CHERYL L"
,OFFICE OF THE MAJORITY LEADER,2011Q3,TRAVEL,2019-07-27,"KEECH, EMILY H",2011-05-26,2011-07-11,PRIVATE AUTO MILEAGE,52.02,FISCAL YEAR 2011,AP,Accounts payable,225981,"KEECH, EMILY H"
,OFFICE OF THE MAJORITY LEADER,2011Q3,TRAVEL,2019-07-27,"STEIN, SHIMON",2011-07-08,2011-07-08,TAXI/PARKING/TOLLS,10.5,FISCAL YEAR 2011,AP,Accounts payable,225983,"STEIN, SHIMON"
,OFFICE OF THE MAJORITY LEADER,2011Q3,TRAVEL,2019-08-08,ARCHITECT OF THE CAPITOL,2011-04-01,2011-06-30,GASOLINE,895.35,FISCAL YEAR 2011,AP,Accounts payable,229208,ARCHITECT OF THE CAPITOL
,OFFICE OF THE MAJORITY LEADER,2011Q3,TRAVEL,2019-08-10,"KEECH, EMILY H",2011-07-18,2011-07-29,PRIVATE AUTO MILEAGE,30.3,FISCAL YEAR 2011,AP,Accounts payable,233928,"KEECH, EMILY H"
,OFFICE OF THE MAJORITY LEADER,2011Q3,TRAVEL,2019-08-10,"NELSON, VALERIE S",2011-06-01,2011-07-19,TAXI/PARKING/TOLLS,115,FISCAL YEAR 2011,AP,Accounts payable,233936,"NELSON, VALERIE S"
,OFFICE OF THE MAJORITY LEADER,2011Q3,TRAVEL,2019-09-15,"AVILES,DANIELLE R",2011-01-19,2011-01-19,TAXI/PARKING/TOLLS,-9,FISCAL YEAR 2011,AP,Accounts payable,260274,"AVILES,DANIELLE R"
,OFFICE OF THE MAJORITY LEADER,2011Q3,TRAVEL,2019-09-15,"AVILES,DANIELLE R",2011-01-09,2011-01-19,TAXI/PARKING/TOLLS,-11,FISCAL YEAR 2011,AP,Accounts payable,260279,"AVILES,DANIELLE R"
,OFFICE OF THE MAJORITY LEADER,2011Q3,TRAVEL,2019-09-15,"AVILES,DANIELLE R",2011-01-19,2011-01-19,TAXI/PARKING/TOLLS,-11,FISCAL YEAR 2011,AP,Accounts payable,260285,"AVILES,DANIELLE R"
,OFFICE OF THE MAJORITY LEADER,2011Q3,TRAVEL,2019-09-16,"GUSTAFSON,NICOLE M",2011-06-22,2011-07-27,TAXI/PARKING/TOLLS,103,FISCAL YEAR 2011,AP,Accounts payable,260101,"GUSTAFSON,NICOLE M"
,OFFICE OF THE MAJORITY LEADER,2011Q3,TRAVEL,2019-09-19,"FERENCE, MICHAEL J",2011-06-15,2011-09-08,TAXI/PARKING/TOLLS,70,FISCAL YEAR 2011,AP,Accounts payable,263192,"FERENCE, MICHAEL J"
,OFFICE OF THE MAJORITY LEADER,2011Q3,"RENT, COMMUNICATION, UTILITIES",2019-08-10,CITIBANK GOV CARD SERVICE,2011-07-07,2011-08-06,UTILITIES,25,FISCAL YEAR 2011,AP,Accounts payable,233265,CITIBANK GOV CARD SERVICE
,OFFICE OF THE MAJORITY LEADER,2011Q3,"RENT, COMMUNICATION, UTILITIES",2019-08-12,FEDERAL EXPRESS CORP,2011-08-09,2011-08-09,POSTAGE / COURIER / BOX RENTAL,7.27,FISCAL YEAR 2011,AP,Accounts payable,235851,FEDERAL EXPRESS CORP
,OFFICE OF THE MAJORITY LEADER,2011Q3,PRINTING AND REPRODUCTION,2019-07-27,,2011-07-01,2011-07-31,PHOTOGRAPHIC (TRANSFER),360.8,FISCAL YEAR 2011,GL,General ledger,PIX0010657,
,OFFICE OF THE MAJORITY LEADER,2011Q3,PRINTING AND REPRODUCTION,2019-09-15,"DAVID L. ANDRUKITUS, INC",2011-01-07,2011-01-07,PRINTING & REPRODUCTION,-237.5,FISCAL YEAR 2011,AP,Accounts payable,260305,"DAVID L. ANDRUKITUS, INC"
,OFFICE OF THE MAJORITY LEADER,2011Q3,PRINTING AND REPRODUCTION,2019-09-15,"DAVID L. ANDRUKITUS, INC",2011-01-06,2011-01-06,PRINTING & REPRODUCTION,-127.5,FISCAL YEAR 2011,AP,Accounts payable,260310,"DAVID L. ANDRUKITUS, INC"
,OFFICE OF THE MAJORITY LEADER,2011Q3,PRINTING AND REPRODUCTION,2019-09-15,"DAVID L. ANDRUKITUS, INC",2011-01-07,2011-01-07,PRINTING & REPRODUCTION,-900,FISCAL YEAR 2011,AP,Accounts payable,260315,"DAVID L. ANDRUKITUS, INC"
,OFFICE OF THE MAJORITY LEADER,2011Q3,OTHER SERVICES,2019-07-29,ENGAGE LLC,2011-02-01,2011-02-28,"WEB DEV HST,EMAIL & RLTD SERV","2,500.00",FISCAL YEAR 2011,AP,Accounts payable,226932,ENGAGE LLC
,OFFICE OF THE MAJORITY LEADER,2011Q3,OTHER SERVICES,2019-07-29,ENGAGE LLC,2011-03-01,2011-03-30,"WEB DEV HST,EMAIL & RLTD SERV","2,500.00",FISCAL YEAR 2011,AP,Accounts payable,226936,ENGAGE LLC
,OFFICE OF THE MAJORITY LEADER,2011Q3,OTHER SERVICES,2019-08-19,NJI NEW MEDIA LLC,2011-05-01,2011-05-31,NON-TECHNOLOGY SERVICE CONTR,"-1,500.00",FISCAL YEAR 2011,AP,Accounts payable,244587,NJI NEW MEDIA LLC
,OFFICE OF THE MAJORITY LEADER,2011Q3,OTHER SERVICES,2019-08-19,NJI NEW MEDIA LLC,2011-05-18,2011-05-18,NON-TECHNOLOGY SERVICE CONTR,"-13,700.00",FISCAL YEAR 2011,AP,Accounts payable,244632,NJI NEW MEDIA LLC
,OFFICE OF THE MAJORITY LEADER,2011Q3,OTHER SERVICES,2019-08-19,NJI NEW MEDIA LLC,2011-01-01,2011-04-30,NON-TECHNOLOGY SERVICE CONTR,"-6,000.00",FISCAL YEAR 2011,AP,Accounts payable,244645,NJI NEW MEDIA LLC
,OFFICE OF THE MAJORITY LEADER,2011Q3,SUPPLIES AND MATERIALS,2019-07-15,DEER PARK,2011-05-27,2011-06-26,WATER,191.06,FISCAL YEAR 2011,AP,Accounts payable,214871,DEER PARK
,OFFICE OF THE MAJORITY LEADER,2011Q3,SUPPLIES AND MATERIALS,2019-07-21,HIGHLAND ESTATES COFFEE,2011-01-24,2011-01-24,FOOD & BEVERAGE,170.47,FISCAL YEAR 2011,AP,Accounts payable,221843,HIGHLAND ESTATES COFFEE
,OFFICE OF THE MAJORITY LEADER,2011Q3,SUPPLIES AND MATERIALS,2019-07-21,HIGHLAND ESTATES COFFEE,2011-03-15,2011-03-15,FOOD & BEVERAGE,101.04,FISCAL YEAR 2011,AP,Accounts payable,221845,HIGHLAND ESTATES COFFEE
,OFFICE OF THE MAJORITY LEADER,2011Q3,SUPPLIES AND MATERIALS,2019-07-21,HIGHLAND ESTATES COFFEE,2011-03-21,2011-03-21,FOOD & BEVERAGE,145.56,FISCAL YEAR 2011,AP,Accounts payable,221847,HIGHLAND ESTATES COFFEE
,OFFICE OF THE MAJORITY LEADER,2011Q3,SUPPLIES AND MATERIALS,2019-07-21,HIGHLAND ESTATES COFFEE,2011-03-30,2011-03-30,FOOD & BEVERAGE,145.56,FISCAL YEAR 2011,AP,Accounts payable,221849,HIGHLAND ESTATES COFFEE
,OFFICE OF THE MAJORITY LEADER,2011Q3,SUPPLIES AND MATERIALS,2019-07-21,HIGHLAND ESTATES COFFEE,2011-04-07,2011-04-07,FOOD & BEVERAGE,115.88,FISCAL YEAR 2011,AP,Accounts payable,221852,HIGHLAND ESTATES COFFEE
,OFFICE OF THE MAJORITY LEADER,2011Q3,SUPPLIES AND MATERIALS,2019-07-21,HIGHLAND ESTATES COFFEE,2011-04-12,2011-04-12,FOOD & BEVERAGE,56.52,FISCAL YEAR 2011,AP,Accounts payable,221854,HIGHLAND ESTATES COFFEE
,OFFICE OF THE MAJORITY LEADER,2011Q3,SUPPLIES AND MATERIALS,2019-07-21,HIGHLAND ESTATES COFFEE,2011-05-02,2011-05-02,FOOD & BEVERAGE,160.4,FISCAL YEAR 2011,AP,Accounts payable,221856,HIGHLAND ESTATES COFFEE
,OFFICE OF THE MAJORITY LEADER,2011Q3,SUPPLIES AND MATERIALS,2019-07-21,HIGHLAND ESTATES COFFEE,2011-05-12,2011-05-12,FOOD & BEVERAGE,41.68,FISCAL YEAR 2011,AP,Accounts payable,221858,HIGHLAND ESTATES COFFEE
,OFFICE OF THE MAJORITY LEADER,2011Q3,SUPPLIES AND MATERIALS,2019-07-21,HIGHLAND ESTATES COFFEE,2011-05-12,2011-05-12,FOOD & BEVERAGE,249.44,FISCAL YEAR 2011,AP,Accounts payable,221860,HIGHLAND ESTATES COFFEE
,OFFICE OF THE MAJORITY LEADER,2011Q3,SUPPLIES AND MATERIALS,2019-07-21,HIGHLAND ESTATES COFFEE,2011-05-16,2011-05-16,FOOD & BEVERAGE,281.24,FISCAL YEAR 2011,AP,Accounts payable,221862,HIGHLAND ESTATES COFFEE
,OFFICE OF THE MAJORITY LEADER,2011Q3,SUPPLIES AND MATERIALS,2019-07-21,HIGHLAND ESTATES COFFEE,2011-05-25,2011-05-25,FOOD & BEVERAGE,190.08,FISCAL YEAR 2011,AP,Accounts payable,221866,HIGHLAND ESTATES COFFEE
,OFFICE OF THE MAJORITY LEADER,2011Q3,SUPPLIES AND MATERIALS,2019-07-21,HIGHLAND ESTATES COFFEE,2011-06-02,2011-06-02,FOOD & BEVERAGE,219.76,FISCAL YEAR 2011,AP,Accounts payable,221868,HIGHLAND ESTATES COFFEE
,OFFICE OF THE MAJORITY LEADER,2011Q3,SUPPLIES AND MATERIALS,2019-07-21,HIGHLAND ESTATES COFFEE,2011-06-15,2011-06-15,FOOD & BEVERAGE,308.8,FISCAL YEAR 2011,AP,Accounts payable,221872,HIGHLAND ESTATES COFFEE
,OFFICE OF THE MAJORITY LEADER,2011Q3,SUPPLIES AND MATERIALS,2019-07-21,HIGHLAND ESTATES COFFEE,2011-06-27,2011-06-27,FOOD & BEVERAGE,190.08,FISCAL YEAR 2011,AP,Accounts payable,221875,HIGHLAND ESTATES COFFEE
,OFFICE OF THE MAJORITY LEADER,2011Q3,SUPPLIES AND MATERIALS,2019-07-21,CITIBANK GOV CARD SERVICE,2011-05-27,2011-06-22,FOOD & BEVERAGE,"1,893.77",FISCAL YEAR 2011,AP,Accounts payable,221877,CITIBANK GOV CARD SERVICE
,OFFICE OF THE MAJORITY LEADER,2011Q3,SUPPLIES AND MATERIALS,2019-07-21,CITIBANK GOV CARD SERVICE,2011-05-27,2011-06-22,PUBLICATIONS/REFERENCE MAT'L,172.57,FISCAL YEAR 2011,AP,Accounts payable,221883,CITIBANK GOV CARD SERVICE
,OFFICE OF THE MAJORITY LEADER,2011Q3,SUPPLIES AND MATERIALS,2019-07-27,DEER PARK,2011-06-30,2011-06-30,WATER,235.37,FISCAL YEAR 2011,AP,Accounts payable,226319,DEER PARK
,OFFICE OF THE MAJORITY LEADER,2011Q3,SUPPLIES AND MATERIALS,2019-08-10,CITIBANK GOV CARD SERVICE,2011-07-05,2011-07-26,FOOD & BEVERAGE,"1,138.70",FISCAL YEAR 2011,AP,Accounts payable,233264,CITIBANK GOV CARD SERVICE
,OFFICE OF THE MAJORITY LEADER,2011Q3,SUPPLIES AND MATERIALS,2019-08-10,CITIBANK GOV CARD SERVICE,2011-06-28,2011-07-29,PUBLICATIONS/REFERENCE MAT'L,451.14,FISCAL YEAR 2011,AP,Accounts payable,233267,CITIBANK GOV CARD SERVICE
,OFFICE OF THE MAJORITY LEADER,2011Q3,SUPPLIES AND MATERIALS,2019-08-10,HIGHLAND ESTATES COFFEE,2011-07-14,2011-07-14,FOOD & BEVERAGE,172.06,FISCAL YEAR 2011,AP,Accounts payable,233935,HIGHLAND ESTATES COFFEE
,OFFICE OF THE MAJORITY LEADER,2011Q3,SUPPLIES AND MATERIALS,2019-08-18,DEER PARK,2011-07-31,2011-07-31,WATER,150.94,FISCAL YEAR 2011,AP,Accounts payable,244250,DEER PARK
,OFFICE OF THE MAJORITY LEADER,2011Q3,SUPPLIES AND MATERIALS,2019-09-15,"AVILES,DANIELLE R",2011-01-19,2011-01-19,FOOD & BEVERAGE,-13.5,FISCAL YEAR 2011,AP,Accounts payable,260289,"AVILES,DANIELLE R"
,OFFICE OF THE MAJORITY LEADER,2011Q3,SUPPLIES AND MATERIALS,2019-09-15,"AVILES,DANIELLE R",2011-01-19,2011-01-19,FOOD & BEVERAGE,-9.9,FISCAL YEAR 2011,AP,Accounts payable,260294,"AVILES,DANIELLE R"
,OFFICE OF THE MAJORITY LEADER,2011Q3,SUPPLIES AND MATERIALS,2019-09-15,"BETTY CRUDUP, CATERER",2011-01-01,2011-01-31,FOOD & BEVERAGE,-900,FISCAL YEAR 2011,AP,Accounts payable,260297,"BETTY CRUDUP, CATERER"
,OFFICE OF THE MAJORITY LEADER,2011Q3,SUPPLIES AND MATERIALS,2019-09-22,DEER PARK,2011-08-31,2011-08-31,WATER,215.84,FISCAL YEAR 2011,AP,Accounts payable,268362,DEER PARK
,OFFICE OF THE MAJORITY LEADER,2011Q3,SUPPLIES AND MATERIALS,2019-09-28,DEER PARK,2011-08-30,2011-08-30,WATER,478.67,FISCAL YEAR 2011,AP,Accounts payable,259544,DEER PARK
,OFFICE OF THE MAJORITY LEADER,2011Q3,SUPPLIES AND MATERIALS,2019-09-29,CITIBANK GOV CARD SERVICE,2011-07-29,2011-08-24,FOOD & BEVERAGE,"1,141.35",FISCAL YEAR 2011,AP,Accounts payable,273301,CITIBANK GOV CARD SERVICE
,OFFICE OF THE MAJORITY LEADER,2011Q3,SUPPLIES AND MATERIALS,2019-09-29,CITIBANK GOV CARD SERVICE,2011-07-29,2011-08-24,OFFICE SUPPLIES (OUTSIDE),984.31,FISCAL YEAR 2011,AP,Accounts payable,273301,CITIBANK GOV CARD SERVICE
,OFFICE OF THE MAJORITY LEADER,2011Q3,SUPPLIES AND MATERIALS,2019-09-29,CITIBANK GOV CARD SERVICE,2011-07-29,2011-08-24,PUBLICATIONS/REFERENCE MAT'L,97.32,FISCAL YEAR 2011,AP,Accounts payable,273301,CITIBANK GOV CARD SERVICE
,OFFICE OF THE MAJORITY LEADER,2011Q3,SUPPLIES AND MATERIALS,2019-09-29,HIGHLAND ESTATES COFFEE,2011-09-07,2011-09-07,FOOD & BEVERAGE,330,FISCAL YEAR 2011,AP,Accounts payable,273379,HIGHLAND ESTATES COFFEE
,OFFICE OF THE MAJORITY LEADER,2011Q3,SUPPLIES AND MATERIALS,2019-09-29,HIGHLAND ESTATES COFFEE,2011-07-07,2011-07-07,FOOD & BEVERAGE,101.04,FISCAL YEAR 2011,AP,Accounts payable,273381,HIGHLAND ESTATES COFFEE
,OFFICE OF THE MAJORITY LEADER,2011Q3,SUPPLIES AND MATERIALS,2019-09-29,HIGHLAND ESTATES COFFEE,2011-07-12,2011-07-12,FOOD & BEVERAGE,71.36,FISCAL YEAR 2011,AP,Accounts payable,273383,HIGHLAND ESTATES COFFEE
,OFFICE OF THE MAJORITY LEADER,2011Q3,SUPPLIES AND MATERIALS,2019-09-29,HIGHLAND ESTATES COFFEE,2011-07-25,2011-07-25,FOOD & BEVERAGE,361.8,FISCAL YEAR 2011,AP,Accounts payable,273385,HIGHLAND ESTATES COFFEE
,OFFICE OF THE MAJORITY LEADER,2011Q3,SUPPLIES AND MATERIALS,2019-09-29,HIGHLAND ESTATES COFFEE,2011-08-05,2011-08-05,FOOD & BEVERAGE,250.5,FISCAL YEAR 2011,AP,Accounts payable,273388,HIGHLAND ESTATES COFFEE
,OFFICE OF THE MAJORITY LEADER,2011Q3,SUPPLIES AND MATERIALS,2019-09-29,HIGHLAND ESTATES COFFEE,2011-08-24,2011-08-24,FOOD & BEVERAGE,361.8,FISCAL YEAR 2011,AP,Accounts payable,273391,HIGHLAND ESTATES COFFEE
,OFFICE OF THE MAJORITY LEADER,2011Q3,EQUIPMENT,2019-07-15,NJI NEW MEDIA LLC,2011-06-01,2011-06-30,MAINTENANCE / REPAIRS,"1,500.00",FISCAL YEAR 2011,AP,Accounts payable,214869,NJI NEW MEDIA LLC
,OFFICE OF THE MINORITY LEADER,2011Q3,PERSONNEL COMPENSATION,,"DEGRAFF, KENNETH B",2011-07-01,2011-09-30,SENIOR POLICY ADVISOR,"28,749.99",FISCAL YEAR 2011,,,,"DEGRAFF, KENNETH B"
,OFFICE OF THE MINORITY LEADER,2011Q3,PERSONNEL COMPENSATION,,"MEDLIN,MELINDA L",2011-07-01,2011-09-30,DIRECTOR OF SCHEDULING,"35,847.00",FISCAL YEAR 2011,,,,"MEDLIN,MELINDA L"
,OFFICE OF THE MINORITY LEADER,2011Q3,PERSONNEL COMPENSATION,,"NEWTON, KARINA L",2011-07-01,2011-09-30,DIRECTOR OF NEW MEDIA,"33,750.00",FISCAL YEAR 2011,,,,"NEWTON, KARINA L"
,OFFICE OF THE MINORITY LEADER,2011Q3,PERSONNEL COMPENSATION,,"STIVERS, JONATHAN",2011-07-01,2011-09-30,SENIOR ADVISOR,"33,750.00",FISCAL YEAR 2011,,,,"STIVERS, JONATHAN"
,OFFICE OF THE MINORITY LEADER,2011Q3,PERSONNEL COMPENSATION,,"TECKLENBURG, MICHAEL H",2011-07-01,2011-09-30,COUNSEL,"30,062.01",FISCAL YEAR 2011,,,,"TECKLENBURG, MICHAEL H"
,OFFICE OF THE MINORITY LEADER,2011Q3,PERSONNEL COMPENSATION,,"BARRY,MARY K",2011-07-01,2011-09-30,DEPUTY DIRECTOR OF ADVANCE,"13,749.99",FISCAL YEAR 2011,,,,"BARRY,MARY K"
,OFFICE OF THE MINORITY LEADER,2011Q3,PERSONNEL COMPENSATION,,"BERENS,KELLY E",2011-07-01,2011-09-30,DIRECTOR OF ADVANCE,"20,000.01",FISCAL YEAR 2011,,,,"BERENS,KELLY E"
,OFFICE OF THE MINORITY LEADER,2011Q3,PERSONNEL COMPENSATION,,"BERNARDS, STACEY F",2011-07-01,2011-09-30,DEPUTY CHIEF OF STAFF,"39,699.99",FISCAL YEAR 2011,,,,"BERNARDS, STACEY F"
,OFFICE OF THE MINORITY LEADER,2011Q3,PERSONNEL COMPENSATION,,"BLOOM, MICHAEL T",2011-07-01,2011-09-30,DEPUTY POLICY DIRECTOR,"19,340.76",FISCAL YEAR 2011,,,,"BLOOM, MICHAEL T"
,OFFICE OF THE MINORITY LEADER,2011Q3,PERSONNEL COMPENSATION,,"CASHMAN,MARY D",2011-07-01,2011-08-31,ASSIST TO THE CHIEF OF STAFF,"11,595.34",FISCAL YEAR 2011,,,,"CASHMAN,MARY D"
,OFFICE OF THE MINORITY LEADER,2011Q3,PERSONNEL COMPENSATION,,"CASHMAN,MARY D",2011-09-01,2011-09-30,ASST TO THE CHIEF OF STAFF,"5,547.67",FISCAL YEAR 2011,,,,"CASHMAN,MARY D"
,OFFICE OF THE MINORITY LEADER,2011Q3,PERSONNEL COMPENSATION,,"CHARVILLE,BRIDGET F",2011-07-01,2011-09-30,DIRECTOR OF PROTOCOL,"29,466.75",FISCAL YEAR 2011,,,,"CHARVILLE,BRIDGET F"
,OFFICE OF THE MINORITY LEADER,2011Q3,PERSONNEL COMPENSATION,,"CHERRY,STEPHANIE",2011-07-01,2011-09-30,PRESS ADVISOR,"17,212.25",FISCAL YEAR 2011,,,,"CHERRY,STEPHANIE"
,OFFICE OF THE MINORITY LEADER,2011Q3,PERSONNEL COMPENSATION,,"COVEY-BRANDT, ALEXIS",2011-07-01,2011-09-30,FLOOR DIRECTOR,"35,949.99",FISCAL YEAR 2011,,,,"COVEY-BRANDT, ALEXIS"
,OFFICE OF THE MINORITY LEADER,2011Q3,PERSONNEL COMPENSATION,,"DEWHIRST, DIANE",2011-07-01,2011-09-30,SENIOR ADVISOR,"28,500.00",FISCAL YEAR 2011,,,,"DEWHIRST, DIANE"
,OFFICE OF THE MINORITY LEADER,2011Q3,PERSONNEL COMPENSATION,,"GREENER, APRIL L",2011-07-01,2011-09-30,RESEARCH DIRECTOR,"21,249.99",FISCAL YEAR 2011,,,,"GREENER, APRIL L"
,OFFICE OF THE MINORITY LEADER,2011Q3,PERSONNEL COMPENSATION,,"HAYNES JR, WILFRED J",2011-07-01,2011-09-30,IT DIRECTOR,"24,530.49",FISCAL YEAR 2011,,,,"HAYNES JR, WILFRED J"
,OFFICE OF THE MINORITY LEADER,2011Q3,PERSONNEL COMPENSATION,,"KEITA,KAMILAH Z",2011-07-01,2011-09-30,DEPUTY INFOMATION TECH. DIRECT,"21,282.99",FISCAL YEAR 2011,,,,"KEITA,KAMILAH Z"
,OFFICE OF THE MINORITY LEADER,2011Q3,PERSONNEL COMPENSATION,,"KERR, STACY R",2011-07-01,2011-08-28,SPECIAL ASSISTANT,"22,327.74",FISCAL YEAR 2011,,,,"KERR, STACY R"
,OFFICE OF THE MINORITY LEADER,2011Q3,PERSONNEL COMPENSATION,,"KERR, STACY R",2011-08-01,2011-08-28,SPECIAL ASSISTANT (OTHER COMPENSATION),"7,987.95",FISCAL YEAR 2011,,,,"KERR, STACY R"
,OFFICE OF THE MINORITY LEADER,2011Q3,PERSONNEL COMPENSATION,,"LIERMAN,TERRY L",2011-07-01,2011-09-30,CHIEF OF STAFF,"42,825.00",FISCAL YEAR 2011,,,,"LIERMAN,TERRY L"
,OFFICE OF THE MINORITY LEADER,2011Q3,PERSONNEL COMPENSATION,,"LONG,MICHAEL G",2011-07-01,2011-09-30,DEPUTY DIRECTOR OF MEMBER SVCS,"18,750.00",FISCAL YEAR 2011,,,,"LONG,MICHAEL G"
,OFFICE OF THE MINORITY LEADER,2011Q3,PERSONNEL COMPENSATION,,"MANATOS, ANASTASIOS",2011-07-01,2011-07-31,SR ADVISOR FOR MEMBER SERVICES,266.04,FISCAL YEAR 2011,,,,"MANATOS, ANASTASIOS"
,OFFICE OF THE MINORITY LEADER,2011Q3,PERSONNEL COMPENSATION,,"MANATOS, ANASTASIOS",2011-07-01,2011-07-31,SR ADVISOR FOR MEMBER SERVICES (OTHER COMPENSATION),"7,981.08",FISCAL YEAR 2011,,,,"MANATOS, ANASTASIOS"
,OFFICE OF THE MINORITY LEADER,2011Q3,PERSONNEL COMPENSATION,,"MANGRUM, PEARL J",2011-07-01,2011-09-30,FINANCIAL ADMINISTRATOR,"12,383.32",FISCAL YEAR 2011,,,,"MANGRUM, PEARL J"
,OFFICE OF THE MINORITY LEADER,2011Q3,PERSONNEL COMPENSATION,,"MERRITT,TIMOTHY",2011-07-01,2011-09-30,DEPUTY DIRECTOR OF SCHEDULING,"15,000.00",FISCAL YEAR 2011,,,,"MERRITT,TIMOTHY"
,OFFICE OF THE MINORITY LEADER,2011Q3,PERSONNEL COMPENSATION,,"O'NEILL, CATLIN W",2011-07-01,2011-09-11,DEPUTY DIR LEG OPERATIONS,"11,018.32",FISCAL YEAR 2011,,,,"O'NEILL, CATLIN W"
,OFFICE OF THE MINORITY LEADER,2011Q3,PERSONNEL COMPENSATION,,"PEPPER, LORI J",2011-07-01,2011-09-11,POLICY ADVISOR,"24,652.79",FISCAL YEAR 2011,,,,"PEPPER, LORI J"
,OFFICE OF THE MINORITY LEADER,2011Q3,PERSONNEL COMPENSATION,,"PEPPER, LORI J",2011-09-12,2011-09-30,DEPUTY DIR. - FLOOR OPERATIONS,"3,648.66",FISCAL YEAR 2011,,,,"PEPPER, LORI J"
,OFFICE OF THE MINORITY LEADER,2011Q3,PERSONNEL COMPENSATION,,"POWELL,JONATHAN M",2011-07-01,2011-09-30,DEPUTY SPEECHWRITER,"20,000.01",FISCAL YEAR 2011,,,,"POWELL,JONATHAN M"
,OFFICE OF THE MINORITY LEADER,2011Q3,PERSONNEL COMPENSATION,,"REPKO,MARY F",2011-07-01,2011-09-30,SENIOR POLICY ADVISOR,"32,949.99",FISCAL YEAR 2011,,,,"REPKO,MARY F"
,OFFICE OF THE MINORITY LEADER,2011Q3,PERSONNEL COMPENSATION,,"ROLLAND,STACEY L",2011-07-01,2011-09-30,POLICY ADVISOR - TAX,"30,000.00",FISCAL YEAR 2011,,,,"ROLLAND,STACEY L"
,OFFICE OF THE MINORITY LEADER,2011Q3,PERSONNEL COMPENSATION,,"ROMICK, BRIAN",2011-07-01,2011-09-30,MEMBER SERVICES DIRECTOR,"33,449.99",FISCAL YEAR 2011,,,,"ROMICK, BRIAN"
,OFFICE OF THE MINORITY LEADER,2011Q3,PERSONNEL COMPENSATION,,"SANCHEZ, CARLOS S",2011-07-01,2011-09-30,PRESS ADVISOR,"20,000.01",FISCAL YEAR 2011,,,,"SANCHEZ, CARLOS S"
,OFFICE OF THE MINORITY LEADER,2011Q3,PERSONNEL COMPENSATION,,"SKEWES-COX,CHRISTINA J",2011-07-01,2011-09-30,OUTREACH MGR/SPEC ASST,"3,000.00",FISCAL YEAR 2011,,,,"SKEWES-COX,CHRISTINA J"
,OFFICE OF THE MINORITY LEADER,2011Q3,PERSONNEL COMPENSATION,,"VEITCH, ALEXANDRA N",2011-07-01,2011-09-30,DIRECTOR OF SPEECHWRITING,"28,165.50",FISCAL YEAR 2011,,,,"VEITCH, ALEXANDRA N"
,OFFICE OF THE MINORITY LEADER,2011Q3,PERSONNEL COMPENSATION,,"WEST,JULIUS L",2011-08-22,2011-09-30,DISTRICT ASSISTANT,"4,333.33",FISCAL YEAR 2011,,,,"WEST,JULIUS L"
,OFFICE OF THE MINORITY LEADER,2011Q3,PERSONNEL COMPENSATION,,"WILEDEN,LYDIA",2011-09-06,2011-09-30,STAFF ASSISTANT,"2,291.67",FISCAL YEAR 2011,,,,"WILEDEN,LYDIA"
,OFFICE OF THE MINORITY LEADER,2011Q3,PERSONNEL COMPENSATION,,"WOLTERS, KATE",2011-07-01,2011-09-30,PERSONAL ASSISTANT,"33,680.99",FISCAL YEAR 2011,,,,"WOLTERS, KATE"
,OFFICE OF THE MINORITY LEADER,2011Q3,TRAVEL,2019-07-08,"BERENS,KELLY E",2011-06-25,2011-07-04,COMMERCIAL TRANSPORTATION,477.8,FISCAL YEAR 2011,AP,Accounts payable,210617,"BERENS,KELLY E"
,OFFICE OF THE MINORITY LEADER,2011Q3,TRAVEL,2019-07-08,"SANCHEZ, CARLOS S",2011-06-25,2011-06-28,COMMERCIAL TRANSPORTATION,322.7,FISCAL YEAR 2011,AP,Accounts payable,210618,"SANCHEZ, CARLOS S"
,OFFICE OF THE MINORITY LEADER,2011Q3,TRAVEL,2019-07-14,"WOLTERS, KATE",2011-06-24,2011-06-25,TRAVEL SUBSISTENCE,156.65,FISCAL YEAR 2011,AP,Accounts payable,213531,"WOLTERS, KATE"
,OFFICE OF THE MINORITY LEADER,2011Q3,TRAVEL,2019-07-14,"BARRY, MARY-KATE",2011-06-15,2011-06-15,TAXI/PARKING/TOLLS,20,FISCAL YEAR 2011,AP,Accounts payable,213533,"BARRY, MARY-KATE"
,OFFICE OF THE MINORITY LEADER,2011Q3,TRAVEL,2019-07-14,"BARRY, MARY-KATE",2011-06-17,2011-06-22,PRIVATE AUTO MILEAGE,75.37,FISCAL YEAR 2011,AP,Accounts payable,213535,"BARRY, MARY-KATE"
,OFFICE OF THE MINORITY LEADER,2011Q3,TRAVEL,2019-07-14,"SURGEON,BINA G",2011-06-03,2011-06-22,TAXI/PARKING/TOLLS,93,FISCAL YEAR 2011,AP,Accounts payable,213542,"SURGEON,BINA G"
,OFFICE OF THE MINORITY LEADER,2011Q3,TRAVEL,2019-07-14,CITIBANK GOV CARD SERVICE,2011-06-01,2011-06-22,TRAVEL SUBSISTENCE,155.05,FISCAL YEAR 2011,AP,Accounts payable,214207,CITIBANK GOV CARD SERVICE
,OFFICE OF THE MINORITY LEADER,2011Q3,TRAVEL,2019-07-14,CITIBANK GOV CARD SERVICE,2011-06-03,2011-06-03,TAXI/PARKING/TOLLS,20,FISCAL YEAR 2011,AP,Accounts payable,214210,CITIBANK GOV CARD SERVICE
,OFFICE OF THE MINORITY LEADER,2011Q3,TRAVEL,2019-07-14,CITIBANK GOV CARD SERVICE,2011-06-05,2011-06-26,TRAVEL SUBSISTENCE,"1,557.83",FISCAL YEAR 2011,AP,Accounts payable,214214,CITIBANK GOV CARD SERVICE
,OFFICE OF THE MINORITY LEADER,2011Q3,TRAVEL,2019-07-14,CITIBANK GOV CARD SERVICE,2011-06-01,2011-06-25,COMMERCIAL TRANSPORTATION,"3,434.09",FISCAL YEAR 2011,AP,Accounts payable,214307,CITIBANK GOV CARD SERVICE
,OFFICE OF THE MINORITY LEADER,2011Q3,TRAVEL,2019-07-14,"SANCHEZ, CARLOS S",2011-06-08,2011-06-10,TRAVEL SUBSISTENCE,"1,136.80",FISCAL YEAR 2011,AP,Accounts payable,214730,"SANCHEZ, CARLOS S"
,OFFICE OF THE MINORITY LEADER,2011Q3,TRAVEL,2019-07-20,"BERENS,KELLY E",2011-05-25,2011-07-04,TAXI/PARKING/TOLLS,64,FISCAL YEAR 2011,AP,Accounts payable,217437,"BERENS,KELLY E"
,OFFICE OF THE MINORITY LEADER,2011Q3,TRAVEL,2019-07-20,"BERENS,KELLY E",2011-06-25,2011-06-25,MEALS,4.58,FISCAL YEAR 2011,AP,Accounts payable,217440,"BERENS,KELLY E"
,OFFICE OF THE MINORITY LEADER,2011Q3,TRAVEL,2019-07-20,"LAWRENCE, JOHN A",2011-07-08,2011-07-08,TAXI/PARKING/TOLLS,9,FISCAL YEAR 2011,AP,Accounts payable,217442,"LAWRENCE, JOHN A"
,OFFICE OF THE MINORITY LEADER,2011Q3,TRAVEL,2019-07-28,"WOLTERS, KATE",2011-07-09,2011-07-10,TRAVEL SUBSISTENCE,565.35,FISCAL YEAR 2011,AP,Accounts payable,226248,"WOLTERS, KATE"
,OFFICE OF THE MINORITY LEADER,2011Q3,TRAVEL,2019-07-29,"BERENS, KELLY",2011-06-25,2011-07-04,COMMERCIAL TRANSPORTATION,-144.4,FISCAL YEAR 2011,AR,Accounts receivable,AC-03297,"BERENS, KELLY"
,OFFICE OF THE MINORITY LEADER,2011Q3,TRAVEL,2019-08-10,"WOLTERS, KATE",2011-07-16,2011-07-17,TRAVEL SUBSISTENCE,648.69,FISCAL YEAR 2011,AP,Accounts payable,233912,"WOLTERS, KATE"
,OFFICE OF THE MINORITY LEADER,2011Q3,TRAVEL,2019-08-15,ARCHITECT OF THE CAPITOL,2011-04-01,2011-06-30,GASOLINE,"1,052.30",FISCAL YEAR 2011,AP,Accounts payable,236527,ARCHITECT OF THE CAPITOL
,OFFICE OF THE MINORITY LEADER,2011Q3,TRAVEL,2019-08-16,CITIBANK GOV CARD SERVICE,2011-07-08,2011-07-10,TRAVEL SUBSISTENCE,"1,306.20",FISCAL YEAR 2011,AP,Accounts payable,240019,CITIBANK GOV CARD SERVICE
,OFFICE OF THE MINORITY LEADER,2011Q3,TRAVEL,2019-08-16,CITIBANK GOV CARD SERVICE,2011-07-11,2011-08-16,COMMERCIAL TRANSPORTATION,"1,808.90",FISCAL YEAR 2011,AP,Accounts payable,240022,CITIBANK GOV CARD SERVICE
,OFFICE OF THE MINORITY LEADER,2011Q3,TRAVEL,2019-08-17,"STIVERS, JONATHAN",2011-03-15,2011-07-26,TAXI/PARKING/TOLLS,56,FISCAL YEAR 2011,AP,Accounts payable,240252,"STIVERS, JONATHAN"
,OFFICE OF THE MINORITY LEADER,2011Q3,TRAVEL,2019-08-17,"KERR, STACY",2011-03-12,2011-07-22,TAXI/PARKING/TOLLS,147,FISCAL YEAR 2011,AP,Accounts payable,240253,"KERR, STACY"
,OFFICE OF THE MINORITY LEADER,2011Q3,TRAVEL,2019-08-19,"BARRY, MARY-KATE",2011-07-25,2011-07-26,TAXI/PARKING/TOLLS,32,FISCAL YEAR 2011,AP,Accounts payable,237081,"BARRY, MARY-KATE"
,OFFICE OF THE MINORITY LEADER,2011Q3,TRAVEL,2019-08-19,"FALLON,BRIDGET C",2011-07-25,2011-07-25,TAXI/PARKING/TOLLS,15,FISCAL YEAR 2011,AP,Accounts payable,237084,"FALLON,BRIDGET C"
,OFFICE OF THE MINORITY LEADER,2011Q3,TRAVEL,2019-08-19,"SURGEON,BINA G",2011-07-10,2011-07-31,TAXI/PARKING/TOLLS,150,FISCAL YEAR 2011,AP,Accounts payable,244526,"SURGEON,BINA G"
,OFFICE OF THE MINORITY LEADER,2011Q3,TRAVEL,2019-08-30,CITIBANK GOV CARD SERVICE,2011-08-29,2011-08-29,COMMERCIAL TRANSPORTATION,185.2,FISCAL YEAR 2011,AP,Accounts payable,249926,CITIBANK GOV CARD SERVICE
,OFFICE OF THE MINORITY LEADER,2011Q3,TRAVEL,2019-09-02,"BERENS,KELLY E",2011-07-20,2011-08-04,TRAVEL SUBSISTENCE,76.01,FISCAL YEAR 2011,AP,Accounts payable,251576,"BERENS,KELLY E"
,OFFICE OF THE MINORITY LEADER,2011Q3,TRAVEL,2019-09-02,"WOLTERS, KATE",2011-08-06,2011-08-16,TRAVEL SUBSISTENCE,"2,329.95",FISCAL YEAR 2011,AP,Accounts payable,251583,"WOLTERS, KATE"
,OFFICE OF THE MINORITY LEADER,2011Q3,TRAVEL,2019-09-08,CITIBANK GOV CARD SERVICE,2011-08-05,2011-08-25,TRAVEL SUBSISTENCE,"3,548.96",FISCAL YEAR 2011,AP,Accounts payable,254583,CITIBANK GOV CARD SERVICE
,OFFICE OF THE MINORITY LEADER,2011Q3,TRAVEL,2019-09-13,CITIBANK GOV CARD SERVICE,2011-07-29,2011-08-20,TRAVEL SUBSISTENCE,"2,660.59",FISCAL YEAR 2011,AP,Accounts payable,257846,CITIBANK GOV CARD SERVICE
,OFFICE OF THE MINORITY LEADER,2011Q3,TRAVEL,2019-09-13,CITIBANK GOV CARD SERVICE,2011-07-29,2011-08-30,TRAVEL SUBSISTENCE,"2,927.74",FISCAL YEAR 2011,AP,Accounts payable,257847,CITIBANK GOV CARD SERVICE
,OFFICE OF THE MINORITY LEADER,2011Q3,TRAVEL,2019-09-16,"BARRY, MARY-KATE",2011-08-15,2011-08-19,TRAVEL SUBSISTENCE,80.94,FISCAL YEAR 2011,AP,Accounts payable,262866,"BARRY, MARY-KATE"
,OFFICE OF THE MINORITY LEADER,2011Q3,TRAVEL,2019-09-16,"BARRY, MARY-KATE",2011-08-27,2011-08-29,TRAVEL SUBSISTENCE,10.5,FISCAL YEAR 2011,AP,Accounts payable,262867,"BARRY, MARY-KATE"
,OFFICE OF THE MINORITY LEADER,2011Q3,TRAVEL,2019-09-21,"STIVERS, JONATHAN",2011-08-30,2011-09-01,TAXI/PARKING/TOLLS,102,FISCAL YEAR 2011,AP,Accounts payable,263740,"STIVERS, JONATHAN"
,OFFICE OF THE MINORITY LEADER,2011Q3,TRAVEL,2019-09-21,"BERENS,KELLY E",2011-08-29,2011-08-31,TRAVEL SUBSISTENCE,62.23,FISCAL YEAR 2011,AP,Accounts payable,263743,"BERENS,KELLY E"
,OFFICE OF THE MINORITY LEADER,2011Q3,TRAVEL,2019-09-21,"SURGEON,BINA G",2011-08-04,2011-09-07,TAXI/PARKING/TOLLS,90,FISCAL YEAR 2011,AP,Accounts payable,263745,"SURGEON,BINA G"
,OFFICE OF THE MINORITY LEADER,2011Q3,TRAVEL,2019-09-23,"BARRY, MARY-KATE",2011-09-09,2011-09-09,TAXI/PARKING/TOLLS,32,FISCAL YEAR 2011,AP,Accounts payable,268918,"BARRY, MARY-KATE"
,OFFICE OF THE MINORITY LEADER,2011Q3,TRAVEL,2019-09-26,"WOLTERS, KATE",2011-08-22,2011-09-05,TRAVEL SUBSISTENCE,856.17,FISCAL YEAR 2011,AP,Accounts payable,270528,"WOLTERS, KATE"
,OFFICE OF THE MINORITY LEADER,2011Q3,TRAVEL,2019-09-26,"WOLTERS, KATE",2011-09-10,2011-09-12,TRAVEL SUBSISTENCE,"1,211.10",FISCAL YEAR 2011,AP,Accounts payable,270530,"WOLTERS, KATE"
,OFFICE OF THE MINORITY LEADER,2011Q3,"RENT, COMMUNICATION, UTILITIES",2019-07-14,FEDEX,2011-06-08,2011-06-10,POSTAGE / COURIER / BOX RENTAL,515.38,FISCAL YEAR 2011,AP,Accounts payable,213546,FEDEX
,OFFICE OF THE MINORITY LEADER,2011Q3,"RENT, COMMUNICATION, UTILITIES",2019-07-15,CITIBANK GOV CARD SERVICE,2011-06-11,2011-06-17,RECORDING (OUTSIDE),45.38,FISCAL YEAR 2011,AP,Accounts payable,214305,CITIBANK GOV CARD SERVICE
,OFFICE OF THE MINORITY LEADER,2011Q3,"RENT, COMMUNICATION, UTILITIES",2019-07-21,FEDEX,2011-06-10,2011-06-10,POSTAGE / COURIER / BOX RENTAL,5.53,FISCAL YEAR 2011,AP,Accounts payable,222590,FEDEX
,OFFICE OF THE MINORITY LEADER,2011Q3,"RENT, COMMUNICATION, UTILITIES",2019-07-28,FEDEX,2011-06-23,2011-06-23,POSTAGE / COURIER / BOX RENTAL,4.75,FISCAL YEAR 2011,AP,Accounts payable,226254,FEDEX
,OFFICE OF THE MINORITY LEADER,2011Q3,"RENT, COMMUNICATION, UTILITIES",2019-07-28,FEDEX,2011-06-25,2011-06-25,POSTAGE / COURIER / BOX RENTAL,3.71,FISCAL YEAR 2011,AP,Accounts payable,226256,FEDEX
,OFFICE OF THE MINORITY LEADER,2011Q3,"RENT, COMMUNICATION, UTILITIES",2019-08-10,FEDEX,2011-06-25,2011-06-30,POSTAGE / COURIER / BOX RENTAL,54.67,FISCAL YEAR 2011,AP,Accounts payable,233921,FEDEX
,OFFICE OF THE MINORITY LEADER,2011Q3,"RENT, COMMUNICATION, UTILITIES",2019-08-16,CITIBANK GOV CARD SERVICE,2011-07-11,2011-07-17,RECORDING (OUTSIDE),45.38,FISCAL YEAR 2011,AP,Accounts payable,239943,CITIBANK GOV CARD SERVICE
,OFFICE OF THE MINORITY LEADER,2011Q3,"RENT, COMMUNICATION, UTILITIES",2019-08-19,FEDERAL EXPRESS,2011-07-08,2011-07-08,POSTAGE / COURIER / BOX RENTAL,50.4,FISCAL YEAR 2011,AP,Accounts payable,237071,FEDERAL EXPRESS
,OFFICE OF THE MINORITY LEADER,2011Q3,"RENT, COMMUNICATION, UTILITIES",2019-09-09,FEDERAL EXPRESS,2011-07-15,2011-07-15,POSTAGE / COURIER / BOX RENTAL,13.85,FISCAL YEAR 2011,AP,Accounts payable,256027,FEDERAL EXPRESS
,OFFICE OF THE MINORITY LEADER,2011Q3,"RENT, COMMUNICATION, UTILITIES",2019-09-09,FEDERAL EXPRESS,2011-07-15,2011-07-15,POSTAGE / COURIER / BOX RENTAL,32.18,FISCAL YEAR 2011,AP,Accounts payable,256028,FEDERAL EXPRESS
,OFFICE OF THE MINORITY LEADER,2011Q3,"RENT, COMMUNICATION, UTILITIES",2019-09-14,CITIBANK GOV CARD SERVICE,2011-08-11,2011-08-17,RECORDING (OUTSIDE),45.38,FISCAL YEAR 2011,AP,Accounts payable,258797,CITIBANK GOV CARD SERVICE
,OFFICE OF THE MINORITY LEADER,2011Q3,"RENT, COMMUNICATION, UTILITIES",2019-09-23,FEDERAL EXPRESS,2011-08-09,2011-08-12,POSTAGE / COURIER / BOX RENTAL,57.88,FISCAL YEAR 2011,AP,Accounts payable,268920,FEDERAL EXPRESS
,OFFICE OF THE MINORITY LEADER,2011Q3,PRINTING AND REPRODUCTION,2019-07-27,,2011-07-01,2011-07-31,PHOTOGRAPHIC (TRANSFER),475.1,FISCAL YEAR 2011,GL,General ledger,PIX0010657,
,OFFICE OF THE MINORITY LEADER,2011Q3,PRINTING AND REPRODUCTION,2019-07-28,"BARRY, MARY-KATE",2011-07-09,2011-07-09,PRINTING & REPRODUCTION,37.02,FISCAL YEAR 2011,AP,Accounts payable,226250,"BARRY, MARY-KATE"
,OFFICE OF THE MINORITY LEADER,2011Q3,PRINTING AND REPRODUCTION,2019-07-28,"DAVID L. ANDRUKITUS, INC",2011-07-13,2011-07-13,PRINTING & REPRODUCTION,127.5,FISCAL YEAR 2011,AP,Accounts payable,226261,"DAVID L. ANDRUKITUS, INC"
,OFFICE OF THE MINORITY LEADER,2011Q3,PRINTING AND REPRODUCTION,2019-07-28,"DAVID L. ANDRUKITUS, INC",2011-07-13,2011-07-13,PRINTING & REPRODUCTION,507.5,FISCAL YEAR 2011,AP,Accounts payable,226262,"DAVID L. ANDRUKITUS, INC"
,OFFICE OF THE MINORITY LEADER,2011Q3,PRINTING AND REPRODUCTION,2019-07-28,"DAVID L. ANDRUKITUS, INC",2011-07-13,2011-07-13,PRINTING & REPRODUCTION,507.5,FISCAL YEAR 2011,AP,Accounts payable,226264,"DAVID L. ANDRUKITUS, INC"
,OFFICE OF THE MINORITY LEADER,2011Q3,PRINTING AND REPRODUCTION,2019-08-26,,2011-08-01,2011-08-31,PHOTOGRAPHIC (TRANSFER),206.62,FISCAL YEAR 2011,GL,General ledger,PIX0011623,
,OFFICE OF THE MINORITY LEADER,2011Q3,PRINTING AND REPRODUCTION,2019-09-26,,2011-09-01,2011-09-30,PHOTOGRAPHIC (TRANSFER),285.5,FISCAL YEAR 2011,GL,General ledger,PIX0012578,
,OFFICE OF THE MINORITY LEADER,2011Q3,OTHER SERVICES,2019-07-14,BERNARD RAIMO,2011-06-01,2011-06-30,CONSULTANT CONTRACT SERVICE,"7,628.00",FISCAL YEAR 2011,AP,Accounts payable,213539,BERNARD RAIMO
,OFFICE OF THE MINORITY LEADER,2011Q3,OTHER SERVICES,2019-07-21,"NEAL R. GROSS & CO, INC",2011-07-07,2011-07-07,STENOGRAPHIC REPORTING,"1,500.00",FISCAL YEAR 2011,AP,Accounts payable,222583,"NEAL R. GROSS & CO, INC"
,OFFICE OF THE MINORITY LEADER,2011Q3,OTHER SERVICES,2019-07-27,BLACKBAUD,2011-06-06,2011-07-05,"WEB DEV HST,EMAIL & RLTD SERV","-3,092.25",FISCAL YEAR 2011,AP,Accounts payable,225795,BLACKBAUD
,OFFICE OF THE MINORITY LEADER,2011Q3,OTHER SERVICES,2019-07-27,BLACKBAUD,2011-05-06,2011-06-05,"WEB DEV HST,EMAIL & RLTD SERV","-3,092.25",FISCAL YEAR 2011,AP,Accounts payable,225804,BLACKBAUD
,OFFICE OF THE MINORITY LEADER,2011Q3,OTHER SERVICES,2019-08-08,BERNARD RAIMO,2011-07-01,2011-07-31,CONSULTANT CONTRACT SERVICE,"7,628.00",FISCAL YEAR 2011,AP,Accounts payable,232492,BERNARD RAIMO
,OFFICE OF THE MINORITY LEADER,2011Q3,OTHER SERVICES,2019-08-17,"NEAL R. GROSS & CO, INC",2011-08-03,2011-08-03,STENOGRAPHIC REPORTING,750,FISCAL YEAR 2011,AP,Accounts payable,240260,"NEAL R. GROSS & CO, INC"
,OFFICE OF THE MINORITY LEADER,2011Q3,OTHER SERVICES,2019-08-19,"NEAL R. GROSS & CO, INC",2011-07-26,2011-07-26,STENOGRAPHIC REPORTING,"1,500.00",FISCAL YEAR 2011,AP,Accounts payable,244496,"NEAL R. GROSS & CO, INC"
,OFFICE OF THE MINORITY LEADER,2011Q3,OTHER SERVICES,2019-08-22,CITIBANK GOV CARD SERVICE,2011-05-29,2011-06-28,LAUNDRY SERVICES,42.44,FISCAL YEAR 2011,AP,Accounts payable,245209,CITIBANK GOV CARD SERVICE
,OFFICE OF THE MINORITY LEADER,2011Q3,OTHER SERVICES,2019-09-02,BERNARD RAIMO,2011-08-01,2011-08-31,CONSULTANT CONTRACT SERVICE,"7,628.00",FISCAL YEAR 2011,AP,Accounts payable,251595,BERNARD RAIMO
,OFFICE OF THE MINORITY LEADER,2011Q3,OTHER SERVICES,2019-09-09,TRILOGY INTERACTIVE LLC,2011-07-01,2011-07-31,TECHNOLOGY SERVICE CONTRACTS,175,FISCAL YEAR 2011,AP,Accounts payable,256019,TRILOGY INTERACTIVE LLC
,OFFICE OF THE MINORITY LEADER,2011Q3,OTHER SERVICES,2019-09-09,TRILOGY INTERACTIVE LLC,2011-08-01,2011-08-31,TECHNOLOGY SERVICE CONTRACTS,175,FISCAL YEAR 2011,AP,Accounts payable,256020,TRILOGY INTERACTIVE LLC
,OFFICE OF THE MINORITY LEADER,2011Q3,OTHER SERVICES,2019-09-09,BLACKBAUD,2011-08-06,2011-09-05,"WEB DEV HST,EMAIL & RLTD SERV","3,092.25",FISCAL YEAR 2011,AP,Accounts payable,256022,BLACKBAUD
,OFFICE OF THE MINORITY LEADER,2011Q3,SUPPLIES AND MATERIALS,2019-07-01,NATIONAL NEWS,2011-07-01,2011-09-30,PUBLICATIONS/REFERENCE MAT'L,485.1,FISCAL YEAR 2011,AP,Accounts payable,208024,NATIONAL NEWS
,OFFICE OF THE MINORITY LEADER,2011Q3,SUPPLIES AND MATERIALS,2019-07-01,BLOOMBERG FINANCE LP,2011-06-20,2011-06-20,PUBLICATIONS/REFERENCE MAT'L,"1,000.00",FISCAL YEAR 2011,AP,Accounts payable,208025,BLOOMBERG FINANCE LP
,OFFICE OF THE MINORITY LEADER,2011Q3,SUPPLIES AND MATERIALS,2019-07-07,MILLICENT BLUFORD,2011-06-13,2011-06-13,HABITATION EXPENSE,250,FISCAL YEAR 2011,AP,Accounts payable,200047,MILLICENT BLUFORD
,OFFICE OF THE MINORITY LEADER,2011Q3,SUPPLIES AND MATERIALS,2019-07-14,BURRELLES LUCE,2011-06-01,2011-06-30,PUBLICATIONS/REFERENCE MAT'L,447.52,FISCAL YEAR 2011,AP,Accounts payable,213543,BURRELLES LUCE
,OFFICE OF THE MINORITY LEADER,2011Q3,SUPPLIES AND MATERIALS,2019-07-14,MILLICENT BLUFORD,2011-06-21,2011-06-21,HABITATION EXPENSE,250,FISCAL YEAR 2011,AP,Accounts payable,213549,MILLICENT BLUFORD
,OFFICE OF THE MINORITY LEADER,2011Q3,SUPPLIES AND MATERIALS,2019-07-14,CAPITOLHOST,2011-06-01,2011-06-01,FOOD & BEVERAGE,49.5,FISCAL YEAR 2011,AP,Accounts payable,213556,CAPITOLHOST
,OFFICE OF THE MINORITY LEADER,2011Q3,SUPPLIES AND MATERIALS,2019-07-14,CAPITOLHOST,2011-06-03,2011-06-03,FOOD & BEVERAGE,49.5,FISCAL YEAR 2011,AP,Accounts payable,213559,CAPITOLHOST
,OFFICE OF THE MINORITY LEADER,2011Q3,SUPPLIES AND MATERIALS,2019-07-15,CITIBANK GOV CARD SERVICE,2011-05-31,2011-06-22,FOOD & BEVERAGE,"1,044.53",FISCAL YEAR 2011,AP,Accounts payable,214299,CITIBANK GOV CARD SERVICE
,OFFICE OF THE MINORITY LEADER,2011Q3,SUPPLIES AND MATERIALS,2019-07-20,"BARRY, MARY-KATE",2011-06-24,2011-06-24,FOOD & BEVERAGE,300.8,FISCAL YEAR 2011,AP,Accounts payable,217435,"BARRY, MARY-KATE"
,OFFICE OF THE MINORITY LEADER,2011Q3,SUPPLIES AND MATERIALS,2019-07-21,CAPITOLHOST,2011-06-15,2011-06-15,FOOD & BEVERAGE,49.5,FISCAL YEAR 2011,AP,Accounts payable,222558,CAPITOLHOST
,OFFICE OF THE MINORITY LEADER,2011Q3,SUPPLIES AND MATERIALS,2019-07-21,CAPITOLHOST,2011-06-15,2011-06-15,FOOD & BEVERAGE,67.5,FISCAL YEAR 2011,AP,Accounts payable,222561,CAPITOLHOST
,OFFICE OF THE MINORITY LEADER,2011Q3,SUPPLIES AND MATERIALS,2019-07-21,CAPITOLHOST,2011-06-15,2011-06-15,FOOD & BEVERAGE,33,FISCAL YEAR 2011,AP,Accounts payable,222564,CAPITOLHOST
,OFFICE OF THE MINORITY LEADER,2011Q3,SUPPLIES AND MATERIALS,2019-07-21,CAPITOLHOST,2011-06-16,2011-06-16,FOOD & BEVERAGE,66,FISCAL YEAR 2011,AP,Accounts payable,222566,CAPITOLHOST
,OFFICE OF THE MINORITY LEADER,2011Q3,SUPPLIES AND MATERIALS,2019-07-21,CAPITOLHOST,2011-06-22,2011-06-22,FOOD & BEVERAGE,33,FISCAL YEAR 2011,AP,Accounts payable,222570,CAPITOLHOST
,OFFICE OF THE MINORITY LEADER,2011Q3,SUPPLIES AND MATERIALS,2019-07-21,CAPITOLHOST,2011-06-23,2011-06-23,FOOD & BEVERAGE,607.64,FISCAL YEAR 2011,AP,Accounts payable,222574,CAPITOLHOST
,OFFICE OF THE MINORITY LEADER,2011Q3,SUPPLIES AND MATERIALS,2019-07-21,MILLICENT BLUFORD,2011-07-06,2011-07-06,HABITATION EXPENSE,250,FISCAL YEAR 2011,AP,Accounts payable,222577,MILLICENT BLUFORD
,OFFICE OF THE MINORITY LEADER,2011Q3,SUPPLIES AND MATERIALS,2019-07-21,"EFE NEWS SERVICE, INC",2011-07-01,2011-07-31,PUBLICATIONS/REFERENCE MAT'L,561.15,FISCAL YEAR 2011,AP,Accounts payable,222580,"EFE NEWS SERVICE, INC"
,OFFICE OF THE MINORITY LEADER,2011Q3,SUPPLIES AND MATERIALS,2019-07-21,CRYSTAL SPRINGS,2011-06-01,2011-06-30,FOOD & BEVERAGE,338.04,FISCAL YEAR 2011,AP,Accounts payable,222587,CRYSTAL SPRINGS
,OFFICE OF THE MINORITY LEADER,2011Q3,SUPPLIES AND MATERIALS,2019-07-28,HAGUE QUALITY WATER OF MD INC,2011-07-01,2011-07-31,WATER,378,FISCAL YEAR 2011,AP,Accounts payable,226252,HAGUE QUALITY WATER OF MD INC
,OFFICE OF THE MINORITY LEADER,2011Q3,SUPPLIES AND MATERIALS,2019-07-28,MILLICENT BLUFORD,2011-07-11,2011-07-11,HABITATION EXPENSE,250,FISCAL YEAR 2011,AP,Accounts payable,226258,MILLICENT BLUFORD
,OFFICE OF THE MINORITY LEADER,2011Q3,SUPPLIES AND MATERIALS,2019-08-10,MILLICENT BLUFORD,2011-07-19,2011-07-19,HABITATION EXPENSE,250,FISCAL YEAR 2011,AP,Accounts payable,233915,MILLICENT BLUFORD
,OFFICE OF THE MINORITY LEADER,2011Q3,SUPPLIES AND MATERIALS,2019-08-10,MILLICENT BLUFORD,2011-07-26,2011-07-26,HABITATION EXPENSE,250,FISCAL YEAR 2011,AP,Accounts payable,233918,MILLICENT BLUFORD
,OFFICE OF THE MINORITY LEADER,2011Q3,SUPPLIES AND MATERIALS,2019-08-16,CITIBANK GOV CARD SERVICE,2011-06-30,2011-07-27,FOOD & BEVERAGE,"1,161.86",FISCAL YEAR 2011,AP,Accounts payable,239934,CITIBANK GOV CARD SERVICE
,OFFICE OF THE MINORITY LEADER,2011Q3,SUPPLIES AND MATERIALS,2019-08-16,CITIBANK GOV CARD SERVICE,2011-07-25,2011-07-25,PUBLICATIONS/REFERENCE MAT'L,3.75,FISCAL YEAR 2011,AP,Accounts payable,239939,CITIBANK GOV CARD SERVICE
,OFFICE OF THE MINORITY LEADER,2011Q3,SUPPLIES AND MATERIALS,2019-08-16,CITIBANK GOV CARD SERVICE,2011-07-21,2011-07-25,OFFICE SUPPLIES (OUTSIDE),191.45,FISCAL YEAR 2011,AP,Accounts payable,239947,CITIBANK GOV CARD SERVICE
,OFFICE OF THE MINORITY LEADER,2011Q3,SUPPLIES AND MATERIALS,2019-08-17,BURRELLES LUCE,2011-07-01,2011-07-31,PUBLICATIONS/REFERENCE MAT'L,406.19,FISCAL YEAR 2011,AP,Accounts payable,240243,BURRELLES LUCE
,OFFICE OF THE MINORITY LEADER,2011Q3,SUPPLIES AND MATERIALS,2019-08-17,NATIONAL NEWS,2011-10-01,2011-12-31,PUBLICATIONS/REFERENCE MAT'L,477.75,FISCAL YEAR 2011,AP,Accounts payable,240246,NATIONAL NEWS
,OFFICE OF THE MINORITY LEADER,2011Q3,SUPPLIES AND MATERIALS,2019-08-17,"EFE NEWS SERVICE, INC",2011-08-01,2011-08-31,PUBLICATIONS/REFERENCE MAT'L,561.15,FISCAL YEAR 2011,AP,Accounts payable,240249,"EFE NEWS SERVICE, INC"
,OFFICE OF THE MINORITY LEADER,2011Q3,SUPPLIES AND MATERIALS,2019-08-17,"KERR, STACY",2011-04-07,2011-04-07,FOOD & BEVERAGE,23.3,FISCAL YEAR 2011,AP,Accounts payable,240256,"KERR, STACY"
,OFFICE OF THE MINORITY LEADER,2011Q3,SUPPLIES AND MATERIALS,2019-08-17,CAPITOLHOST,2011-07-13,2011-07-13,FOOD & BEVERAGE,49.5,FISCAL YEAR 2011,AP,Accounts payable,240258,CAPITOLHOST
,OFFICE OF THE MINORITY LEADER,2011Q3,SUPPLIES AND MATERIALS,2019-08-19,BNA,2011-10-17,2012-10-16,PUBLICATIONS/REFERENCE MAT'L,"15,632.00",FISCAL YEAR 2011,AP,Accounts payable,237077,BNA
,OFFICE OF THE MINORITY LEADER,2011Q3,SUPPLIES AND MATERIALS,2019-08-22,CITIBANK GOV CARD SERVICE,2011-05-29,2011-06-28,OFFICE SUPPLIES (OUTSIDE),125.05,FISCAL YEAR 2011,AP,Accounts payable,245203,CITIBANK GOV CARD SERVICE
,OFFICE OF THE MINORITY LEADER,2011Q3,SUPPLIES AND MATERIALS,2019-08-22,CITIBANK GOV CARD SERVICE,2011-05-29,2011-06-28,PUBLICATIONS/REFERENCE MAT'L,950,FISCAL YEAR 2011,AP,Accounts payable,245205,CITIBANK GOV CARD SERVICE
,OFFICE OF THE MINORITY LEADER,2011Q3,SUPPLIES AND MATERIALS,2019-08-22,CAPITOLHOST,2011-06-01,2011-06-01,FOOD & BEVERAGE,89.99,FISCAL YEAR 2011,AP,Accounts payable,245211,CAPITOLHOST
,OFFICE OF THE MINORITY LEADER,2011Q3,SUPPLIES AND MATERIALS,2019-08-23,CAPITOLHOST,2011-06-01,2011-06-01,FOOD & BEVERAGE,70.5,FISCAL YEAR 2011,AP,Accounts payable,245898,CAPITOLHOST
,OFFICE OF THE MINORITY LEADER,2011Q3,SUPPLIES AND MATERIALS,2019-08-23,CAPITOLHOST,2011-06-02,2011-06-02,FOOD & BEVERAGE,28.2,FISCAL YEAR 2011,AP,Accounts payable,245900,CAPITOLHOST
,OFFICE OF THE MINORITY LEADER,2011Q3,SUPPLIES AND MATERIALS,2019-08-23,CAPITOLHOST,2011-06-03,2011-06-03,FOOD & BEVERAGE,56.4,FISCAL YEAR 2011,AP,Accounts payable,245901,CAPITOLHOST
,OFFICE OF THE MINORITY LEADER,2011Q3,SUPPLIES AND MATERIALS,2019-08-23,CAPITOLHOST,2011-06-08,2011-06-08,FOOD & BEVERAGE,134.48,FISCAL YEAR 2011,AP,Accounts payable,245903,CAPITOLHOST
,OFFICE OF THE MINORITY LEADER,2011Q3,SUPPLIES AND MATERIALS,2019-08-23,CAPITOLHOST,2011-06-14,2011-06-14,FOOD & BEVERAGE,137.39,FISCAL YEAR 2011,AP,Accounts payable,245905,CAPITOLHOST
,OFFICE OF THE MINORITY LEADER,2011Q3,SUPPLIES AND MATERIALS,2019-08-23,CAPITOLHOST,2011-07-20,2011-07-20,FOOD & BEVERAGE,49.5,FISCAL YEAR 2011,AP,Accounts payable,245941,CAPITOLHOST
,OFFICE OF THE MINORITY LEADER,2011Q3,SUPPLIES AND MATERIALS,2019-08-23,CAPITOLHOST,2011-07-26,2011-07-26,FOOD & BEVERAGE,135,FISCAL YEAR 2011,AP,Accounts payable,245945,CAPITOLHOST
,OFFICE OF THE MINORITY LEADER,2011Q3,SUPPLIES AND MATERIALS,2019-08-23,CAPITOLHOST,2011-07-27,2011-07-27,FOOD & BEVERAGE,136.44,FISCAL YEAR 2011,AP,Accounts payable,245947,CAPITOLHOST
,OFFICE OF THE MINORITY LEADER,2011Q3,SUPPLIES AND MATERIALS,2019-08-23,CAPITOLHOST,2011-06-15,2011-06-15,FOOD & BEVERAGE,89.99,FISCAL YEAR 2011,AP,Accounts payable,245949,CAPITOLHOST
,OFFICE OF THE MINORITY LEADER,2011Q3,SUPPLIES AND MATERIALS,2019-08-23,CAPITOLHOST,2011-06-16,2011-06-16,FOOD & BEVERAGE,28.2,FISCAL YEAR 2011,AP,Accounts payable,245951,CAPITOLHOST
,OFFICE OF THE MINORITY LEADER,2011Q3,SUPPLIES AND MATERIALS,2019-08-23,CAPITOLHOST,2011-06-17,2011-06-17,FOOD & BEVERAGE,206.1,FISCAL YEAR 2011,AP,Accounts payable,245953,CAPITOLHOST
,OFFICE OF THE MINORITY LEADER,2011Q3,SUPPLIES AND MATERIALS,2019-08-23,CAPITOLHOST,2011-06-23,2011-06-23,FOOD & BEVERAGE,28.2,FISCAL YEAR 2011,AP,Accounts payable,245957,CAPITOLHOST
,OFFICE OF THE MINORITY LEADER,2011Q3,SUPPLIES AND MATERIALS,2019-08-23,CAPITOLHOST,2011-06-24,2011-06-24,FOOD & BEVERAGE,206.09,FISCAL YEAR 2011,AP,Accounts payable,245963,CAPITOLHOST
,OFFICE OF THE MINORITY LEADER,2011Q3,SUPPLIES AND MATERIALS,2019-08-23,CAPITOLHOST,2011-06-24,2011-06-24,FOOD & BEVERAGE,67.5,FISCAL YEAR 2011,AP,Accounts payable,246146,CAPITOLHOST
,OFFICE OF THE MINORITY LEADER,2011Q3,SUPPLIES AND MATERIALS,2019-08-23,CAPITOLHOST,2011-07-01,2011-07-01,FOOD & BEVERAGE,56.4,FISCAL YEAR 2011,AP,Accounts payable,246147,CAPITOLHOST
,OFFICE OF THE MINORITY LEADER,2011Q3,SUPPLIES AND MATERIALS,2019-08-24,CITIBANK GOV CARD SERVICE,2011-05-29,2011-06-28,FOOD & BEVERAGE,"5,794.10",FISCAL YEAR 2011,AP,Accounts payable,245200,CITIBANK GOV CARD SERVICE
,OFFICE OF THE MINORITY LEADER,2011Q3,SUPPLIES AND MATERIALS,2019-08-25,OCCASIONS CATERERS,2011-07-26,2011-07-26,FOOD & BEVERAGE,760.85,FISCAL YEAR 2011,AP,Accounts payable,247026,OCCASIONS CATERERS
,OFFICE OF THE MINORITY LEADER,2011Q3,SUPPLIES AND MATERIALS,2019-09-09,CAPITOLHOST,2011-08-04,2011-08-04,FOOD & BEVERAGE,49.5,FISCAL YEAR 2011,AP,Accounts payable,256023,CAPITOLHOST
,OFFICE OF THE MINORITY LEADER,2011Q3,SUPPLIES AND MATERIALS,2019-09-09,HAGUE QUALITY WATER,2011-08-01,2011-08-31,WATER,378,FISCAL YEAR 2011,AP,Accounts payable,256025,HAGUE QUALITY WATER
,OFFICE OF THE MINORITY LEADER,2011Q3,SUPPLIES AND MATERIALS,2019-09-09,"SOUTHWEST DISTRIBUTION, INC",2011-10-01,2011-12-31,PUBLICATIONS/REFERENCE MAT'L,"3,473.60",FISCAL YEAR 2011,AP,Accounts payable,256026,"SOUTHWEST DISTRIBUTION, INC"
,OFFICE OF THE MINORITY LEADER,2011Q3,SUPPLIES AND MATERIALS,2019-09-14,CITIBANK GOV CARD SERVICE,2011-07-28,2011-08-05,FOOD & BEVERAGE,673.6,FISCAL YEAR 2011,AP,Accounts payable,258791,CITIBANK GOV CARD SERVICE
,OFFICE OF THE MINORITY LEADER,2011Q3,SUPPLIES AND MATERIALS,2019-09-14,BURRELLES LUCE,2011-08-01,2011-08-31,PUBLICATIONS/REFERENCE MAT'L,480.97,FISCAL YEAR 2011,AP,Accounts payable,258984,BURRELLES LUCE
,OFFICE OF THE MINORITY LEADER,2011Q3,SUPPLIES AND MATERIALS,2019-09-14,MILLICENT BLUFORD,2011-08-01,2011-08-31,HABITATION EXPENSE,250,FISCAL YEAR 2011,AP,Accounts payable,258986,MILLICENT BLUFORD
,OFFICE OF THE MINORITY LEADER,2011Q3,SUPPLIES AND MATERIALS,2019-09-22,CITIBANK GOV CARD SERVICE,2011-07-21,2011-07-25,OFFICE SUPPLIES (OUTSIDE),-191.45,FISCAL YEAR 2011,AP,Accounts payable,268914,CITIBANK GOV CARD SERVICE
,OFFICE OF THE MINORITY LEADER,2011Q3,SUPPLIES AND MATERIALS,2019-09-23,CRYSTAL SPRINGS,2011-07-01,2011-07-31,FOOD & BEVERAGE,"1,225.04",FISCAL YEAR 2011,AP,Accounts payable,268922,CRYSTAL SPRINGS
,OFFICE OF THE MINORITY LEADER,2011Q3,SUPPLIES AND MATERIALS,2019-09-23,"EFE NEWS SERVICE, INC",2011-09-01,2011-09-30,PUBLICATIONS/REFERENCE MAT'L,561.15,FISCAL YEAR 2011,AP,Accounts payable,268924,"EFE NEWS SERVICE, INC"
,OFFICE OF THE MINORITY LEADER,2011Q3,SUPPLIES AND MATERIALS,2019-09-26,CAPITOL HOST,2011-07-21,2011-07-21,FOOD & BEVERAGE,257.39,FISCAL YEAR 2011,AP,Accounts payable,270512,CAPITOL HOST
,OFFICE OF THE MINORITY LEADER,2011Q3,SUPPLIES AND MATERIALS,2019-09-26,CAPITOL HOST,2011-07-22,2011-07-22,FOOD & BEVERAGE,56.4,FISCAL YEAR 2011,AP,Accounts payable,270514,CAPITOL HOST
,OFFICE OF THE MINORITY LEADER,2011Q3,SUPPLIES AND MATERIALS,2019-09-26,CAPITOL HOST,2011-07-25,2011-07-25,FOOD & BEVERAGE,28.2,FISCAL YEAR 2011,AP,Accounts payable,270515,CAPITOL HOST
,OFFICE OF THE MINORITY LEADER,2011Q3,SUPPLIES AND MATERIALS,2019-09-26,CAPITOL HOST,2011-07-28,2011-07-28,FOOD & BEVERAGE,28.2,FISCAL YEAR 2011,AP,Accounts payable,270517,CAPITOL HOST
,OFFICE OF THE MINORITY LEADER,2011Q3,SUPPLIES AND MATERIALS,2019-09-26,CAPITOL HOST,2011-07-25,2011-07-25,FOOD & BEVERAGE,89.99,FISCAL YEAR 2011,AP,Accounts payable,270519,CAPITOL HOST
,OFFICE OF THE MINORITY LEADER,2011Q3,SUPPLIES AND MATERIALS,2019-09-26,CAPITOL HOST,2011-07-07,2011-07-07,FOOD & BEVERAGE,28.2,FISCAL YEAR 2011,AP,Accounts payable,270520,CAPITOL HOST
,OFFICE OF THE MINORITY LEADER,2011Q3,SUPPLIES AND MATERIALS,2019-09-26,CAPITOL HOST,2011-07-08,2011-07-08,FOOD & BEVERAGE,56.4,FISCAL YEAR 2011,AP,Accounts payable,270521,CAPITOL HOST
,OFFICE OF THE MINORITY LEADER,2011Q3,SUPPLIES AND MATERIALS,2019-09-26,CAPITOL HOST,2011-07-11,2011-07-11,FOOD & BEVERAGE,84,FISCAL YEAR 2011,AP,Accounts payable,270523,CAPITOL HOST
,OFFICE OF THE MINORITY LEADER,2011Q3,SUPPLIES AND MATERIALS,2019-09-26,CAPITOL HOST,2011-07-21,2011-07-21,FOOD & BEVERAGE,28.2,FISCAL YEAR 2011,AP,Accounts payable,270524,CAPITOL HOST
,OFFICE OF THE MINORITY LEADER,2011Q3,SUPPLIES AND MATERIALS,2019-09-26,CAPITOL HOST,2011-07-20,2011-07-20,FOOD & BEVERAGE,89.99,FISCAL YEAR 2011,AP,Accounts payable,270526,CAPITOL HOST
,OFFICE OF THE MINORITY LEADER,2011Q3,SUPPLIES AND MATERIALS,2019-09-27,MILLICENT BLUFORD,2011-09-12,2011-09-12,HABITATION EXPENSE,250,FISCAL YEAR 2011,AP,Accounts payable,269853,MILLICENT BLUFORD
,OFFICE OF THE MINORITY LEADER,2011Q3,EQUIPMENT,2019-07-27,METRO DATA NETWORKS,2011-06-08,2011-06-08,"COMPUTER SOFTW PURCH LESS THAN $10,000 QTY - 4","3,400.00",FISCAL YEAR 2011,AP,Accounts payable,225936,METRO DATA NETWORKS
,OFFICE OF THE MINORITY LEADER,2011Q3,SUPPLIES AND MATERIALS,2019-07-01,CAPITOLHOST,2011-03-02,2011-03-02,FOOD & BEVERAGE,66,FISCAL YEAR 2011,AP,Accounts payable,208026,CAPITOLHOST
,OFFICE OF THE MINORITY LEADER,2011Q3,SUPPLIES AND MATERIALS,2019-07-01,CAPITOLHOST,2011-03-02,2011-03-02,FOOD & BEVERAGE,225,FISCAL YEAR 2011,AP,Accounts payable,208028,CAPITOLHOST
,OFFICE OF THE MINORITY LEADER,2011Q3,SUPPLIES AND MATERIALS,2019-07-01,CAPITOLHOST,2011-03-16,2011-03-16,PUBLICATIONS/REFERENCE MAT'L,49.5,FISCAL YEAR 2011,AP,Accounts payable,208029,CAPITOLHOST
,OFFICE OF THE MINORITY LEADER,2011Q3,SUPPLIES AND MATERIALS,2019-07-01,CAPITOLHOST,2011-05-11,2011-05-11,FOOD & BEVERAGE,49.5,FISCAL YEAR 2011,AP,Accounts payable,208033,CAPITOLHOST
,OFFICE OF THE MINORITY LEADER,2011Q3,SUPPLIES AND MATERIALS,2019-07-14,OCCASIONS CATERERS,2011-05-05,2011-05-05,FOOD & BEVERAGE,"4,051.20",FISCAL YEAR 2011,AP,Accounts payable,213553,OCCASIONS CATERERS
,OFFICE OF THE MINORITY LEADER,2011Q3,SUPPLIES AND MATERIALS,2019-07-14,OCCASIONS CATERERS,2011-05-04,2011-05-04,FOOD & BEVERAGE,"1,124.00",FISCAL YEAR 2011,AP,Accounts payable,213555,OCCASIONS CATERERS
,OFFICE OF THE MAJORITY WHIP,2011Q3,PERSONNEL COMPENSATION,,"BERRY,TIMOTHY J",2011-07-01,2011-09-30,CHIEF OF STAFF,"43,125.00",FISCAL YEAR 2011,,,,"BERRY,TIMOTHY J"
,OFFICE OF THE MAJORITY WHIP,2011Q3,PERSONNEL COMPENSATION,,"MIN, JAMES B",2011-07-01,2011-09-30,DEPUTY CHIEF OF STAFF,"32,000.01",FISCAL YEAR 2011,,,,"MIN, JAMES B"
,OFFICE OF THE MAJORITY WHIP,2011Q3,PERSONNEL COMPENSATION,,"PINKOS,STEPHEN M",2011-07-01,2011-09-30,POLICY DIR AND GENERAL COUNSEL,"42,000.00",FISCAL YEAR 2011,,,,"PINKOS,STEPHEN M"
,OFFICE OF THE MAJORITY WHIP,2011Q3,PERSONNEL COMPENSATION,,"BARNES,FREDERIC W",2011-07-01,2011-09-30,FLOOR ASSISTANT,"14,500.00",FISCAL YEAR 2011,,,,"BARNES,FREDERIC W"
,OFFICE OF THE MAJORITY WHIP,2011Q3,PERSONNEL COMPENSATION,,"BUCHANAN,NATALIE L",2011-07-01,2011-09-30,DEP DIR OF MEM SERV & COALITIO,"19,250.00",FISCAL YEAR 2011,,,,"BUCHANAN,NATALIE L"
,OFFICE OF THE MAJORITY WHIP,2011Q3,PERSONNEL COMPENSATION,,"CAREY,BRITTANY M",2011-07-01,2011-09-30,STAFF ASSISTANT,"11,500.00",FISCAL YEAR 2011,,,,"CAREY,BRITTANY M"
,OFFICE OF THE MAJORITY WHIP,2011Q3,PERSONNEL COMPENSATION,,"DIXON, KELLY A",2011-07-01,2011-09-30,DEPUTY DIRECTOR OF FLOOR OPERA,"26,500.00",FISCAL YEAR 2011,,,,"DIXON, KELLY A"
,OFFICE OF THE MAJORITY WHIP,2011Q3,PERSONNEL COMPENSATION,,"ELLIOTT,ERICA L",2011-07-01,2011-09-30,PRESS SECRETARY,"29,500.00",FISCAL YEAR 2011,,,,"ELLIOTT,ERICA L"
,OFFICE OF THE MAJORITY WHIP,2011Q3,PERSONNEL COMPENSATION,,"GRIMALDI, DAVID F",2010-12-01,2010-12-31,SENIOR COUNSEL,-888.85,FISCAL YEAR 2011,,,,"GRIMALDI, DAVID F"
,OFFICE OF THE MAJORITY WHIP,2011Q3,PERSONNEL COMPENSATION,,"HENEHAN, EMILY A",2011-07-01,2011-09-30,POLICY ADVISOR,"24,250.00",FISCAL YEAR 2011,,,,"HENEHAN, EMILY A"
,OFFICE OF THE MAJORITY WHIP,2011Q3,PERSONNEL COMPENSATION,,"HOWARD,BENJAMIN R",2011-07-01,2011-09-30,FLOOR ASSISTANT,"14,500.00",FISCAL YEAR 2011,,,,"HOWARD,BENJAMIN R"
,OFFICE OF THE MAJORITY WHIP,2011Q3,PERSONNEL COMPENSATION,,"LONG,MICHAEL P",2011-07-01,2011-09-30,PRESS AIDE,"14,000.00",FISCAL YEAR 2011,,,,"LONG,MICHAEL P"
,OFFICE OF THE MAJORITY WHIP,2011Q3,PERSONNEL COMPENSATION,,"MCCLELLAND, WESLEY R",2011-07-01,2011-09-30,POLICY ADVISOR,"24,250.00",FISCAL YEAR 2011,,,,"MCCLELLAND, WESLEY R"
,OFFICE OF THE MAJORITY WHIP,2011Q3,PERSONNEL COMPENSATION,,"METTLER,ASHLEY",2011-07-01,2011-09-30,SENIOR STAFF ASSISTANT,"13,000.00",FISCAL YEAR 2011,,,,"METTLER,ASHLEY"
,OFFICE OF THE MAJORITY WHIP,2011Q3,PERSONNEL COMPENSATION,,"MOORE,STEVEN E",2011-01-01,2011-09-30,CHIEF OF STAFF TO THE DEP WHIP,"15,000.00",FISCAL YEAR 2011,,,,"MOORE,STEVEN E"
,OFFICE OF THE MAJORITY WHIP,2011Q3,PERSONNEL COMPENSATION,,"PATAKI,TIMOTHY A",2011-07-01,2011-09-30,STAFF ASSISTANT,"9,750.00",FISCAL YEAR 2011,,,,"PATAKI,TIMOTHY A"
,OFFICE OF THE MAJORITY WHIP,2011Q3,PERSONNEL COMPENSATION,,"POMPEI,SARAH",2011-07-01,2011-09-30,COMMUNICATIONS DIRECTOR,"36,750.00",FISCAL YEAR 2011,,,,"POMPEI,SARAH"
,OFFICE OF THE MAJORITY WHIP,2011Q3,PERSONNEL COMPENSATION,,"PRATAPAS,LAUREN M",2011-07-01,2011-09-30,DIRECTOR OF NEW MEDIA,"13,500.00",FISCAL YEAR 2011,,,,"PRATAPAS,LAUREN M"
,OFFICE OF THE MAJORITY WHIP,2011Q3,PERSONNEL COMPENSATION,,"STIPICEVIC, JOHN A",2011-07-01,2011-09-30,DIRECTOR OF FLOOR OPERATIONS,"36,000.00",FISCAL YEAR 2011,,,,"STIPICEVIC, JOHN A"
,OFFICE OF THE MAJORITY WHIP,2011Q3,PERSONNEL COMPENSATION,,"THOMPSON,DEAN J",2011-07-01,2011-09-30,SR ADV FR WHIP OP/CHF DEP WHIP,"9,500.00",FISCAL YEAR 2011,,,,"THOMPSON,DEAN J"
,OFFICE OF THE MAJORITY WHIP,2011Q3,PERSONNEL COMPENSATION,,"THOMSON, KRISTIN",2011-07-01,2011-09-30,SHARED EMPLOYEE,"19,500.00",FISCAL YEAR 2011,,,,"THOMSON, KRISTIN"
,OFFICE OF THE MAJORITY WHIP,2011Q3,PERSONNEL COMPENSATION,,"WORTH,BRIAN A",2011-07-01,2011-09-30,DIRECTOR OF COALITIONS,"38,750.00",FISCAL YEAR 2011,,,,"WORTH,BRIAN A"
,OFFICE OF THE MAJORITY WHIP,2011Q3,TRAVEL,2019-08-02,"PINKOS, STEPHEN",2011-07-12,2011-07-12,TAXI/PARKING/TOLLS,8,FISCAL YEAR 2011,AP,Accounts payable,229154,"PINKOS, STEPHEN"
,OFFICE OF THE MAJORITY WHIP,2011Q3,TRAVEL,2019-08-02,"PINKOS, STEPHEN",2011-07-12,2011-07-12,TAXI/PARKING/TOLLS,8,FISCAL YEAR 2011,AP,Accounts payable,229156,"PINKOS, STEPHEN"
,OFFICE OF THE MAJORITY WHIP,2011Q3,TRAVEL,2019-08-11,"POMPEI, SARAH",2011-07-16,2011-07-16,TAXI/PARKING/TOLLS,10.5,FISCAL YEAR 2011,AP,Accounts payable,234494,"POMPEI, SARAH"
,OFFICE OF THE MAJORITY WHIP,2011Q3,TRAVEL,2019-09-15,"BUCHANAN, NATALIE L",2011-03-30,2011-03-30,TAXI/PARKING/TOLLS,20,FISCAL YEAR 2011,AP,Accounts payable,259400,"BUCHANAN, NATALIE L"
,OFFICE OF THE MAJORITY WHIP,2011Q3,TRAVEL,2019-09-15,"WORTH, BRIAN A",2011-07-14,2011-07-14,TAXI/PARKING/TOLLS,8,FISCAL YEAR 2011,AP,Accounts payable,259401,"WORTH, BRIAN A"
,OFFICE OF THE MAJORITY WHIP,2011Q3,TRAVEL,2019-09-15,"WORTH, BRIAN A",2011-07-14,2011-07-14,TAXI/PARKING/TOLLS,8,FISCAL YEAR 2011,AP,Accounts payable,259402,"WORTH, BRIAN A"
,OFFICE OF THE MAJORITY WHIP,2011Q3,TRAVEL,2019-09-15,"WORTH, BRIAN A",2011-07-27,2011-07-27,TAXI/PARKING/TOLLS,8,FISCAL YEAR 2011,AP,Accounts payable,259404,"WORTH, BRIAN A"
,OFFICE OF THE MAJORITY WHIP,2011Q3,TRAVEL,2019-09-15,"WORTH, BRIAN A",2011-07-27,2011-07-27,TAXI/PARKING/TOLLS,8,FISCAL YEAR 2011,AP,Accounts payable,259405,"WORTH, BRIAN A"
,OFFICE OF THE MAJORITY WHIP,2011Q3,"RENT, COMMUNICATION, UTILITIES",2019-09-14,CITIBANK GOV CARD SERVICE,2011-07-15,2011-07-15,POSTAGE / COURIER / BOX RENTAL,13.72,FISCAL YEAR 2011,AP,Accounts payable,258711,CITIBANK GOV CARD SERVICE
,OFFICE OF THE MAJORITY WHIP,2011Q3,PRINTING AND REPRODUCTION,2019-07-06,ACCURATE WORD LLC,2011-06-23,2011-06-23,PRINTING & REPRODUCTION,286.95,FISCAL YEAR 2011,AP,Accounts payable,209261,ACCURATE WORD LLC
,OFFICE OF THE MAJORITY WHIP,2011Q3,PRINTING AND REPRODUCTION,2019-07-27,,2011-07-01,2011-07-31,PHOTOGRAPHIC (TRANSFER),71,FISCAL YEAR 2011,GL,General ledger,PIX0010657,
,OFFICE OF THE MAJORITY WHIP,2011Q3,PRINTING AND REPRODUCTION,2019-09-21,ACCURATE WORD LLC,2011-06-23,2011-06-23,PRINTING & REPRODUCTION,-286.95,FISCAL YEAR 2011,AP,Accounts payable,267989,ACCURATE WORD LLC
,OFFICE OF THE MAJORITY WHIP,2011Q3,OTHER SERVICES,2019-07-15,FIRESIDE21,2011-03-01,2011-03-31,"WEB DEV HST,EMAIL & RLTD SERV",-585,FISCAL YEAR 2011,AP,Accounts payable,215195,FIRESIDE21
,OFFICE OF THE MAJORITY WHIP,2011Q3,OTHER SERVICES,2019-07-15,FIRESIDE21,2011-02-01,2011-02-28,"WEB DEV HST,EMAIL & RLTD SERV",-585,FISCAL YEAR 2011,AP,Accounts payable,216915,FIRESIDE21
,OFFICE OF THE MAJORITY WHIP,2011Q3,OTHER SERVICES,2019-07-15,FIRESIDE21,2010-12-01,2010-12-31,"WEB DEV HST,EMAIL & RLTD SERV",-585,FISCAL YEAR 2011,AP,Accounts payable,216950,FIRESIDE21
,OFFICE OF THE MAJORITY WHIP,2011Q3,OTHER SERVICES,2019-07-15,FIRESIDE21,2011-01-01,2011-01-31,"WEB DEV HST,EMAIL & RLTD SERV",-585,FISCAL YEAR 2011,AP,Accounts payable,216951,FIRESIDE21
,OFFICE OF THE MAJORITY WHIP,2011Q3,OTHER SERVICES,2019-07-19,FIRESIDE21,2011-05-01,2011-05-31,"WEB DEV HST,EMAIL & RLTD SERV",-585,FISCAL YEAR 2011,AP,Accounts payable,217933,FIRESIDE21
,OFFICE OF THE MAJORITY WHIP,2011Q3,OTHER SERVICES,2019-07-19,FIRESIDE21,2011-04-01,2011-04-30,"WEB DEV HST,EMAIL & RLTD SERV",-585,FISCAL YEAR 2011,AP,Accounts payable,217956,FIRESIDE21
,OFFICE OF THE MAJORITY WHIP,2011Q3,OTHER SERVICES,2019-09-15,CRAFT MEDIA DIGITAL,2011-08-10,2011-08-10,"WEB DEV HST,EMAIL & RLTD SERV","5,700.00",FISCAL YEAR 2011,AP,Accounts payable,258660,CRAFT MEDIA DIGITAL
,OFFICE OF THE MAJORITY WHIP,2011Q3,OTHER SERVICES,2019-09-21,CRAFT MEDIA DIGITAL,2011-08-10,2011-08-10,"WEB DEV HST,EMAIL & RLTD SERV","-5,700.00",FISCAL YEAR 2011,AP,Accounts payable,267998,CRAFT MEDIA DIGITAL
,OFFICE OF THE MAJORITY WHIP,2011Q3,SUPPLIES AND MATERIALS,2019-07-06,"MIN, JAMES B",2011-06-20,2011-06-20,FOOD & BEVERAGE,65.56,FISCAL YEAR 2011,AP,Accounts payable,209257,"MIN, JAMES B"
,OFFICE OF THE MAJORITY WHIP,2011Q3,SUPPLIES AND MATERIALS,2019-07-06,"MIN, JAMES B",2011-06-21,2011-06-21,FOOD & BEVERAGE,51.56,FISCAL YEAR 2011,AP,Accounts payable,209258,"MIN, JAMES B"
,OFFICE OF THE MAJORITY WHIP,2011Q3,SUPPLIES AND MATERIALS,2019-07-06,"MIN, JAMES B",2011-06-16,2011-06-16,FOOD & BEVERAGE,"2,180.25",FISCAL YEAR 2011,AP,Accounts payable,209260,"MIN, JAMES B"
,OFFICE OF THE MAJORITY WHIP,2011Q3,SUPPLIES AND MATERIALS,2019-07-07,"POMPEI, SARAH",2011-05-26,2011-05-26,FOOD & BEVERAGE,25.32,FISCAL YEAR 2011,AP,Accounts payable,209793,"POMPEI, SARAH"
,OFFICE OF THE MAJORITY WHIP,2011Q3,SUPPLIES AND MATERIALS,2019-07-07,"POMPEI, SARAH",2011-06-02,2011-06-02,FOOD & BEVERAGE,17.63,FISCAL YEAR 2011,AP,Accounts payable,209797,"POMPEI, SARAH"
,OFFICE OF THE MAJORITY WHIP,2011Q3,SUPPLIES AND MATERIALS,2019-07-07,"POMPEI, SARAH",2011-06-15,2011-06-15,FOOD & BEVERAGE,17.63,FISCAL YEAR 2011,AP,Accounts payable,209799,"POMPEI, SARAH"
,OFFICE OF THE MAJORITY WHIP,2011Q3,SUPPLIES AND MATERIALS,2019-07-07,"POMPEI, SARAH",2011-06-16,2011-06-16,FOOD & BEVERAGE,17.58,FISCAL YEAR 2011,AP,Accounts payable,209801,"POMPEI, SARAH"
,OFFICE OF THE MAJORITY WHIP,2011Q3,SUPPLIES AND MATERIALS,2019-07-07,"POMPEI, SARAH",2011-06-23,2011-06-23,FOOD & BEVERAGE,17.63,FISCAL YEAR 2011,AP,Accounts payable,209804,"POMPEI, SARAH"
,OFFICE OF THE MAJORITY WHIP,2011Q3,SUPPLIES AND MATERIALS,2019-07-12,DEER PARK,2011-04-27,2011-05-26,WATER,340.98,FISCAL YEAR 2011,AP,Accounts payable,212549,DEER PARK
,OFFICE OF THE MAJORITY WHIP,2011Q3,SUPPLIES AND MATERIALS,2019-07-13,"MIN, JAMES B",2011-06-15,2011-06-15,FOOD & BEVERAGE,240.29,FISCAL YEAR 2011,AP,Accounts payable,209259,"MIN, JAMES B"
,OFFICE OF THE MAJORITY WHIP,2011Q3,SUPPLIES AND MATERIALS,2019-07-21,CITIBANK GOV CARD SERVICE,2011-05-26,2011-05-26,FOOD & BEVERAGE,12,FISCAL YEAR 2011,AP,Accounts payable,222462,CITIBANK GOV CARD SERVICE
,OFFICE OF THE MAJORITY WHIP,2011Q3,SUPPLIES AND MATERIALS,2019-07-21,CITIBANK GOV CARD SERVICE,2011-05-26,2011-05-26,FOOD & BEVERAGE,158.75,FISCAL YEAR 2011,AP,Accounts payable,222465,CITIBANK GOV CARD SERVICE
,OFFICE OF THE MAJORITY WHIP,2011Q3,SUPPLIES AND MATERIALS,2019-07-21,CITIBANK GOV CARD SERVICE,2011-05-31,2011-05-31,FOOD & BEVERAGE,70.49,FISCAL YEAR 2011,AP,Accounts payable,222468,CITIBANK GOV CARD SERVICE
,OFFICE OF THE MAJORITY WHIP,2011Q3,SUPPLIES AND MATERIALS,2019-07-21,CITIBANK GOV CARD SERVICE,2011-06-01,2011-06-01,FOOD & BEVERAGE,260.69,FISCAL YEAR 2011,AP,Accounts payable,222472,CITIBANK GOV CARD SERVICE
,OFFICE OF THE MAJORITY WHIP,2011Q3,SUPPLIES AND MATERIALS,2019-07-21,CITIBANK GOV CARD SERVICE,2011-05-31,2011-05-31,FOOD & BEVERAGE,"1,842.00",FISCAL YEAR 2011,AP,Accounts payable,222475,CITIBANK GOV CARD SERVICE
,OFFICE OF THE MAJORITY WHIP,2011Q3,SUPPLIES AND MATERIALS,2019-07-21,CITIBANK GOV CARD SERVICE,2011-06-01,2011-06-01,FOOD & BEVERAGE,32.41,FISCAL YEAR 2011,AP,Accounts payable,222479,CITIBANK GOV CARD SERVICE
,OFFICE OF THE MAJORITY WHIP,2011Q3,SUPPLIES AND MATERIALS,2019-07-21,CITIBANK GOV CARD SERVICE,2011-06-02,2011-06-02,FOOD & BEVERAGE,137.5,FISCAL YEAR 2011,AP,Accounts payable,222486,CITIBANK GOV CARD SERVICE
,OFFICE OF THE MAJORITY WHIP,2011Q3,SUPPLIES AND MATERIALS,2019-07-21,CITIBANK GOV CARD SERVICE,2011-06-02,2011-06-02,FOOD & BEVERAGE,220,FISCAL YEAR 2011,AP,Accounts payable,222489,CITIBANK GOV CARD SERVICE
,OFFICE OF THE MAJORITY WHIP,2011Q3,SUPPLIES AND MATERIALS,2019-07-21,CITIBANK GOV CARD SERVICE,2011-06-02,2011-06-02,FOOD & BEVERAGE,37.02,FISCAL YEAR 2011,AP,Accounts payable,222492,CITIBANK GOV CARD SERVICE
,OFFICE OF THE MAJORITY WHIP,2011Q3,SUPPLIES AND MATERIALS,2019-07-21,CITIBANK GOV CARD SERVICE,2011-06-01,2011-06-01,FOOD & BEVERAGE,"2,374.70",FISCAL YEAR 2011,AP,Accounts payable,222494,CITIBANK GOV CARD SERVICE
,OFFICE OF THE MAJORITY WHIP,2011Q3,SUPPLIES AND MATERIALS,2019-07-21,CITIBANK GOV CARD SERVICE,2011-06-03,2011-06-03,FOOD & BEVERAGE,193.55,FISCAL YEAR 2011,AP,Accounts payable,222501,CITIBANK GOV CARD SERVICE
,OFFICE OF THE MAJORITY WHIP,2011Q3,SUPPLIES AND MATERIALS,2019-07-21,CITIBANK GOV CARD SERVICE,2011-06-02,2011-06-02,FOOD & BEVERAGE,"1,118.70",FISCAL YEAR 2011,AP,Accounts payable,222504,CITIBANK GOV CARD SERVICE
,OFFICE OF THE MAJORITY WHIP,2011Q3,SUPPLIES AND MATERIALS,2019-07-21,CITIBANK GOV CARD SERVICE,2011-06-02,2011-06-02,FOOD & BEVERAGE,"1,046.10",FISCAL YEAR 2011,AP,Accounts payable,222509,CITIBANK GOV CARD SERVICE
,OFFICE OF THE MAJORITY WHIP,2011Q3,SUPPLIES AND MATERIALS,2019-07-21,CITIBANK GOV CARD SERVICE,2011-06-06,2011-06-06,FOOD & BEVERAGE,152.8,FISCAL YEAR 2011,AP,Accounts payable,222511,CITIBANK GOV CARD SERVICE
,OFFICE OF THE MAJORITY WHIP,2011Q3,SUPPLIES AND MATERIALS,2019-07-21,CITIBANK GOV CARD SERVICE,2011-06-14,2011-06-14,FOOD & BEVERAGE,34.55,FISCAL YEAR 2011,AP,Accounts payable,222513,CITIBANK GOV CARD SERVICE
,OFFICE OF THE MAJORITY WHIP,2011Q3,SUPPLIES AND MATERIALS,2019-07-21,CITIBANK GOV CARD SERVICE,2011-06-14,2011-06-14,FOOD & BEVERAGE,"2,235.38",FISCAL YEAR 2011,AP,Accounts payable,222518,CITIBANK GOV CARD SERVICE
,OFFICE OF THE MAJORITY WHIP,2011Q3,SUPPLIES AND MATERIALS,2019-07-21,CITIBANK GOV CARD SERVICE,2011-06-15,2011-06-01,FOOD & BEVERAGE,150.75,FISCAL YEAR 2011,AP,Accounts payable,222520,CITIBANK GOV CARD SERVICE
,OFFICE OF THE MAJORITY WHIP,2011Q3,SUPPLIES AND MATERIALS,2019-07-21,CITIBANK GOV CARD SERVICE,2011-06-16,2011-06-16,FOOD & BEVERAGE,137.5,FISCAL YEAR 2011,AP,Accounts payable,222523,CITIBANK GOV CARD SERVICE
,OFFICE OF THE MAJORITY WHIP,2011Q3,SUPPLIES AND MATERIALS,2019-07-21,CITIBANK GOV CARD SERVICE,2011-06-16,2011-06-16,FOOD & BEVERAGE,229.55,FISCAL YEAR 2011,AP,Accounts payable,222526,CITIBANK GOV CARD SERVICE
,OFFICE OF THE MAJORITY WHIP,2011Q3,SUPPLIES AND MATERIALS,2019-07-21,CITIBANK GOV CARD SERVICE,2011-06-20,2011-06-20,FOOD & BEVERAGE,52.58,FISCAL YEAR 2011,AP,Accounts payable,222530,CITIBANK GOV CARD SERVICE
,OFFICE OF THE MAJORITY WHIP,2011Q3,SUPPLIES AND MATERIALS,2019-07-21,CITIBANK GOV CARD SERVICE,2011-06-21,2011-06-21,FOOD & BEVERAGE,"1,899.00",FISCAL YEAR 2011,AP,Accounts payable,222536,CITIBANK GOV CARD SERVICE
,OFFICE OF THE MAJORITY WHIP,2011Q3,SUPPLIES AND MATERIALS,2019-07-21,CITIBANK GOV CARD SERVICE,2011-06-15,2011-06-15,PUBLICATIONS/REFERENCE MAT'L,8.43,FISCAL YEAR 2011,AP,Accounts payable,222540,CITIBANK GOV CARD SERVICE
,OFFICE OF THE MAJORITY WHIP,2011Q3,SUPPLIES AND MATERIALS,2019-07-21,CITIBANK GOV CARD SERVICE,2011-06-22,2011-06-22,FOOD & BEVERAGE,25.09,FISCAL YEAR 2011,AP,Accounts payable,222544,CITIBANK GOV CARD SERVICE
,OFFICE OF THE MAJORITY WHIP,2011Q3,SUPPLIES AND MATERIALS,2019-07-21,CITIBANK GOV CARD SERVICE,2011-06-23,2011-06-23,FOOD & BEVERAGE,137.5,FISCAL YEAR 2011,AP,Accounts payable,222548,CITIBANK GOV CARD SERVICE
,OFFICE OF THE MAJORITY WHIP,2011Q3,SUPPLIES AND MATERIALS,2019-07-21,CITIBANK GOV CARD SERVICE,2011-06-23,2011-06-23,FOOD & BEVERAGE,208.4,FISCAL YEAR 2011,AP,Accounts payable,222551,CITIBANK GOV CARD SERVICE
,OFFICE OF THE MAJORITY WHIP,2011Q3,SUPPLIES AND MATERIALS,2019-08-02,DEER PARK,2011-05-27,2011-06-26,WATER,102.49,FISCAL YEAR 2011,AP,Accounts payable,228385,DEER PARK
,OFFICE OF THE MAJORITY WHIP,2011Q3,SUPPLIES AND MATERIALS,2019-08-02,PENLEY ART COMPANY,2011-06-23,2011-06-23,PUBLICATIONS/REFERENCE MAT'L,370,FISCAL YEAR 2011,AP,Accounts payable,228406,PENLEY ART COMPANY
,OFFICE OF THE MAJORITY WHIP,2011Q3,SUPPLIES AND MATERIALS,2019-08-02,"MIN, JAMES B",2011-07-05,2011-07-05,FOOD & BEVERAGE,376.03,FISCAL YEAR 2011,AP,Accounts payable,229151,"MIN, JAMES B"
,OFFICE OF THE MAJORITY WHIP,2011Q3,SUPPLIES AND MATERIALS,2019-08-02,"MIN, JAMES B",2011-07-18,2011-07-18,FOOD & BEVERAGE,267.59,FISCAL YEAR 2011,AP,Accounts payable,229160,"MIN, JAMES B"
,OFFICE OF THE MAJORITY WHIP,2011Q3,SUPPLIES AND MATERIALS,2019-08-02,LEXIS-NEXIS,2011-06-01,2011-06-30,PUBLICATIONS/REFERENCE MAT'L,575,FISCAL YEAR 2011,AP,Accounts payable,229165,LEXIS-NEXIS
,OFFICE OF THE MAJORITY WHIP,2011Q3,SUPPLIES AND MATERIALS,2019-08-05,CITIBANK GOV CARD SERVICE,2011-06-17,2011-06-17,FOOD & BEVERAGE,259.08,FISCAL YEAR 2011,AP,Accounts payable,231603,CITIBANK GOV CARD SERVICE
,OFFICE OF THE MAJORITY WHIP,2011Q3,SUPPLIES AND MATERIALS,2019-08-05,CITIBANK GOV CARD SERVICE,2011-06-22,2011-06-22,FOOD & BEVERAGE,"2,927.40",FISCAL YEAR 2011,AP,Accounts payable,231609,CITIBANK GOV CARD SERVICE
,OFFICE OF THE MAJORITY WHIP,2011Q3,SUPPLIES AND MATERIALS,2019-08-08,"MIN, JAMES B",2011-07-22,2011-07-22,HABITATION EXPENSE,715.3,FISCAL YEAR 2011,AP,Accounts payable,231567,"MIN, JAMES B"
,OFFICE OF THE MAJORITY WHIP,2011Q3,SUPPLIES AND MATERIALS,2019-08-08,CITIBANK GOV CARD SERVICE,2011-06-02,2011-06-02,PUBLICATIONS/REFERENCE MAT'L,109.18,FISCAL YEAR 2011,AP,Accounts payable,231583,CITIBANK GOV CARD SERVICE
,OFFICE OF THE MAJORITY WHIP,2011Q3,SUPPLIES AND MATERIALS,2019-08-08,CITIBANK GOV CARD SERVICE,2011-06-03,2011-06-03,FOOD & BEVERAGE,275.25,FISCAL YEAR 2011,AP,Accounts payable,231588,CITIBANK GOV CARD SERVICE
,OFFICE OF THE MAJORITY WHIP,2011Q3,SUPPLIES AND MATERIALS,2019-08-08,CITIBANK GOV CARD SERVICE,2011-06-03,2011-07-28,PUBLICATIONS/REFERENCE MAT'L,74.2,FISCAL YEAR 2011,AP,Accounts payable,231595,CITIBANK GOV CARD SERVICE
,OFFICE OF THE MAJORITY WHIP,2011Q3,SUPPLIES AND MATERIALS,2019-08-08,CITIBANK GOV CARD SERVICE,2011-06-16,2011-06-16,FOOD & BEVERAGE,275.25,FISCAL YEAR 2011,AP,Accounts payable,231599,CITIBANK GOV CARD SERVICE
,OFFICE OF THE MAJORITY WHIP,2011Q3,SUPPLIES AND MATERIALS,2019-08-11,"POMPEI, SARAH",2011-07-07,2011-07-07,FOOD & BEVERAGE,17.63,FISCAL YEAR 2011,AP,Accounts payable,234489,"POMPEI, SARAH"
,OFFICE OF THE MAJORITY WHIP,2011Q3,SUPPLIES AND MATERIALS,2019-08-11,"POMPEI, SARAH",2011-07-14,2011-07-14,FOOD & BEVERAGE,17.63,FISCAL YEAR 2011,AP,Accounts payable,234491,"POMPEI, SARAH"
,OFFICE OF THE MAJORITY WHIP,2011Q3,SUPPLIES AND MATERIALS,2019-08-11,"POMPEI, SARAH",2011-07-21,2011-07-21,FOOD & BEVERAGE,17.63,FISCAL YEAR 2011,AP,Accounts payable,234498,"POMPEI, SARAH"
,OFFICE OF THE MAJORITY WHIP,2011Q3,SUPPLIES AND MATERIALS,2019-08-11,"MIN, JAMES B",2011-07-26,2011-07-26,FOOD & BEVERAGE,382.76,FISCAL YEAR 2011,AP,Accounts payable,234503,"MIN, JAMES B"
,OFFICE OF THE MAJORITY WHIP,2011Q3,SUPPLIES AND MATERIALS,2019-08-26,DEER PARK,2011-06-27,2011-07-26,WATER,148.8,FISCAL YEAR 2011,AP,Accounts payable,247410,DEER PARK
,OFFICE OF THE MAJORITY WHIP,2011Q3,SUPPLIES AND MATERIALS,2019-08-26,CITIBANK GOV CARD SERVICE,2011-06-30,2011-06-30,FOOD & BEVERAGE,297,FISCAL YEAR 2011,AP,Accounts payable,247421,CITIBANK GOV CARD SERVICE
,OFFICE OF THE MAJORITY WHIP,2011Q3,SUPPLIES AND MATERIALS,2019-08-26,CITIBANK GOV CARD SERVICE,2011-07-01,2011-07-01,FOOD & BEVERAGE,199.21,FISCAL YEAR 2011,AP,Accounts payable,247425,CITIBANK GOV CARD SERVICE
,OFFICE OF THE MAJORITY WHIP,2011Q3,SUPPLIES AND MATERIALS,2019-08-26,CITIBANK GOV CARD SERVICE,2011-07-06,2011-07-06,FOOD & BEVERAGE,227.69,FISCAL YEAR 2011,AP,Accounts payable,247428,CITIBANK GOV CARD SERVICE
,OFFICE OF THE MAJORITY WHIP,2011Q3,SUPPLIES AND MATERIALS,2019-08-26,CITIBANK GOV CARD SERVICE,2011-07-06,2011-07-06,FOOD & BEVERAGE,154,FISCAL YEAR 2011,AP,Accounts payable,247430,CITIBANK GOV CARD SERVICE
,OFFICE OF THE MAJORITY WHIP,2011Q3,SUPPLIES AND MATERIALS,2019-08-26,CITIBANK GOV CARD SERVICE,2011-07-18,2011-07-18,FOOD & BEVERAGE,43.92,FISCAL YEAR 2011,AP,Accounts payable,248597,CITIBANK GOV CARD SERVICE
,OFFICE OF THE MAJORITY WHIP,2011Q3,SUPPLIES AND MATERIALS,2019-08-26,CITIBANK GOV CARD SERVICE,2011-07-18,2011-07-18,FOOD & BEVERAGE,"2,196.25",FISCAL YEAR 2011,AP,Accounts payable,248603,CITIBANK GOV CARD SERVICE
,OFFICE OF THE MAJORITY WHIP,2011Q3,SUPPLIES AND MATERIALS,2019-08-26,CITIBANK GOV CARD SERVICE,2011-07-20,2011-07-20,FOOD & BEVERAGE,"2,458.76",FISCAL YEAR 2011,AP,Accounts payable,248608,CITIBANK GOV CARD SERVICE
,OFFICE OF THE MAJORITY WHIP,2011Q3,SUPPLIES AND MATERIALS,2019-08-26,CITIBANK GOV CARD SERVICE,2011-07-21,2011-07-21,FOOD & BEVERAGE,286.95,FISCAL YEAR 2011,AP,Accounts payable,248613,CITIBANK GOV CARD SERVICE
,OFFICE OF THE MAJORITY WHIP,2011Q3,SUPPLIES AND MATERIALS,2019-08-26,CITIBANK GOV CARD SERVICE,2011-07-26,2011-07-26,FOOD & BEVERAGE,18.43,FISCAL YEAR 2011,AP,Accounts payable,248617,CITIBANK GOV CARD SERVICE
,OFFICE OF THE MAJORITY WHIP,2011Q3,SUPPLIES AND MATERIALS,2019-08-26,CITIBANK GOV CARD SERVICE,2011-07-08,2011-07-08,FOOD & BEVERAGE,260.69,FISCAL YEAR 2011,AP,Accounts payable,248619,CITIBANK GOV CARD SERVICE
,OFFICE OF THE MAJORITY WHIP,2011Q3,SUPPLIES AND MATERIALS,2019-08-26,CITIBANK GOV CARD SERVICE,2011-07-11,2011-07-11,FOOD & BEVERAGE,31.47,FISCAL YEAR 2011,AP,Accounts payable,248623,CITIBANK GOV CARD SERVICE
,OFFICE OF THE MAJORITY WHIP,2011Q3,SUPPLIES AND MATERIALS,2019-08-26,CITIBANK GOV CARD SERVICE,2011-07-11,2011-07-11,FOOD & BEVERAGE,"2,532.95",FISCAL YEAR 2011,AP,Accounts payable,248628,CITIBANK GOV CARD SERVICE
,OFFICE OF THE MAJORITY WHIP,2011Q3,SUPPLIES AND MATERIALS,2019-08-26,CITIBANK GOV CARD SERVICE,2011-07-11,2011-07-11,FOOD & BEVERAGE,160.49,FISCAL YEAR 2011,AP,Accounts payable,248631,CITIBANK GOV CARD SERVICE
,OFFICE OF THE MAJORITY WHIP,2011Q3,SUPPLIES AND MATERIALS,2019-08-26,CITIBANK GOV CARD SERVICE,2011-07-06,2011-07-06,FOOD & BEVERAGE,"2,144.30",FISCAL YEAR 2011,AP,Accounts payable,248654,CITIBANK GOV CARD SERVICE
,OFFICE OF THE MAJORITY WHIP,2011Q3,SUPPLIES AND MATERIALS,2019-08-26,CITIBANK GOV CARD SERVICE,2011-07-06,2011-07-06,FOOD & BEVERAGE,481.6,FISCAL YEAR 2011,AP,Accounts payable,248657,CITIBANK GOV CARD SERVICE
,OFFICE OF THE MAJORITY WHIP,2011Q3,SUPPLIES AND MATERIALS,2019-08-26,CITIBANK GOV CARD SERVICE,2011-07-05,2011-07-05,FOOD & BEVERAGE,189,FISCAL YEAR 2011,AP,Accounts payable,248660,CITIBANK GOV CARD SERVICE
,OFFICE OF THE MAJORITY WHIP,2011Q3,SUPPLIES AND MATERIALS,2019-08-26,CITIBANK GOV CARD SERVICE,2011-07-07,2011-07-07,FOOD & BEVERAGE,137.5,FISCAL YEAR 2011,AP,Accounts payable,248663,CITIBANK GOV CARD SERVICE
,OFFICE OF THE MAJORITY WHIP,2011Q3,SUPPLIES AND MATERIALS,2019-08-26,CITIBANK GOV CARD SERVICE,2011-07-07,2011-07-07,FOOD & BEVERAGE,"2,180.25",FISCAL YEAR 2011,AP,Accounts payable,248670,CITIBANK GOV CARD SERVICE
,OFFICE OF THE MAJORITY WHIP,2011Q3,SUPPLIES AND MATERIALS,2019-08-29,CITIBANK GOV CARD SERVICE,2011-07-11,2011-07-11,FOOD & BEVERAGE,292.05,FISCAL YEAR 2011,AP,Accounts payable,248635,CITIBANK GOV CARD SERVICE
,OFFICE OF THE MAJORITY WHIP,2011Q3,SUPPLIES AND MATERIALS,2019-08-30,CITIBANK GOV CARD SERVICE,2011-07-21,2011-07-21,FOOD & BEVERAGE,31.46,FISCAL YEAR 2011,AP,Accounts payable,248592,CITIBANK GOV CARD SERVICE
,OFFICE OF THE MAJORITY WHIP,2011Q3,SUPPLIES AND MATERIALS,2019-08-30,CITIBANK GOV CARD SERVICE,2011-07-29,2011-07-29,FOOD & BEVERAGE,"3,066.55",FISCAL YEAR 2011,AP,Accounts payable,249994,CITIBANK GOV CARD SERVICE
,OFFICE OF THE MAJORITY WHIP,2011Q3,SUPPLIES AND MATERIALS,2019-08-30,CITIBANK GOV CARD SERVICE,2011-07-21,2011-07-21,FOOD & BEVERAGE,384.24,FISCAL YEAR 2011,AP,Accounts payable,250005,CITIBANK GOV CARD SERVICE
,OFFICE OF THE MAJORITY WHIP,2011Q3,SUPPLIES AND MATERIALS,2019-08-30,CITIBANK GOV CARD SERVICE,2011-07-25,2011-07-25,FOOD & BEVERAGE,"2,386.15",FISCAL YEAR 2011,AP,Accounts payable,250015,CITIBANK GOV CARD SERVICE
,OFFICE OF THE MAJORITY WHIP,2011Q3,SUPPLIES AND MATERIALS,2019-08-31,CITIBANK GOV CARD SERVICE,2011-07-27,2011-07-27,FOOD & BEVERAGE,283.91,FISCAL YEAR 2011,AP,Accounts payable,248587,CITIBANK GOV CARD SERVICE
,OFFICE OF THE MAJORITY WHIP,2011Q3,SUPPLIES AND MATERIALS,2019-09-14,CITIBANK GOV CARD SERVICE,2011-07-01,2011-07-01,PUBLICATIONS/REFERENCE MAT'L,37.1,FISCAL YEAR 2011,AP,Accounts payable,258707,CITIBANK GOV CARD SERVICE
,OFFICE OF THE MAJORITY WHIP,2011Q3,SUPPLIES AND MATERIALS,2019-09-14,CITIBANK GOV CARD SERVICE,2011-07-21,2011-07-21,FOOD & BEVERAGE,137.5,FISCAL YEAR 2011,AP,Accounts payable,258713,CITIBANK GOV CARD SERVICE
,OFFICE OF THE MAJORITY WHIP,2011Q3,SUPPLIES AND MATERIALS,2019-09-14,CITIBANK GOV CARD SERVICE,2011-07-21,2011-07-21,FOOD & BEVERAGE,"2,150.68",FISCAL YEAR 2011,AP,Accounts payable,258717,CITIBANK GOV CARD SERVICE
,OFFICE OF THE MAJORITY WHIP,2011Q3,SUPPLIES AND MATERIALS,2019-09-14,CITIBANK GOV CARD SERVICE,2011-07-27,2011-07-27,FOOD & BEVERAGE,"3,087.33",FISCAL YEAR 2011,AP,Accounts payable,258720,CITIBANK GOV CARD SERVICE
,OFFICE OF THE MAJORITY WHIP,2011Q3,SUPPLIES AND MATERIALS,2019-09-14,CITIBANK GOV CARD SERVICE,2011-07-27,2011-07-27,FOOD & BEVERAGE,141.1,FISCAL YEAR 2011,AP,Accounts payable,258723,CITIBANK GOV CARD SERVICE
,OFFICE OF THE MAJORITY WHIP,2011Q3,SUPPLIES AND MATERIALS,2019-09-14,CITIBANK GOV CARD SERVICE,2011-07-28,2011-07-28,FOOD & BEVERAGE,55,FISCAL YEAR 2011,AP,Accounts payable,258726,CITIBANK GOV CARD SERVICE
,OFFICE OF THE MAJORITY WHIP,2011Q3,SUPPLIES AND MATERIALS,2019-09-14,CITIBANK GOV CARD SERVICE,2011-07-29,2011-07-29,FOOD & BEVERAGE,300,FISCAL YEAR 2011,AP,Accounts payable,258730,CITIBANK GOV CARD SERVICE
,OFFICE OF THE MAJORITY WHIP,2011Q3,SUPPLIES AND MATERIALS,2019-09-14,CITIBANK GOV CARD SERVICE,2011-07-29,2011-07-29,PUBLICATIONS/REFERENCE MAT'L,37.1,FISCAL YEAR 2011,AP,Accounts payable,258733,CITIBANK GOV CARD SERVICE
,OFFICE OF THE MAJORITY WHIP,2011Q3,SUPPLIES AND MATERIALS,2019-09-14,CITIBANK GOV CARD SERVICE,2011-07-28,2011-07-28,FOOD & BEVERAGE,364.32,FISCAL YEAR 2011,AP,Accounts payable,258742,CITIBANK GOV CARD SERVICE
,OFFICE OF THE MAJORITY WHIP,2011Q3,SUPPLIES AND MATERIALS,2019-09-14,CITIBANK GOV CARD SERVICE,2011-08-01,2011-08-01,FOOD & BEVERAGE,31.87,FISCAL YEAR 2011,AP,Accounts payable,258751,CITIBANK GOV CARD SERVICE
,OFFICE OF THE MAJORITY WHIP,2011Q3,SUPPLIES AND MATERIALS,2019-09-14,CITIBANK GOV CARD SERVICE,2011-08-01,2011-08-01,FOOD & BEVERAGE,"2,212.25",FISCAL YEAR 2011,AP,Accounts payable,258766,CITIBANK GOV CARD SERVICE
,OFFICE OF THE MAJORITY WHIP,2011Q3,SUPPLIES AND MATERIALS,2019-09-14,CITIBANK GOV CARD SERVICE,2011-08-04,2011-08-04,FOOD & BEVERAGE,142.45,FISCAL YEAR 2011,AP,Accounts payable,258773,CITIBANK GOV CARD SERVICE
,OFFICE OF THE MAJORITY WHIP,2011Q3,SUPPLIES AND MATERIALS,2019-09-14,"POMPEI, SARAH",2011-07-28,2011-07-28,FOOD & BEVERAGE,17.63,FISCAL YEAR 2011,AP,Accounts payable,258990,"POMPEI, SARAH"
,OFFICE OF THE MAJORITY WHIP,2011Q3,SUPPLIES AND MATERIALS,2019-09-14,"POMPEI, SARAH",2011-08-01,2011-08-01,FOOD & BEVERAGE,42.95,FISCAL YEAR 2011,AP,Accounts payable,258993,"POMPEI, SARAH"
,OFFICE OF THE MAJORITY WHIP,2011Q3,SUPPLIES AND MATERIALS,2019-09-14,CQ ROLL CALL GROUP,2011-12-31,2012-12-31,PUBLICATIONS/REFERENCE MAT'L,"15,750.00",FISCAL YEAR 2011,AP,Accounts payable,258998,CQ ROLL CALL GROUP
,OFFICE OF THE MAJORITY WHIP,2011Q3,SUPPLIES AND MATERIALS,2019-09-14,"NATIONAL JOURNAL GROUP, INC",2012-01-12,2013-01-10,PUBLICATIONS/REFERENCE MAT'L,"2,188.00",FISCAL YEAR 2011,AP,Accounts payable,259003,"NATIONAL JOURNAL GROUP, INC"
,OFFICE OF THE MAJORITY WHIP,2011Q3,SUPPLIES AND MATERIALS,2019-09-14,LEXIS-NEXIS,2011-07-01,2011-07-31,PUBLICATIONS/REFERENCE MAT'L,575,FISCAL YEAR 2011,AP,Accounts payable,259005,LEXIS-NEXIS
,OFFICE OF THE MAJORITY WHIP,2011Q3,SUPPLIES AND MATERIALS,2019-09-15,CITIBANK GOV CARD SERVICE,2011-07-27,2011-07-27,FOOD & BEVERAGE,263.25,FISCAL YEAR 2011,AP,Accounts payable,258737,CITIBANK GOV CARD SERVICE
,OFFICE OF THE MAJORITY WHIP,2011Q3,SUPPLIES AND MATERIALS,2019-09-15,CITIBANK GOV CARD SERVICE,2011-07-28,2011-07-28,FOOD & BEVERAGE,251.55,FISCAL YEAR 2011,AP,Accounts payable,258747,CITIBANK GOV CARD SERVICE
,OFFICE OF THE MAJORITY WHIP,2011Q3,SUPPLIES AND MATERIALS,2019-09-22,CITIBANK GOV CARD SERVICE,2011-05-10,2011-05-10,FOOD & BEVERAGE,133.56,FISCAL YEAR 2011,AP,Accounts payable,268066,CITIBANK GOV CARD SERVICE
,OFFICE OF THE MAJORITY WHIP,2011Q3,EQUIPMENT,2019-07-07,"MIN, JAMES B",2011-02-28,2011-02-28,WARRANTIES,-250.95,FISCAL YEAR 2011,AP,Accounts payable,210349,"MIN, JAMES B"
,OFFICE OF THE MAJORITY WHIP,2011Q3,EQUIPMENT,2019-07-07,"MIN, JAMES B",2011-04-12,2011-04-12,WARRANTIES,-124.95,FISCAL YEAR 2011,AP,Accounts payable,210355,"MIN, JAMES B"
,OFFICE OF THE MAJORITY WHIP,2011Q3,EQUIPMENT,2019-07-07,"MIN, JAMES B",2011-04-12,2011-04-12,WARRANTIES,-192.15,FISCAL YEAR 2011,AP,Accounts payable,210360,"MIN, JAMES B"
,OFFICE OF THE MAJORITY WHIP,2011Q3,EQUIPMENT,2019-07-07,"MIN, JAMES B",2011-05-16,2011-05-16,WARRANTIES,-384.3,FISCAL YEAR 2011,AP,Accounts payable,210364,"MIN, JAMES B"
,OFFICE OF THE MAJORITY WHIP,2011Q3,EQUIPMENT,2019-07-07,"MIN, JAMES B",2011-04-12,2011-04-12,"COMPUTER HARDW PURCH LESS THAN $25,000","-2,076.80",FISCAL YEAR 2011,AP,Accounts payable,210372,"MIN, JAMES B"
,OFFICE OF THE MAJORITY WHIP,2011Q3,EQUIPMENT,2019-07-07,"MIN, JAMES B",2011-04-12,2011-04-12,"COMPUTER HARDW PURCH LESS THAN $25,000","-1,783.95",FISCAL YEAR 2011,AP,Accounts payable,210378,"MIN, JAMES B"
,OFFICE OF THE MAJORITY WHIP,2011Q3,EQUIPMENT,2019-07-07,"MIN, JAMES B",2011-05-16,2011-05-16,"COMPUTER HARDW PURCH LESS THAN $25,000","-2,937.90",FISCAL YEAR 2011,AP,Accounts payable,210384,"MIN, JAMES B"
,OFFICE OF THE MAJORITY WHIP,2011Q3,EQUIPMENT,2019-09-15,CITIBANK GOV CARD SERVICE,2011-08-19,2011-08-19,"OFFICE EQUIP PURCH LESS THAN $25,000","1,342.75",FISCAL YEAR 2011,AP,Accounts payable,258659,CITIBANK GOV CARD SERVICE
,OFFICE OF THE MAJORITY WHIP,2011Q3,EQUIPMENT,2019-09-16,CITIBANK GOV CARD SERVICE,2011-08-17,2011-08-17,"OFFICE EQUIP PURCH LESS THAN $25,000",188.86,FISCAL YEAR 2011,AP,Accounts payable,259576,CITIBANK GOV CARD SERVICE
,OFFICE OF THE MAJORITY WHIP,2011Q3,EQUIPMENT,2019-09-21,CITIBANK GOV CARD SERVICE,2011-08-17,2011-08-17,"OFFICE EQUIP PURCH LESS THAN $25,000",-188.86,FISCAL YEAR 2011,AP,Accounts payable,267992,CITIBANK GOV CARD SERVICE
,OFFICE OF THE MAJORITY WHIP,2011Q3,EQUIPMENT,2019-09-21,CITIBANK GOV CARD SERVICE,2011-08-19,2011-08-19,"OFFICE EQUIP PURCH LESS THAN $25,000","-1,342.75",FISCAL YEAR 2011,AP,Accounts payable,267995,CITIBANK GOV CARD SERVICE
,OFFICE OF THE MAJORITY WHIP,2011Q3,PERSONNEL COMPENSATION,,"GRIMALDI, DAVID F",2010-09-01,2010-09-19,SENIOR COUNSEL,"-2,527.79",FISCAL YEAR 2010,,,,"GRIMALDI, DAVID F"
,OFFICE OF THE MINORITY WHIP,2011Q3,PERSONNEL COMPENSATION,,"ABOUCHAR, KEITH S",2011-07-01,2011-09-30,SENIOR POLICY ADVISOR,549.99,FISCAL YEAR 2011,,,,"ABOUCHAR, KEITH S"
,OFFICE OF THE MINORITY WHIP,2011Q3,PERSONNEL COMPENSATION,,"AVILES,DANIELLE R",2011-07-01,2011-09-30,STAFF ASSISTANT,"6,999.99",FISCAL YEAR 2011,,,,"AVILES,DANIELLE R"
,OFFICE OF THE MINORITY WHIP,2011Q3,PERSONNEL COMPENSATION,,"AVILES,DANIELLE R",2011-06-01,2011-07-31,STAFF ASSISTANT (OVERTIME),"3,796.11",FISCAL YEAR 2011,,,,"AVILES,DANIELLE R"
,OFFICE OF THE MINORITY WHIP,2011Q3,PERSONNEL COMPENSATION,,"BEACH,MAUREEN M",2011-07-01,2011-09-30,MD PRESS SEC/DEP PRESS SEC,"8,499.99",FISCAL YEAR 2011,,,,"BEACH,MAUREEN M"
,OFFICE OF THE MINORITY WHIP,2011Q3,PERSONNEL COMPENSATION,,"BERNARDS, STACEY F",2011-07-01,2011-09-30,DEPUTY CHIEF OF STAFF,300,FISCAL YEAR 2011,,,,"BERNARDS, STACEY F"
,OFFICE OF THE MINORITY WHIP,2011Q3,PERSONNEL COMPENSATION,,"BOHANAN JR, JOHN L",2011-07-01,2011-09-30,CONSTITUENT LIAISON,"1,500.00",FISCAL YEAR 2011,,,,"BOHANAN JR, JOHN L"
,OFFICE OF THE MINORITY WHIP,2011Q3,PERSONNEL COMPENSATION,,"BURNES, AUSTIN W",2011-07-01,2011-09-30,DEPUTY FLOOR DIRECTOR,"22,500.00",FISCAL YEAR 2011,,,,"BURNES, AUSTIN W"
,OFFICE OF THE MINORITY WHIP,2011Q3,PERSONNEL COMPENSATION,,"COLLINS, MICHAEL E",2011-07-01,2011-09-30,CHIEF DEPUTY WHIP,"10,625.01",FISCAL YEAR 2011,,,,"COLLINS, MICHAEL E"
,OFFICE OF THE MINORITY WHIP,2011Q3,PERSONNEL COMPENSATION,,"COVEY-BRANDT, ALEXIS",2011-07-01,2011-09-30,FLOOR DIRECTOR,300,FISCAL YEAR 2011,,,,"COVEY-BRANDT, ALEXIS"
,OFFICE OF THE MINORITY WHIP,2011Q3,PERSONNEL COMPENSATION,,"DEBOSIER, CHRISTOPHER M",2011-07-01,2011-09-30,DIR OF MEM SERVICES & OUTREACH,"21,875.01",FISCAL YEAR 2011,,,,"DEBOSIER, CHRISTOPHER M"
,OFFICE OF THE MINORITY WHIP,2011Q3,PERSONNEL COMPENSATION,,"EISENBERG,MICHAEL",2011-07-01,2011-09-30,WHIP COORDINATOR,"15,000.00",FISCAL YEAR 2011,,,,"EISENBERG,MICHAEL"
,OFFICE OF THE MINORITY WHIP,2011Q3,PERSONNEL COMPENSATION,,"FRY,COURTNEY",2011-07-01,2011-09-30,MEMBER SRVS AND OUTREACH COORD,"17,499.99",FISCAL YEAR 2011,,,,"FRY,COURTNEY"
,OFFICE OF THE MINORITY WHIP,2011Q3,PERSONNEL COMPENSATION,,"GENSEMER,ELLIOT J",2011-07-01,2011-09-30,STAFF ASSISTANT,"6,249.99",FISCAL YEAR 2011,,,,"GENSEMER,ELLIOT J"
,OFFICE OF THE MINORITY WHIP,2011Q3,PERSONNEL COMPENSATION,,"GENSEMER,ELLIOT J",2011-06-01,2011-07-31,STAFF ASSISTANT (OVERTIME),"3,155.01",FISCAL YEAR 2011,,,,"GENSEMER,ELLIOT J"
,OFFICE OF THE MINORITY WHIP,2011Q3,PERSONNEL COMPENSATION,,"GHOSH,APRATIM",2011-07-01,2011-09-30,SPECIAL ASSISTANT,"9,999.99",FISCAL YEAR 2011,,,,"GHOSH,APRATIM"
,OFFICE OF THE MINORITY WHIP,2011Q3,PERSONNEL COMPENSATION,,"GOFF,SHUWANZA R",2011-07-01,2011-09-30,FLOOR AIDE,"12,500.01",FISCAL YEAR 2011,,,,"GOFF,SHUWANZA R"
,OFFICE OF THE MINORITY WHIP,2011Q3,PERSONNEL COMPENSATION,,"GOODMAN,ROBERT",2011-07-01,2011-09-03,SPEECHWRITER,"12,249.99",FISCAL YEAR 2011,,,,"GOODMAN,ROBERT"
,OFFICE OF THE MINORITY WHIP,2011Q3,PERSONNEL COMPENSATION,,"GRANT,KATHRYN L",2011-07-01,2011-09-30,COMMUNICATIONS DIRECTOR,"22,500.00",FISCAL YEAR 2011,,,,"GRANT,KATHRYN L"
,OFFICE OF THE MINORITY WHIP,2011Q3,PERSONNEL COMPENSATION,,"HUGHES,JOHN C",2011-07-01,2011-09-30,SENIOR POLICY ADVISOR,"32,499.99",FISCAL YEAR 2011,,,,"HUGHES,JOHN C"
,OFFICE OF THE MINORITY WHIP,2011Q3,PERSONNEL COMPENSATION,,"LEUSCHEN, JAMES P",2011-07-01,2011-09-30,SENIOR POLICY ADVISOR,"28,749.99",FISCAL YEAR 2011,,,,"LEUSCHEN, JAMES P"
,OFFICE OF THE MINORITY WHIP,2011Q3,PERSONNEL COMPENSATION,,"LI TRENTA, VIRGINIA SIMONE",2011-07-01,2011-09-17,SCHED AND DIR OF SPECIAL EVENT,"20,854.17",FISCAL YEAR 2011,,,,"LI TRENTA, VIRGINIA SIMONE"
,OFFICE OF THE MINORITY WHIP,2011Q3,PERSONNEL COMPENSATION,,"LIERMAN,TERRY L",2011-07-01,2011-09-30,CHIEF OF STAFF,300,FISCAL YEAR 2011,,,,"LIERMAN,TERRY L"
,OFFICE OF THE MINORITY WHIP,2011Q3,PERSONNEL COMPENSATION,,"MEDLEY, ANNA E",2011-09-07,2011-09-30,DIR OF SCHEDLNG & SPEC EVENTS,"4,666.67",FISCAL YEAR 2011,,,,"MEDLEY, ANNA E"
,OFFICE OF THE MINORITY WHIP,2011Q3,PERSONNEL COMPENSATION,,"MOORE, MIKAEL",2011-07-01,2011-09-30,CHIEF DEPUTY WHIP,"9,999.99",FISCAL YEAR 2011,,,,"MOORE, MIKAEL"
,OFFICE OF THE MINORITY WHIP,2011Q3,PERSONNEL COMPENSATION,,"MURRAY, ELIZABETH M",2011-07-01,2011-09-30,SENIOR POLICY ADVISOR,"33,249.99",FISCAL YEAR 2011,,,,"MURRAY, ELIZABETH M"
,OFFICE OF THE MINORITY WHIP,2011Q3,PERSONNEL COMPENSATION,,"OCAMPO,MARIA L",2011-07-01,2011-09-30,MEM SER AND OUTREACH COORDIN,"17,000.01",FISCAL YEAR 2011,,,,"OCAMPO,MARIA L"
,OFFICE OF THE MINORITY WHIP,2011Q3,PERSONNEL COMPENSATION,,"REILLY,DANIEL W",2011-07-01,2011-09-30,PRESS SECRETARY,"2,499.99",FISCAL YEAR 2011,,,,"REILLY,DANIEL W"
,OFFICE OF THE MINORITY WHIP,2011Q3,PERSONNEL COMPENSATION,,"REPKO,MARY F",2011-07-01,2011-09-30,SENIOR POLICY ADVISOR,300,FISCAL YEAR 2011,,,,"REPKO,MARY F"
,OFFICE OF THE MINORITY WHIP,2011Q3,PERSONNEL COMPENSATION,,"ROMICK, BRIAN",2011-07-01,2011-09-30,WHIP DIR AND SENIOR ADVISOR,300,FISCAL YEAR 2011,,,,"ROMICK, BRIAN"
,OFFICE OF THE MINORITY WHIP,2011Q3,PERSONNEL COMPENSATION,,"SAEZ,MARIEL S",2011-07-01,2011-09-30,PRESS AND RESEARCH ASSISTANT,"9,000.00",FISCAL YEAR 2011,,,,"SAEZ,MARIEL S"
,OFFICE OF THE MINORITY WHIP,2011Q3,PERSONNEL COMPENSATION,,"SHOTT,DANIEL",2011-07-01,2011-09-30,EXECUTIVE ASST/OFFICE MANAGER,"9,999.99",FISCAL YEAR 2011,,,,"SHOTT,DANIEL"
,OFFICE OF THE MINORITY WHIP,2011Q3,PERSONNEL COMPENSATION,,"SIXKILLER, MARIAH S",2011-07-01,2011-09-30,SENIOR POLICY ADVISOR,"14,499.99",FISCAL YEAR 2011,,,,"SIXKILLER, MARIAH S"
,OFFICE OF THE MINORITY WHIP,2011Q3,PERSONNEL COMPENSATION,,"WIESSMANN,ADAM",2011-09-16,2011-09-30,SPEECHWRITER,"2,291.67",FISCAL YEAR 2011,,,,"WIESSMANN,ADAM"
,OFFICE OF THE MINORITY WHIP,2011Q3,TRAVEL,2019-09-15,"AVILES,DANIELLE R",2011-01-19,2011-01-19,TAXI/PARKING/TOLLS,9,FISCAL YEAR 2011,AP,Accounts payable,260274,"AVILES,DANIELLE R"
,OFFICE OF THE MINORITY WHIP,2011Q3,TRAVEL,2019-09-15,"AVILES,DANIELLE R",2011-01-09,2011-01-19,TAXI/PARKING/TOLLS,11,FISCAL YEAR 2011,AP,Accounts payable,260279,"AVILES,DANIELLE R"
,OFFICE OF THE MINORITY WHIP,2011Q3,TRAVEL,2019-09-15,"AVILES,DANIELLE R",2011-01-19,2011-01-19,TAXI/PARKING/TOLLS,11,FISCAL YEAR 2011,AP,Accounts payable,260285,"AVILES,DANIELLE R"
,OFFICE OF THE MINORITY WHIP,2011Q3,TRAVEL,2019-09-16,"AVILES,DANIELLE R",2011-06-24,2011-06-24,TAXI/PARKING/TOLLS,15,FISCAL YEAR 2011,AP,Accounts payable,260334,"AVILES,DANIELLE R"
,OFFICE OF THE MINORITY WHIP,2011Q3,TRAVEL,2019-09-16,"AVILES,DANIELLE R",2011-07-19,2011-07-19,TAXI/PARKING/TOLLS,15,FISCAL YEAR 2011,AP,Accounts payable,260336,"AVILES,DANIELLE R"
,OFFICE OF THE MINORITY WHIP,2011Q3,TRAVEL,2019-09-16,"AVILES,DANIELLE R",2011-07-26,2011-07-26,TAXI/PARKING/TOLLS,15,FISCAL YEAR 2011,AP,Accounts payable,260338,"AVILES,DANIELLE R"
,OFFICE OF THE MINORITY WHIP,2011Q3,TRAVEL,2019-09-16,"AVILES,DANIELLE R",2011-07-21,2011-07-21,TAXI/PARKING/TOLLS,15,FISCAL YEAR 2011,AP,Accounts payable,260341,"AVILES,DANIELLE R"
,OFFICE OF THE MINORITY WHIP,2011Q3,TRAVEL,2019-09-16,"GENSEMER, ELLIOT J",2011-06-23,2011-06-23,TAXI/PARKING/TOLLS,16,FISCAL YEAR 2011,AP,Accounts payable,260343,"GENSEMER, ELLIOT J"
,OFFICE OF THE MINORITY WHIP,2011Q3,TRAVEL,2019-09-16,"GENSEMER, ELLIOT J",2011-06-22,2011-06-22,TAXI/PARKING/TOLLS,16,FISCAL YEAR 2011,AP,Accounts payable,260344,"GENSEMER, ELLIOT J"
,OFFICE OF THE MINORITY WHIP,2011Q3,TRAVEL,2019-09-16,"GENSEMER, ELLIOT J",2011-06-16,2011-06-16,TAXI/PARKING/TOLLS,17,FISCAL YEAR 2011,AP,Accounts payable,260346,"GENSEMER, ELLIOT J"
,OFFICE OF THE MINORITY WHIP,2011Q3,TRAVEL,2019-09-16,"GENSEMER, ELLIOT J",2011-06-14,2011-06-14,TAXI/PARKING/TOLLS,20,FISCAL YEAR 2011,AP,Accounts payable,260348,"GENSEMER, ELLIOT J"
,OFFICE OF THE MINORITY WHIP,2011Q3,TRAVEL,2019-09-16,"GENSEMER, ELLIOT J",2011-06-02,2011-06-02,TAXI/PARKING/TOLLS,18,FISCAL YEAR 2011,AP,Accounts payable,260349,"GENSEMER, ELLIOT J"
,OFFICE OF THE MINORITY WHIP,2011Q3,TRAVEL,2019-09-16,"AVILES,DANIELLE R",2011-07-28,2011-07-28,TAXI/PARKING/TOLLS,15,FISCAL YEAR 2011,AP,Accounts payable,260351,"AVILES,DANIELLE R"
,OFFICE OF THE MINORITY WHIP,2011Q3,TRAVEL,2019-09-16,"AVILES,DANIELLE R",2011-08-11,2011-08-11,TAXI/PARKING/TOLLS,17,FISCAL YEAR 2011,AP,Accounts payable,260354,"AVILES,DANIELLE R"
,OFFICE OF THE MINORITY WHIP,2011Q3,TRAVEL,2019-09-16,"AVILES,DANIELLE R",2011-08-11,2011-08-11,TAXI/PARKING/TOLLS,18,FISCAL YEAR 2011,AP,Accounts payable,260356,"AVILES,DANIELLE R"
,OFFICE OF THE MINORITY WHIP,2011Q3,TRAVEL,2019-09-16,"GHOSH,APRATIM",2011-09-02,2011-09-02,TAXI/PARKING/TOLLS,10,FISCAL YEAR 2011,AP,Accounts payable,260359,"GHOSH,APRATIM"
,OFFICE OF THE MINORITY WHIP,2011Q3,TRAVEL,2019-09-16,"GHOSH,APRATIM",2011-09-01,2011-09-01,TAXI/PARKING/TOLLS,10,FISCAL YEAR 2011,AP,Accounts payable,260361,"GHOSH,APRATIM"
,OFFICE OF THE MINORITY WHIP,2011Q3,TRAVEL,2019-09-16,"GENSEMER, ELLIOT J",2011-05-31,2011-05-31,TAXI/PARKING/TOLLS,17,FISCAL YEAR 2011,AP,Accounts payable,260362,"GENSEMER, ELLIOT J"
,OFFICE OF THE MINORITY WHIP,2011Q3,TRAVEL,2019-09-16,"GENSEMER, ELLIOT J",2011-07-22,2011-07-22,TAXI/PARKING/TOLLS,17,FISCAL YEAR 2011,AP,Accounts payable,260365,"GENSEMER, ELLIOT J"
,OFFICE OF THE MINORITY WHIP,2011Q3,TRAVEL,2019-09-16,"GENSEMER, ELLIOT J",2011-07-28,2011-07-28,TAXI/PARKING/TOLLS,18,FISCAL YEAR 2011,AP,Accounts payable,260367,"GENSEMER, ELLIOT J"
,OFFICE OF THE MINORITY WHIP,2011Q3,TRAVEL,2019-09-16,"GENSEMER, ELLIOT J",2011-07-30,2011-07-30,TAXI/PARKING/TOLLS,19,FISCAL YEAR 2011,AP,Accounts payable,260370,"GENSEMER, ELLIOT J"
,OFFICE OF THE MINORITY WHIP,2011Q3,TRAVEL,2019-09-16,"SHOTT,DANIEL",2011-06-23,2011-06-23,TAXI/PARKING/TOLLS,12,FISCAL YEAR 2011,AP,Accounts payable,260371,"SHOTT,DANIEL"
,OFFICE OF THE MINORITY WHIP,2011Q3,TRAVEL,2019-09-19,"AVILES,DANIELLE R",2011-06-14,2011-06-14,TAXI/PARKING/TOLLS,12,FISCAL YEAR 2011,AP,Accounts payable,260331,"AVILES,DANIELLE R"
,OFFICE OF THE MINORITY WHIP,2011Q3,"RENT, COMMUNICATION, UTILITIES",2019-07-08,CITIBANK GOV CARD SERVICE,2011-04-29,2011-05-28,UTILITIES,344.99,FISCAL YEAR 2011,AP,Accounts payable,210586,CITIBANK GOV CARD SERVICE
,OFFICE OF THE MINORITY WHIP,2011Q3,PRINTING AND REPRODUCTION,2019-07-27,,2011-07-01,2011-07-31,PHOTOGRAPHIC (TRANSFER),5.5,FISCAL YEAR 2011,GL,General ledger,PIX0010657,
,OFFICE OF THE MINORITY WHIP,2011Q3,PRINTING AND REPRODUCTION,2019-08-19,"DAVID L. ANDRUKITUS, INC",2010-12-31,2010-12-31,PRINTING & REPRODUCTION,79.5,FISCAL YEAR 2011,AP,Accounts payable,236328,"DAVID L. ANDRUKITUS, INC"
,OFFICE OF THE MINORITY WHIP,2011Q3,PRINTING AND REPRODUCTION,2019-08-26,,2011-08-01,2011-08-31,PHOTOGRAPHIC (TRANSFER),42.2,FISCAL YEAR 2011,GL,General ledger,PIX0011623,
,OFFICE OF THE MINORITY WHIP,2011Q3,PRINTING AND REPRODUCTION,2019-09-15,"DAVID L. ANDRUKITUS, INC",2011-01-07,2011-01-07,PRINTING & REPRODUCTION,237.5,FISCAL YEAR 2011,AP,Accounts payable,260305,"DAVID L. ANDRUKITUS, INC"
,OFFICE OF THE MINORITY WHIP,2011Q3,PRINTING AND REPRODUCTION,2019-09-15,"DAVID L. ANDRUKITUS, INC",2011-01-06,2011-01-06,PRINTING & REPRODUCTION,127.5,FISCAL YEAR 2011,AP,Accounts payable,260310,"DAVID L. ANDRUKITUS, INC"
,OFFICE OF THE MINORITY WHIP,2011Q3,PRINTING AND REPRODUCTION,2019-09-15,"DAVID L. ANDRUKITUS, INC",2011-01-07,2011-01-07,PRINTING & REPRODUCTION,900,FISCAL YEAR 2011,AP,Accounts payable,260315,"DAVID L. ANDRUKITUS, INC"
,OFFICE OF THE MINORITY WHIP,2011Q3,PRINTING AND REPRODUCTION,2019-09-16,"DAVID L. ANDRUKITUS, INC",2011-07-08,2011-07-08,PRINTING & REPRODUCTION,157.5,FISCAL YEAR 2011,AP,Accounts payable,260237,"DAVID L. ANDRUKITUS, INC"
,OFFICE OF THE MINORITY WHIP,2011Q3,PRINTING AND REPRODUCTION,2019-09-16,"DAVID L. ANDRUKITUS, INC",2011-06-20,2011-06-20,PRINTING & REPRODUCTION,"2,737.95",FISCAL YEAR 2011,AP,Accounts payable,260240,"DAVID L. ANDRUKITUS, INC"
,OFFICE OF THE MINORITY WHIP,2011Q3,OTHER SERVICES,2019-09-01,"JACKSON RIVER, LLC",2011-07-01,2011-07-31,"WEB DEV HST,EMAIL & RLTD SERV","1,908.00",FISCAL YEAR 2011,AP,Accounts payable,251740,"JACKSON RIVER, LLC"
,OFFICE OF THE MINORITY WHIP,2011Q3,OTHER SERVICES,2019-09-16,CITIBANK GOV CARD SERVICE,2011-06-20,2011-06-20,LAUNDRY SERVICES,95.49,FISCAL YEAR 2011,AP,Accounts payable,260382,CITIBANK GOV CARD SERVICE
,OFFICE OF THE MINORITY WHIP,2011Q3,OTHER SERVICES,2019-09-16,CITIBANK GOV CARD SERVICE,2011-07-01,2011-07-01,REPRESENTATIONAL EXPENSES,152,FISCAL YEAR 2011,AP,Accounts payable,260384,CITIBANK GOV CARD SERVICE
,OFFICE OF THE MINORITY WHIP,2011Q3,OTHER SERVICES,2019-09-16,"JACKSON RIVER, LLC",2011-07-01,2011-07-31,"WEB DEV HST,EMAIL & RLTD SERV","-1,908.00",FISCAL YEAR 2011,AP,Accounts payable,260587,"JACKSON RIVER, LLC"
,OFFICE OF THE MINORITY WHIP,2011Q3,OTHER SERVICES,2019-09-23,CITIBANK GOV CARD SERVICE,2011-08-03,2011-08-03,REPRESENTATIONAL EXPENSES,6,FISCAL YEAR 2011,AP,Accounts payable,269282,CITIBANK GOV CARD SERVICE
,OFFICE OF THE MINORITY WHIP,2011Q3,SUPPLIES AND MATERIALS,2019-09-01,CITIBANK GOV CARD SERVICE,2011-06-29,2011-07-28,OFFICE SUPPLIES (OUTSIDE),736.92,FISCAL YEAR 2011,AP,Accounts payable,251745,CITIBANK GOV CARD SERVICE
,OFFICE OF THE MINORITY WHIP,2011Q3,SUPPLIES AND MATERIALS,2019-09-15,"AVILES,DANIELLE R",2011-01-19,2011-01-19,FOOD & BEVERAGE,13.5,FISCAL YEAR 2011,AP,Accounts payable,260289,"AVILES,DANIELLE R"
,OFFICE OF THE MINORITY WHIP,2011Q3,SUPPLIES AND MATERIALS,2019-09-15,"AVILES,DANIELLE R",2011-01-19,2011-01-19,FOOD & BEVERAGE,9.9,FISCAL YEAR 2011,AP,Accounts payable,260294,"AVILES,DANIELLE R"
,OFFICE OF THE MINORITY WHIP,2011Q3,SUPPLIES AND MATERIALS,2019-09-15,"BETTY CRUDUP, CATERER",2011-01-01,2011-01-31,FOOD & BEVERAGE,900,FISCAL YEAR 2011,AP,Accounts payable,260297,"BETTY CRUDUP, CATERER"
,OFFICE OF THE MINORITY WHIP,2011Q3,SUPPLIES AND MATERIALS,2019-09-16,"GENSEMER, ELLIOT J",2011-09-02,2011-09-02,FOOD & BEVERAGE,27.49,FISCAL YEAR 2011,AP,Accounts payable,260225,"GENSEMER, ELLIOT J"
,OFFICE OF THE MINORITY WHIP,2011Q3,SUPPLIES AND MATERIALS,2019-09-16,"AVILES,DANIELLE R",2011-09-07,2011-09-07,FOOD & BEVERAGE,28.47,FISCAL YEAR 2011,AP,Accounts payable,260226,"AVILES,DANIELLE R"
,OFFICE OF THE MINORITY WHIP,2011Q3,SUPPLIES AND MATERIALS,2019-09-16,"AVILES,DANIELLE R",2011-07-11,2011-07-11,FOOD & BEVERAGE,11.64,FISCAL YEAR 2011,AP,Accounts payable,260228,"AVILES,DANIELLE R"
,OFFICE OF THE MINORITY WHIP,2011Q3,SUPPLIES AND MATERIALS,2019-09-16,CITIBANK GOV CARD SERVICE,2011-06-29,2011-07-28,FOOD & BEVERAGE,"4,970.99",FISCAL YEAR 2011,AP,Accounts payable,260374,CITIBANK GOV CARD SERVICE
,OFFICE OF THE MINORITY WHIP,2011Q3,SUPPLIES AND MATERIALS,2019-09-16,CITIBANK GOV CARD SERVICE,2011-06-29,2011-07-28,PUBLICATIONS/REFERENCE MAT'L,272.39,FISCAL YEAR 2011,AP,Accounts payable,260378,CITIBANK GOV CARD SERVICE
,OFFICE OF THE MINORITY WHIP,2011Q3,SUPPLIES AND MATERIALS,2019-09-16,CITIBANK GOV CARD SERVICE,2011-06-29,2011-07-28,OFFICE SUPPLIES (OUTSIDE),-736.92,FISCAL YEAR 2011,AP,Accounts payable,260598,CITIBANK GOV CARD SERVICE
,OFFICE OF THE MINORITY WHIP,2011Q3,SUPPLIES AND MATERIALS,2019-09-23,CBC RESTAURANT CORP,2011-02-09,2011-02-09,FOOD & BEVERAGE,172.81,FISCAL YEAR 2011,AP,Accounts payable,269208,CBC RESTAURANT CORP
,OFFICE OF THE MINORITY WHIP,2011Q3,SUPPLIES AND MATERIALS,2019-09-23,CBC RESTAURANT CORP,2011-02-10,2011-02-10,FOOD & BEVERAGE,202.5,FISCAL YEAR 2011,AP,Accounts payable,269211,CBC RESTAURANT CORP
,OFFICE OF THE MINORITY WHIP,2011Q3,SUPPLIES AND MATERIALS,2019-09-23,CBC RESTAURANT CORP,2011-02-11,2011-02-11,FOOD & BEVERAGE,134.22,FISCAL YEAR 2011,AP,Accounts payable,269214,CBC RESTAURANT CORP
,OFFICE OF THE MINORITY WHIP,2011Q3,SUPPLIES AND MATERIALS,2019-09-23,CBC RESTAURANT CORP,2011-03-09,2011-03-09,FOOD & BEVERAGE,158.5,FISCAL YEAR 2011,AP,Accounts payable,269218,CBC RESTAURANT CORP
,OFFICE OF THE MINORITY WHIP,2011Q3,SUPPLIES AND MATERIALS,2019-09-23,CAPITOL HOST,2011-04-13,2011-04-13,FOOD & BEVERAGE,152.2,FISCAL YEAR 2011,AP,Accounts payable,269224,CAPITOL HOST
,OFFICE OF THE MINORITY WHIP,2011Q3,SUPPLIES AND MATERIALS,2019-09-23,CBC RESTAURANT CORP,2011-04-01,2011-04-01,FOOD & BEVERAGE,208,FISCAL YEAR 2011,AP,Accounts payable,269226,CBC RESTAURANT CORP
,OFFICE OF THE MINORITY WHIP,2011Q3,SUPPLIES AND MATERIALS,2019-09-23,CAPITOL HOST,2011-05-04,2011-05-04,FOOD & BEVERAGE,89.99,FISCAL YEAR 2011,AP,Accounts payable,269230,CAPITOL HOST
,OFFICE OF THE MINORITY WHIP,2011Q3,SUPPLIES AND MATERIALS,2019-09-23,CAPITOL HOST,2011-05-05,2011-05-05,FOOD & BEVERAGE,28.2,FISCAL YEAR 2011,AP,Accounts payable,269233,CAPITOL HOST
,OFFICE OF THE MINORITY WHIP,2011Q3,SUPPLIES AND MATERIALS,2019-09-23,CAPITOL HOST,2011-06-22,2011-06-22,FOOD & BEVERAGE,89.99,FISCAL YEAR 2011,AP,Accounts payable,269237,CAPITOL HOST
,OFFICE OF THE MINORITY WHIP,2011Q3,SUPPLIES AND MATERIALS,2019-09-23,CAPITOL HOST,2011-07-14,2011-07-14,FOOD & BEVERAGE,105,FISCAL YEAR 2011,AP,Accounts payable,269240,CAPITOL HOST
,OFFICE OF THE MINORITY WHIP,2011Q3,SUPPLIES AND MATERIALS,2019-09-23,CAPITOL HOST,2011-01-05,2011-01-05,FOOD & BEVERAGE,263.99,FISCAL YEAR 2011,AP,Accounts payable,269244,CAPITOL HOST
,OFFICE OF THE MINORITY WHIP,2011Q3,SUPPLIES AND MATERIALS,2019-09-23,CAPITOL HOST,2011-01-25,2011-01-25,FOOD & BEVERAGE,16.8,FISCAL YEAR 2011,AP,Accounts payable,269247,CAPITOL HOST
,OFFICE OF THE MINORITY WHIP,2011Q3,SUPPLIES AND MATERIALS,2019-09-23,CAPITOL HOST,2011-01-25,2011-01-25,FOOD & BEVERAGE,89.99,FISCAL YEAR 2011,AP,Accounts payable,269251,CAPITOL HOST
,OFFICE OF THE MINORITY WHIP,2011Q3,SUPPLIES AND MATERIALS,2019-09-23,CAPITOL HOST,2011-02-09,2011-02-09,FOOD & BEVERAGE,89.99,FISCAL YEAR 2011,AP,Accounts payable,269254,CAPITOL HOST
,OFFICE OF THE MINORITY WHIP,2011Q3,SUPPLIES AND MATERIALS,2019-09-23,CAPITOL HOST,2011-02-11,2011-02-11,FOOD & BEVERAGE,70.5,FISCAL YEAR 2011,AP,Accounts payable,269259,CAPITOL HOST
,OFFICE OF THE MINORITY WHIP,2011Q3,SUPPLIES AND MATERIALS,2019-09-23,CAPITOL HOST,2011-02-16,2011-02-16,FOOD & BEVERAGE,89.99,FISCAL YEAR 2011,AP,Accounts payable,269267,CAPITOL HOST
,OFFICE OF THE MINORITY WHIP,2011Q3,SUPPLIES AND MATERIALS,2019-09-23,CAPITOL HOST,2011-02-17,2011-02-17,FOOD & BEVERAGE,46.2,FISCAL YEAR 2011,AP,Accounts payable,269269,CAPITOL HOST
,OFFICE OF THE MINORITY WHIP,2011Q3,SUPPLIES AND MATERIALS,2019-09-23,CAPITOL HOST,2011-02-17,2011-02-17,FOOD & BEVERAGE,16.8,FISCAL YEAR 2011,AP,Accounts payable,269272,CAPITOL HOST
,OFFICE OF THE MINORITY WHIP,2011Q3,SUPPLIES AND MATERIALS,2019-09-23,CAPITOL HOST,2011-02-18,2011-02-18,FOOD & BEVERAGE,45,FISCAL YEAR 2011,AP,Accounts payable,269275,CAPITOL HOST
,OFFICE OF THE MINORITY WHIP,2011Q3,SUPPLIES AND MATERIALS,2019-09-23,CAPITOL HOST,2011-02-18,2011-02-18,FOOD & BEVERAGE,42.34,FISCAL YEAR 2011,AP,Accounts payable,269278,CAPITOL HOST
,OFFICE OF THE MINORITY WHIP,2011Q3,SUPPLIES AND MATERIALS,2019-09-23,CITIBANK GOV CARD SERVICE,2011-07-27,2011-08-11,FOOD & BEVERAGE,"1,682.01",FISCAL YEAR 2011,AP,Accounts payable,269280,CITIBANK GOV CARD SERVICE
,OFFICE OF THE MINORITY WHIP,2011Q3,SUPPLIES AND MATERIALS,2019-09-23,CBC RESTAURANT CORP,2011-08-03,2011-08-03,FOOD & BEVERAGE,92.5,FISCAL YEAR 2011,AP,Accounts payable,269287,CBC RESTAURANT CORP
,OFFICE OF THE MINORITY WHIP,2011Q3,EQUIPMENT,2019-09-01,MORE DIRECT,2011-06-29,2011-07-19,MAINTENANCE / REPAIRS,"1,581.72",FISCAL YEAR 2011,AP,Accounts payable,251742,MORE DIRECT
,OFFICE OF THE MINORITY WHIP,2011Q3,EQUIPMENT,2019-09-16,MORE DIRECT,2011-06-29,2011-07-19,MAINTENANCE / REPAIRS,"-1,581.72",FISCAL YEAR 2011,AP,Accounts payable,260606,MORE DIRECT
,OFFICE OF THE MINORITY WHIP,2011Q3,SUPPLIES AND MATERIALS,2019-09-16,CAPITOLHOST,2011-07-25,2011-07-25,FOOD & BEVERAGE,105,FISCAL YEAR 2011,AP,Accounts payable,260241,CAPITOLHOST
,OFFICE OF THE MINORITY WHIP,2011Q3,SUPPLIES AND MATERIALS,2019-09-16,CAPITOLHOST,2011-07-27,2011-07-27,FOOD & BEVERAGE,89.99,FISCAL YEAR 2011,AP,Accounts payable,260245,CAPITOLHOST
,OFFICE OF THE MINORITY WHIP,2011Q3,SUPPLIES AND MATERIALS,2019-09-16,CBC RESTAURANT CORP,2011-05-25,2011-05-25,FOOD & BEVERAGE,109,FISCAL YEAR 2011,AP,Accounts payable,260246,CBC RESTAURANT CORP
,OFFICE OF THE MINORITY WHIP,2011Q3,SUPPLIES AND MATERIALS,2019-09-16,CBC RESTAURANT CORP,2011-05-25,2011-05-25,FOOD & BEVERAGE,158.5,FISCAL YEAR 2011,AP,Accounts payable,260248,CBC RESTAURANT CORP
,OFFICE OF THE MINORITY WHIP,2011Q3,SUPPLIES AND MATERIALS,2019-09-16,CBC RESTAURANT CORP,2011-05-26,2011-05-26,FOOD & BEVERAGE,185.9,FISCAL YEAR 2011,AP,Accounts payable,260250,CBC RESTAURANT CORP
,OFFICE OF THE MINORITY WHIP,2011Q3,SUPPLIES AND MATERIALS,2019-09-16,CBC RESTAURANT CORP,2011-06-21,2011-06-21,FOOD & BEVERAGE,66,FISCAL YEAR 2011,AP,Accounts payable,260251,CBC RESTAURANT CORP
,OFFICE OF THE MINORITY WHIP,2011Q3,SUPPLIES AND MATERIALS,2019-09-16,CBC RESTAURANT CORP,2011-06-03,2011-06-03,FOOD & BEVERAGE,119.6,FISCAL YEAR 2011,AP,Accounts payable,260253,CBC RESTAURANT CORP
,OFFICE OF THE MINORITY WHIP,2011Q3,SUPPLIES AND MATERIALS,2019-09-16,CBC RESTAURANT CORP,2011-06-22,2011-06-22,FOOD & BEVERAGE,158.5,FISCAL YEAR 2011,AP,Accounts payable,260254,CBC RESTAURANT CORP
,OFFICE OF THE MINORITY WHIP,2011Q3,SUPPLIES AND MATERIALS,2019-09-16,CBC RESTAURANT CORP,2011-06-22,2011-06-22,FOOD & BEVERAGE,153,FISCAL YEAR 2011,AP,Accounts payable,260257,CBC RESTAURANT CORP
,OFFICE OF THE MINORITY WHIP,2011Q3,SUPPLIES AND MATERIALS,2019-09-16,CBC RESTAURANT CORP,2011-06-24,2011-06-24,FOOD & BEVERAGE,109,FISCAL YEAR 2011,AP,Accounts payable,260259,CBC RESTAURANT CORP
,OFFICE OF THE MINORITY WHIP,2011Q3,SUPPLIES AND MATERIALS,2019-09-16,CBC RESTAURANT CORP,2011-07-01,2011-07-01,FOOD & BEVERAGE,141.21,FISCAL YEAR 2011,AP,Accounts payable,260261,CBC RESTAURANT CORP
,OFFICE OF THE MINORITY WHIP,2011Q3,SUPPLIES AND MATERIALS,2019-09-16,CBC RESTAURANT CORP,2011-07-07,2011-07-07,FOOD & BEVERAGE,109,FISCAL YEAR 2011,AP,Accounts payable,260263,CBC RESTAURANT CORP
,OFFICE OF THE MINORITY WHIP,2011Q3,SUPPLIES AND MATERIALS,2019-09-16,CBC RESTAURANT CORP,2011-07-08,2011-07-08,FOOD & BEVERAGE,104.49,FISCAL YEAR 2011,AP,Accounts payable,260265,CBC RESTAURANT CORP
,OFFICE OF THE MINORITY WHIP,2011Q3,SUPPLIES AND MATERIALS,2019-09-16,CBC RESTAURANT CORP,2011-07-12,2011-07-12,FOOD & BEVERAGE,99,FISCAL YEAR 2011,AP,Accounts payable,260266,CBC RESTAURANT CORP
,OFFICE OF THE MINORITY WHIP,2011Q3,SUPPLIES AND MATERIALS,2019-09-16,CBC RESTAURANT CORP,2011-07-14,2011-07-14,FOOD & BEVERAGE,119,FISCAL YEAR 2011,AP,Accounts payable,260268,CBC RESTAURANT CORP
,OFFICE OF THE MINORITY WHIP,2011Q3,SUPPLIES AND MATERIALS,2019-09-16,CBC RESTAURANT CORP,2011-07-14,2011-07-14,FOOD & BEVERAGE,146.4,FISCAL YEAR 2011,AP,Accounts payable,260270,CBC RESTAURANT CORP
,OFFICE OF THE MINORITY WHIP,2011Q3,SUPPLIES AND MATERIALS,2019-09-16,CBC RESTAURANT CORP,2011-07-19,2011-07-19,FOOD & BEVERAGE,62.8,FISCAL YEAR 2011,AP,Accounts payable,260273,CBC RESTAURANT CORP
,OFFICE OF THE MINORITY WHIP,2011Q3,SUPPLIES AND MATERIALS,2019-09-16,CBC RESTAURANT CORP,2011-07-20,2011-07-20,FOOD & BEVERAGE,135,FISCAL YEAR 2011,AP,Accounts payable,260277,CBC RESTAURANT CORP
,OFFICE OF THE MINORITY WHIP,2011Q3,SUPPLIES AND MATERIALS,2019-09-16,CBC RESTAURANT CORP,2011-07-20,2011-07-20,FOOD & BEVERAGE,186,FISCAL YEAR 2011,AP,Accounts payable,260282,CBC RESTAURANT CORP
,OFFICE OF THE MINORITY WHIP,2011Q3,SUPPLIES AND MATERIALS,2019-09-16,CBC RESTAURANT CORP,2011-07-21,2011-07-21,FOOD & BEVERAGE,109,FISCAL YEAR 2011,AP,Accounts payable,260288,CBC RESTAURANT CORP
,OFFICE OF THE MINORITY WHIP,2011Q3,SUPPLIES AND MATERIALS,2019-09-16,CBC RESTAURANT CORP,2011-07-22,2011-07-22,FOOD & BEVERAGE,119.92,FISCAL YEAR 2011,AP,Accounts payable,260291,CBC RESTAURANT CORP
,OFFICE OF THE MINORITY WHIP,2011Q3,SUPPLIES AND MATERIALS,2019-09-16,CBC RESTAURANT CORP,2011-07-22,2011-07-22,FOOD & BEVERAGE,159.54,FISCAL YEAR 2011,AP,Accounts payable,260296,CBC RESTAURANT CORP
,OFFICE OF THE MINORITY WHIP,2011Q3,SUPPLIES AND MATERIALS,2019-09-16,CBC RESTAURANT CORP,2011-07-27,2011-07-27,FOOD & BEVERAGE,186,FISCAL YEAR 2011,AP,Accounts payable,260298,CBC RESTAURANT CORP
,OFFICE OF THE MINORITY WHIP,2011Q3,SUPPLIES AND MATERIALS,2019-09-16,CBC RESTAURANT CORP,2011-07-27,2011-07-27,FOOD & BEVERAGE,109,FISCAL YEAR 2011,AP,Accounts payable,260301,CBC RESTAURANT CORP
,OFFICE OF THE MINORITY WHIP,2011Q3,SUPPLIES AND MATERIALS,2019-09-16,CBC RESTAURANT CORP,2011-06-01,2011-06-01,FOOD & BEVERAGE,108.54,FISCAL YEAR 2011,AP,Accounts payable,260308,CBC RESTAURANT CORP
,OFFICE OF THE MINORITY WHIP,2011Q3,SUPPLIES AND MATERIALS,2019-09-16,CBC RESTAURANT CORP,2011-06-01,2011-06-01,FOOD & BEVERAGE,221.05,FISCAL YEAR 2011,AP,Accounts payable,260322,CBC RESTAURANT CORP
,OFFICE OF THE MINORITY WHIP,2011Q3,SUPPLIES AND MATERIALS,2019-09-16,CBC RESTAURANT CORP,2011-06-02,2011-06-02,FOOD & BEVERAGE,159.54,FISCAL YEAR 2011,AP,Accounts payable,260325,CBC RESTAURANT CORP
,OFFICE OF THE MINORITY WHIP,2011Q3,SUPPLIES AND MATERIALS,2019-09-16,CBC RESTAURANT CORP,2011-06-14,2011-06-14,FOOD & BEVERAGE,212.4,FISCAL YEAR 2011,AP,Accounts payable,260328,CBC RESTAURANT CORP
,OFFICE OF THE MINORITY WHIP,2011Q3,SUPPLIES AND MATERIALS,2019-09-16,CBC RESTAURANT CORP,2011-06-15,2011-06-15,FOOD & BEVERAGE,175,FISCAL YEAR 2011,AP,Accounts payable,260329,CBC RESTAURANT CORP
,OFFICE OF THE MINORITY WHIP,2011Q3,SUPPLIES AND MATERIALS,2019-07-27,HIGHLAND ESTATES COFFEE,2009-07-23,2009-07-23,FOOD & BEVERAGE,144.24,FISCAL YEAR 2009,AP,Accounts payable,225246,HIGHLAND ESTATES COFFEE
,OFFICE OF THE MINORITY WHIP,2011Q3,SUPPLIES AND MATERIALS,2019-08-02,HIGHLAND ESTATES COFFEE,2009-07-27,2009-07-27,FOOD & BEVERAGE,210.88,FISCAL YEAR 2009,AP,Accounts payable,225136,HIGHLAND ESTATES COFFEE
,OFFICE OF THE MINORITY WHIP,2011Q3,SUPPLIES AND MATERIALS,2019-08-02,HIGHLAND ESTATES COFFEE,2009-08-13,2009-08-13,FOOD & BEVERAGE,210.86,FISCAL YEAR 2009,AP,Accounts payable,225139,HIGHLAND ESTATES COFFEE
,OFFICE OF THE MINORITY WHIP,2011Q3,SUPPLIES AND MATERIALS,2019-08-02,HIGHLAND ESTATES COFFEE,2009-04-20,2009-04-20,FOOD & BEVERAGE,266.49,FISCAL YEAR 2009,AP,Accounts payable,225151,HIGHLAND ESTATES COFFEE
,OFFICE OF THE MINORITY WHIP,2011Q3,SUPPLIES AND MATERIALS,2019-08-02,HIGHLAND ESTATES COFFEE,2009-06-04,2009-06-04,FOOD & BEVERAGE,210.87,FISCAL YEAR 2009,AP,Accounts payable,225236,HIGHLAND ESTATES COFFEE
,OFFICE OF THE MINORITY WHIP,2011Q3,SUPPLIES AND MATERIALS,2019-08-02,HIGHLAND ESTATES COFFEE,2009-05-15,2009-06-15,FOOD & BEVERAGE,321.92,FISCAL YEAR 2009,AP,Accounts payable,225240,HIGHLAND ESTATES COFFEE
,OFFICE OF THE MINORITY WHIP,2011Q3,SUPPLIES AND MATERIALS,2019-08-02,HIGHLAND ESTATES COFFEE,2009-07-13,2009-07-13,FOOD & BEVERAGE,366.32,FISCAL YEAR 2009,AP,Accounts payable,225243,HIGHLAND ESTATES COFFEE
,DEMOCRATIC STEERING AND POLICY,2011Q3,PERSONNEL COMPENSATION,,"DEVLIN, PATRICK J",2011-07-01,2011-09-30,COMMUNICATIONS DIRECTOR,"31,250.01",FISCAL YEAR 2011,,,,"DEVLIN, PATRICK J"
,DEMOCRATIC STEERING AND POLICY,2011Q3,PERSONNEL COMPENSATION,,"SINGLETARY, BARVETTA",2011-07-01,2011-09-30,POLICY DIRECTOR,"33,249.99",FISCAL YEAR 2011,,,,"SINGLETARY, BARVETTA"
,DEMOCRATIC STEERING AND POLICY,2011Q3,PERSONNEL COMPENSATION,,"WATKINS, YELBERTON R",2011-07-01,2011-09-30,CHIEF OF STAFF,"41,250.00",FISCAL YEAR 2011,,,,"WATKINS, YELBERTON R"
,DEMOCRATIC STEERING AND POLICY,2011Q3,PERSONNEL COMPENSATION,,"ABOUCHAR, KEITH S",2011-07-01,2011-09-30,SENIOR POLICY ADVISOR,"32,700.00",FISCAL YEAR 2011,,,,"ABOUCHAR, KEITH S"
,DEMOCRATIC STEERING AND POLICY,2011Q3,PERSONNEL COMPENSATION,,"CAPRON, MARGARET W",2011-07-01,2011-09-30,SENIOR ADV POLICY & COMM,"31,924.26",FISCAL YEAR 2011,,,,"CAPRON, MARGARET W"
,DEMOCRATIC STEERING AND POLICY,2011Q3,PERSONNEL COMPENSATION,,"DAY,TAMIKA K",2011-07-01,2011-09-30,SR STAFF ASST SYS ADMIN,"12,500.01",FISCAL YEAR 2011,,,,"DAY,TAMIKA K"
,DEMOCRATIC STEERING AND POLICY,2011Q3,PERSONNEL COMPENSATION,,"ELLISON,MATTHEW B",2011-07-01,2011-09-30,RESEARCH ASSISTANT,"7,500.00",FISCAL YEAR 2011,,,,"ELLISON,MATTHEW B"
,DEMOCRATIC STEERING AND POLICY,2011Q3,PERSONNEL COMPENSATION,,"GEORGE,EVANGELINE M",2011-07-01,2011-09-30,PRESS ADVISOR,"11,999.99",FISCAL YEAR 2011,,,,"GEORGE,EVANGELINE M"
,DEMOCRATIC STEERING AND POLICY,2011Q3,PERSONNEL COMPENSATION,,"JUDGE, KRISTINE A",2011-07-01,2011-09-30,SENIOR ADVISOR/POLICY COMM,"31,924.26",FISCAL YEAR 2011,,,,"JUDGE, KRISTINE A"
,DEMOCRATIC STEERING AND POLICY,2011Q3,PERSONNEL COMPENSATION,,"MILLER,AMY M",2011-08-10,2011-09-30,SENIOR ADVISOR,"14,166.66",FISCAL YEAR 2011,,,,"MILLER,AMY M"
,DEMOCRATIC STEERING AND POLICY,2011Q3,PERSONNEL COMPENSATION,,"SURGEON,BINA G",2011-07-01,2011-07-31,DEPUTY DIRECTOR OF PROTOCOL,"4,694.25",FISCAL YEAR 2011,,,,"SURGEON,BINA G"
,DEMOCRATIC STEERING AND POLICY,2011Q3,PERSONNEL COMPENSATION,,"SURGEON,BINA G",2011-08-01,2011-09-30,SPECIAL ASST TO THE LEADER,"11,666.66",FISCAL YEAR 2011,,,,"SURGEON,BINA G"
,DEMOCRATIC STEERING AND POLICY,2011Q3,PERSONNEL COMPENSATION,,"UENG,STEPHANIE L",2011-07-01,2011-09-30,OUTREACH ASSISTANT,"12,931.49",FISCAL YEAR 2011,,,,"UENG,STEPHANIE L"
,DEMOCRATIC CAUCUS,2011Q3,PERSONNEL COMPENSATION,,"RUBINO,SHELLEY M",2011-07-01,2011-09-30,ADVISOR TO THE CHAIRMAN,"21,562.50",FISCAL YEAR 2011,,,,"RUBINO,SHELLEY M"
,DEMOCRATIC CAUCUS,2011Q3,PERSONNEL COMPENSATION,,"SHEVLIN IV, GEORGE F",2011-07-01,2011-09-30,EXECUTIVE DIRECTOR,"43,125.00",FISCAL YEAR 2011,,,,"SHEVLIN IV, GEORGE F"
,DEMOCRATIC CAUCUS,2011Q3,PERSONNEL COMPENSATION,,"TRAN,CATHERINE LE",2011-07-01,2011-09-30,POLICY DIRECTOR,"32,499.99",FISCAL YEAR 2011,,,,"TRAN,CATHERINE LE"
,DEMOCRATIC CAUCUS,2011Q3,PERSONNEL COMPENSATION,,"BANJAC,SRDAN",2011-07-01,2011-09-30,ASSISTANT TO THE CHAIRMAN,"13,500.00",FISCAL YEAR 2011,,,,"BANJAC,SRDAN"
,DEMOCRATIC CAUCUS,2011Q3,PERSONNEL COMPENSATION,,"BRACHMAN, ELLIS A",2011-07-01,2011-09-30,COMMUNICATIONS DIRECTOR,"27,000.00",FISCAL YEAR 2011,,,,"BRACHMAN, ELLIS A"
,DEMOCRATIC CAUCUS,2011Q3,PERSONNEL COMPENSATION,,"BREUX,KRISTINA H",2011-07-01,2011-08-19,COMMUNICATIONS ASSISTANT,"1,633.33",FISCAL YEAR 2011,,,,"BREUX,KRISTINA H"
,DEMOCRATIC CAUCUS,2011Q3,PERSONNEL COMPENSATION,,"BUI, TONIA",2011-07-01,2011-08-05,MEMBER OUTREACH ASST-VICE CHR,"3,402.78",FISCAL YEAR 2011,,,,"BUI, TONIA"
,DEMOCRATIC CAUCUS,2011Q3,PERSONNEL COMPENSATION,,"BUI, TONIA",2011-08-01,2011-08-05,MEMBER OUTREACH ASST-VICE CHR (OTHER COMPENSATION),"1,069.44",FISCAL YEAR 2011,,,,"BUI, TONIA"
,DEMOCRATIC CAUCUS,2011Q3,PERSONNEL COMPENSATION,,"CHU,ANNA L",2011-07-01,2011-07-31,POLICY ADVISOR,"1,155.56",FISCAL YEAR 2011,,,,"CHU,ANNA L"
,DEMOCRATIC CAUCUS,2011Q3,PERSONNEL COMPENSATION,,"CHU,ANNA L",2011-07-01,2011-07-08,POLICY ADVISOR (OTHER COMPENSATION),577.78,FISCAL YEAR 2011,,,,"CHU,ANNA L"
,DEMOCRATIC CAUCUS,2011Q3,PERSONNEL COMPENSATION,,"DAGADAKIS,STAMATIOS",2011-07-01,2011-08-31,EXECUTIVE ADVISOR,"5,416.66",FISCAL YEAR 2011,,,,"DAGADAKIS,STAMATIOS"
,DEMOCRATIC CAUCUS,2011Q3,PERSONNEL COMPENSATION,,"DAGADAKIS,STAMATIOS",2011-09-01,2011-09-30,SHARED EMPLOYEE,"4,250.00",FISCAL YEAR 2011,,,,"DAGADAKIS,STAMATIOS"
,DEMOCRATIC CAUCUS,2011Q3,PERSONNEL COMPENSATION,,"DE PUY,GERALDINE M",2011-07-01,2011-09-30,CORRESPONDENCE ASSISTANT,"10,125.00",FISCAL YEAR 2011,,,,"DE PUY,GERALDINE M"
,DEMOCRATIC CAUCUS,2011Q3,PERSONNEL COMPENSATION,,"DELANEY, ERIC L",2011-07-01,2011-09-30,MEMBER OUTREACH ASST-VICE CHR,"11,000.01",FISCAL YEAR 2011,,,,"DELANEY, ERIC L"
,DEMOCRATIC CAUCUS,2011Q3,PERSONNEL COMPENSATION,,"GLEESON,JAMES M",2011-07-01,2011-09-30,PRESS SEC FOR THE VICE CHAIR,"6,562.50",FISCAL YEAR 2011,,,,"GLEESON,JAMES M"
,DEMOCRATIC CAUCUS,2011Q3,PERSONNEL COMPENSATION,,"GONZALES, MELONDY S",2011-07-01,2011-09-30,DIR OF MBR OUTREACH-VICE CHAIR,"17,250.00",FISCAL YEAR 2011,,,,"GONZALES, MELONDY S"
,DEMOCRATIC CAUCUS,2011Q3,PERSONNEL COMPENSATION,,"GRADY,KATHERINE K",2011-07-01,2011-09-30,STAFF ASSISTANT,"8,499.99",FISCAL YEAR 2011,,,,"GRADY,KATHERINE K"
,DEMOCRATIC CAUCUS,2011Q3,PERSONNEL COMPENSATION,,"JAWORSKI, KIMBERLY H",2011-07-01,2011-09-30,EVENTS AND PROJECTS COORDINATO,"12,999.99",FISCAL YEAR 2011,,,,"JAWORSKI, KIMBERLY H"
,DEMOCRATIC CAUCUS,2011Q3,PERSONNEL COMPENSATION,,"MCCLUSKIE,SEAN E",2011-07-01,2011-09-30,STAFF DIR FOR THE VICE CHAIR,"15,000.00",FISCAL YEAR 2011,,,,"MCCLUSKIE,SEAN E"
,DEMOCRATIC CAUCUS,2011Q3,PERSONNEL COMPENSATION,,"MCMAHON,KYLE A",2011-07-01,2011-09-30,PRESS ASSISTANT,"7,250.01",FISCAL YEAR 2011,,,,"MCMAHON,KYLE A"
,DEMOCRATIC CAUCUS,2011Q3,PERSONNEL COMPENSATION,,"MORA,JASMINE",2011-07-01,2011-09-30,PRESS ASST/RESCHR FOR VICE CHR,"8,750.01",FISCAL YEAR 2011,,,,"MORA,JASMINE"
,DEMOCRATIC CAUCUS,2011Q3,PERSONNEL COMPENSATION,,"PERONACE,ANTONIO",2011-07-01,2011-09-30,DIR OF MULTIMEDIA COMM AND TEC,"15,500.01",FISCAL YEAR 2011,,,,"PERONACE,ANTONIO"
,DEMOCRATIC CAUCUS,2011Q3,PERSONNEL COMPENSATION,,"PERONACE,ANTONIO",2011-06-01,2011-06-21,DIR OF MULTIMEDIA COMM AND TEC (OTHER COMPENSATION),"5,000.00",FISCAL YEAR 2011,,,,"PERONACE,ANTONIO"
,DEMOCRATIC CAUCUS,2011Q3,PERSONNEL COMPENSATION,,"PLATT,ANDREW J",2011-07-01,2011-09-30,RESEARCH & TECHNOLOGY ASST,"8,750.01",FISCAL YEAR 2011,,,,"PLATT,ANDREW J"
,DEMOCRATIC CAUCUS,2011Q3,PERSONNEL COMPENSATION,,"RESENDENZ,MARVENE R",2011-07-01,2011-09-30,EXECUTIVE ASSISTANT/SCHEDULER,"15,000.00",FISCAL YEAR 2011,,,,"RESENDENZ,MARVENE R"
,DEMOCRATIC CAUCUS,2011Q3,PERSONNEL COMPENSATION,,"RODRIGUEZ-OLVERA,LORENZO A",2011-07-01,2011-09-30,MEMBER OUTREACH ASST-VICE CHR,"9,875.01",FISCAL YEAR 2011,,,,"RODRIGUEZ-OLVERA,LORENZO A"
,DEMOCRATIC CAUCUS,2011Q3,PERSONNEL COMPENSATION,,"SLATER,LEE",2011-09-01,2011-09-30,SHARED EMPLOYEE,"3,000.00",FISCAL YEAR 2011,,,,"SLATER,LEE"
,DEMOCRATIC CAUCUS,2011Q3,TRAVEL,2019-07-01,"DAGADAKIS,STAMATIOS",2011-06-16,2011-06-19,LODGING,459.27,FISCAL YEAR 2011,AP,Accounts payable,208020,"DAGADAKIS,STAMATIOS"
,DEMOCRATIC CAUCUS,2011Q3,TRAVEL,2019-07-01,"DAGADAKIS,STAMATIOS",2011-06-19,2011-06-19,COMMERCIAL TRANSPORTATION,26,FISCAL YEAR 2011,AP,Accounts payable,208022,"DAGADAKIS,STAMATIOS"
,DEMOCRATIC CAUCUS,2011Q3,TRAVEL,2019-07-12,"DAGADAKIS,STAMATIOS",2011-06-16,2011-06-19,COMMERCIAL TRANSPORTATION,533.3,FISCAL YEAR 2011,AP,Accounts payable,208019,"DAGADAKIS,STAMATIOS"
,DEMOCRATIC CAUCUS,2011Q3,TRAVEL,2019-07-12,"DAGADAKIS,STAMATIOS",2011-06-16,2011-06-16,COMMERCIAL TRANSPORTATION,6,FISCAL YEAR 2011,AP,Accounts payable,208021,"DAGADAKIS,STAMATIOS"
,DEMOCRATIC CAUCUS,2011Q3,TRAVEL,2019-08-02,"RUBINO,SHELLEY M",2011-07-05,2011-07-05,TAXI/PARKING/TOLLS,15.5,FISCAL YEAR 2011,AP,Accounts payable,229106,"RUBINO,SHELLEY M"
,DEMOCRATIC CAUCUS,2011Q3,TRAVEL,2019-08-17,"GRADY, KATHERINE",2011-04-04,2011-08-01,PRIVATE AUTO MILEAGE,47.79,FISCAL YEAR 2011,AP,Accounts payable,239675,"GRADY, KATHERINE"
,DEMOCRATIC CAUCUS,2011Q3,TRAVEL,2019-08-19,"RUBINO,SHELLEY M",2011-07-04,2011-07-04,TAXI/PARKING/TOLLS,10.5,FISCAL YEAR 2011,AP,Accounts payable,229103,"RUBINO,SHELLEY M"
,DEMOCRATIC CAUCUS,2011Q3,PRINTING AND REPRODUCTION,2019-07-06,"DAGADAKIS,STAMATIOS",2011-06-17,2011-06-17,PRINTING & REPRODUCTION,107.67,FISCAL YEAR 2011,AP,Accounts payable,209310,"DAGADAKIS,STAMATIOS"
,DEMOCRATIC CAUCUS,2011Q3,OTHER SERVICES,2019-08-15,CAPITOL VALET,2011-06-13,2011-06-13,LAUNDRY SERVICES,151.05,FISCAL YEAR 2011,AP,Accounts payable,235948,CAPITOL VALET
,DEMOCRATIC CAUCUS,2011Q3,OTHER SERVICES,2019-08-15,CAPITOL VALET,2011-07-19,2011-07-19,LAUNDRY SERVICES,63.6,FISCAL YEAR 2011,AP,Accounts payable,235949,CAPITOL VALET
,DEMOCRATIC CAUCUS,2011Q3,OTHER SERVICES,2019-08-15,CAPITOL VALET,2011-07-18,2011-07-18,LAUNDRY SERVICES,108.65,FISCAL YEAR 2011,AP,Accounts payable,235950,CAPITOL VALET
,DEMOCRATIC CAUCUS,2011Q3,OTHER SERVICES,2019-08-15,CAPITOL VALET,2011-07-07,2011-07-07,LAUNDRY SERVICES,106,FISCAL YEAR 2011,AP,Accounts payable,235951,CAPITOL VALET
,DEMOCRATIC CAUCUS,2011Q3,OTHER SERVICES,2019-08-15,CAPITOL VALET,2011-06-29,2011-06-29,LAUNDRY SERVICES,21.2,FISCAL YEAR 2011,AP,Accounts payable,235954,CAPITOL VALET
,DEMOCRATIC CAUCUS,2011Q3,OTHER SERVICES,2019-08-15,CAPITOL VALET,2011-06-23,2011-06-23,LAUNDRY SERVICES,63.6,FISCAL YEAR 2011,AP,Accounts payable,235955,CAPITOL VALET
,DEMOCRATIC CAUCUS,2011Q3,OTHER SERVICES,2019-08-15,CAPITOL VALET,2011-05-25,2011-05-25,LAUNDRY SERVICES,95.4,FISCAL YEAR 2011,AP,Accounts payable,235957,CAPITOL VALET
,DEMOCRATIC CAUCUS,2011Q3,OTHER SERVICES,2019-08-15,CAPITOL VALET,2011-06-18,2011-06-18,LAUNDRY SERVICES,21.2,FISCAL YEAR 2011,AP,Accounts payable,235959,CAPITOL VALET
,DEMOCRATIC CAUCUS,2011Q3,OTHER SERVICES,2019-09-08,BOX.NET INC,2011-08-27,2011-09-26,"WEB DEV HST,EMAIL & RLTD SERV",100,FISCAL YEAR 2011,AP,Accounts payable,255265,BOX.NET INC
,DEMOCRATIC CAUCUS,2011Q3,OTHER SERVICES,2019-09-08,BOX.NET INC,2011-07-27,2011-08-26,"WEB DEV HST,EMAIL & RLTD SERV",100,FISCAL YEAR 2011,AP,Accounts payable,255266,BOX.NET INC
,DEMOCRATIC CAUCUS,2011Q3,OTHER SERVICES,2019-09-08,BOX.NET INC,2011-05-27,2011-06-26,"WEB DEV HST,EMAIL & RLTD SERV",100,FISCAL YEAR 2011,AP,Accounts payable,255267,BOX.NET INC
,DEMOCRATIC CAUCUS,2011Q3,OTHER SERVICES,2019-09-08,BOX.NET INC,2011-06-27,2011-07-26,"WEB DEV HST,EMAIL & RLTD SERV",100,FISCAL YEAR 2011,AP,Accounts payable,255269,BOX.NET INC
,DEMOCRATIC CAUCUS,2011Q3,OTHER SERVICES,2019-09-08,BOX.NET INC,2011-04-27,2011-05-26,"WEB DEV HST,EMAIL & RLTD SERV",100,FISCAL YEAR 2011,AP,Accounts payable,255271,BOX.NET INC
,DEMOCRATIC CAUCUS,2011Q3,SUPPLIES AND MATERIALS,2019-07-06,"RUBINO,SHELLEY M",2011-06-23,2011-06-23,FOOD & BEVERAGE,741.68,FISCAL YEAR 2011,AP,Accounts payable,209309,"RUBINO,SHELLEY M"
,DEMOCRATIC CAUCUS,2011Q3,SUPPLIES AND MATERIALS,2019-07-06,"SHEVLIN IV, GEORGE F",2011-06-13,2011-06-13,FOOD & BEVERAGE,186.95,FISCAL YEAR 2011,AP,Accounts payable,209311,"SHEVLIN IV, GEORGE F"
,DEMOCRATIC CAUCUS,2011Q3,SUPPLIES AND MATERIALS,2019-07-13,"RUBINO,SHELLEY M",2011-05-03,2011-05-03,FOOD & BEVERAGE,208,FISCAL YEAR 2011,AP,Accounts payable,209312,"RUBINO,SHELLEY M"
,DEMOCRATIC CAUCUS,2011Q3,SUPPLIES AND MATERIALS,2019-07-13,"RUBINO,SHELLEY M",2011-05-11,2011-05-11,FOOD & BEVERAGE,132,FISCAL YEAR 2011,AP,Accounts payable,209313,"RUBINO,SHELLEY M"
,DEMOCRATIC CAUCUS,2011Q3,SUPPLIES AND MATERIALS,2019-07-13,"RUBINO,SHELLEY M",2011-07-06,2011-07-06,FOOD & BEVERAGE,74.66,FISCAL YEAR 2011,AP,Accounts payable,212858,"RUBINO,SHELLEY M"
,DEMOCRATIC CAUCUS,2011Q3,SUPPLIES AND MATERIALS,2019-07-13,"PERONACE,ANTONIO",2011-06-29,2011-06-29,OFFICE SUPPLIES (OUTSIDE),18.46,FISCAL YEAR 2011,AP,Accounts payable,212860,"PERONACE,ANTONIO"
,DEMOCRATIC CAUCUS,2011Q3,SUPPLIES AND MATERIALS,2019-07-13,"RUBINO,SHELLEY M",2011-06-21,2011-06-21,FOOD & BEVERAGE,129.04,FISCAL YEAR 2011,AP,Accounts payable,212862,"RUBINO,SHELLEY M"
,DEMOCRATIC CAUCUS,2011Q3,SUPPLIES AND MATERIALS,2019-07-13,"RUBINO,SHELLEY M",2011-07-06,2011-07-06,FOOD & BEVERAGE,"1,270.80",FISCAL YEAR 2011,AP,Accounts payable,212863,"RUBINO,SHELLEY M"
,DEMOCRATIC CAUCUS,2011Q3,SUPPLIES AND MATERIALS,2019-07-14,"RUBINO,SHELLEY M",2011-06-23,2011-06-23,FOOD & BEVERAGE,314.99,FISCAL YEAR 2011,AP,Accounts payable,212865,"RUBINO,SHELLEY M"
,DEMOCRATIC CAUCUS,2011Q3,SUPPLIES AND MATERIALS,2019-07-21,"RUBINO,SHELLEY M",2011-07-08,2011-07-08,FOOD & BEVERAGE,278.17,FISCAL YEAR 2011,AP,Accounts payable,222597,"RUBINO,SHELLEY M"
,DEMOCRATIC CAUCUS,2011Q3,SUPPLIES AND MATERIALS,2019-07-21,"VOCUS, INC",2011-08-01,2012-07-31,PUBLICATIONS/REFERENCE MAT'L,"3,454.00",FISCAL YEAR 2011,AP,Accounts payable,222602,"VOCUS, INC"
,DEMOCRATIC CAUCUS,2011Q3,SUPPLIES AND MATERIALS,2019-07-21,"RUBINO,SHELLEY M",2011-07-11,2011-07-11,FOOD & BEVERAGE,262.97,FISCAL YEAR 2011,AP,Accounts payable,222605,"RUBINO,SHELLEY M"
,DEMOCRATIC CAUCUS,2011Q3,SUPPLIES AND MATERIALS,2019-07-21,"RUBINO,SHELLEY M",2011-07-11,2011-07-11,FOOD & BEVERAGE,68.92,FISCAL YEAR 2011,AP,Accounts payable,222610,"RUBINO,SHELLEY M"
,DEMOCRATIC CAUCUS,2011Q3,SUPPLIES AND MATERIALS,2019-07-21,"SHEVLIN IV, GEORGE F",2011-07-11,2011-07-11,FOOD & BEVERAGE,72.66,FISCAL YEAR 2011,AP,Accounts payable,222612,"SHEVLIN IV, GEORGE F"
,DEMOCRATIC CAUCUS,2011Q3,SUPPLIES AND MATERIALS,2019-07-27,DEER PARK,2011-06-30,2011-06-30,WATER,106.92,FISCAL YEAR 2011,AP,Accounts payable,226319,DEER PARK
,DEMOCRATIC CAUCUS,2011Q3,SUPPLIES AND MATERIALS,2019-08-02,"RUBINO,SHELLEY M",2011-07-15,2011-07-15,FOOD & BEVERAGE,4.99,FISCAL YEAR 2011,AP,Accounts payable,229100,"RUBINO,SHELLEY M"
,DEMOCRATIC CAUCUS,2011Q3,SUPPLIES AND MATERIALS,2019-08-02,"JAWORSKI, KIMBERLY H",2011-07-19,2011-07-19,FOOD & BEVERAGE,17.6,FISCAL YEAR 2011,AP,Accounts payable,229110,"JAWORSKI, KIMBERLY H"
,DEMOCRATIC CAUCUS,2011Q3,SUPPLIES AND MATERIALS,2019-08-02,"JAWORSKI, KIMBERLY H",2011-07-18,2011-07-18,FOOD & BEVERAGE,25.58,FISCAL YEAR 2011,AP,Accounts payable,229113,"JAWORSKI, KIMBERLY H"
,DEMOCRATIC CAUCUS,2011Q3,SUPPLIES AND MATERIALS,2019-08-02,"RUBINO,SHELLEY M",2011-07-12,2011-07-12,FOOD & BEVERAGE,424.25,FISCAL YEAR 2011,AP,Accounts payable,229169,"RUBINO,SHELLEY M"
,DEMOCRATIC CAUCUS,2011Q3,SUPPLIES AND MATERIALS,2019-08-02,"RUBINO,SHELLEY M",2011-07-18,2011-07-18,FOOD & BEVERAGE,182.06,FISCAL YEAR 2011,AP,Accounts payable,229181,"RUBINO,SHELLEY M"
,DEMOCRATIC CAUCUS,2011Q3,SUPPLIES AND MATERIALS,2019-08-02,"RUBINO,SHELLEY M",2011-07-15,2011-07-15,FOOD & BEVERAGE,202.03,FISCAL YEAR 2011,AP,Accounts payable,229185,"RUBINO,SHELLEY M"
,DEMOCRATIC CAUCUS,2011Q3,SUPPLIES AND MATERIALS,2019-08-02,"BANJAC,SRDAN",2011-07-15,2011-07-15,FOOD & BEVERAGE,38.14,FISCAL YEAR 2011,AP,Accounts payable,229195,"BANJAC,SRDAN"
,DEMOCRATIC CAUCUS,2011Q3,SUPPLIES AND MATERIALS,2019-08-04,"RUBINO,SHELLEY M",2011-07-08,2011-07-08,FOOD & BEVERAGE,950.04,FISCAL YEAR 2011,AP,Accounts payable,229175,"RUBINO,SHELLEY M"
,DEMOCRATIC CAUCUS,2011Q3,SUPPLIES AND MATERIALS,2019-08-15,"RUBINO,SHELLEY M",2011-07-27,2011-07-27,FOOD & BEVERAGE,139.32,FISCAL YEAR 2011,AP,Accounts payable,235942,"RUBINO,SHELLEY M"
,DEMOCRATIC CAUCUS,2011Q3,SUPPLIES AND MATERIALS,2019-08-15,"RUBINO,SHELLEY M",2011-07-30,2011-07-30,FOOD & BEVERAGE,514.14,FISCAL YEAR 2011,AP,Accounts payable,235947,"RUBINO,SHELLEY M"
,DEMOCRATIC CAUCUS,2011Q3,SUPPLIES AND MATERIALS,2019-08-15,"RUBINO,SHELLEY M",2011-07-26,2011-07-26,FOOD & BEVERAGE,165.36,FISCAL YEAR 2011,AP,Accounts payable,235963,"RUBINO,SHELLEY M"
,DEMOCRATIC CAUCUS,2011Q3,SUPPLIES AND MATERIALS,2019-08-15,"RUBINO,SHELLEY M",2011-07-29,2011-07-29,FOOD & BEVERAGE,399.6,FISCAL YEAR 2011,AP,Accounts payable,235967,"RUBINO,SHELLEY M"
,DEMOCRATIC CAUCUS,2011Q3,SUPPLIES AND MATERIALS,2019-08-15,"JAWORSKI, KIMBERLY H",2011-08-01,2011-08-01,FOOD & BEVERAGE,231.33,FISCAL YEAR 2011,AP,Accounts payable,235969,"JAWORSKI, KIMBERLY H"
,DEMOCRATIC CAUCUS,2011Q3,SUPPLIES AND MATERIALS,2019-08-16,"RUBINO,SHELLEY M",2011-07-18,2011-07-18,FOOD & BEVERAGE,443.5,FISCAL YEAR 2011,AP,Accounts payable,235965,"RUBINO,SHELLEY M"
,DEMOCRATIC CAUCUS,2011Q3,SUPPLIES AND MATERIALS,2019-08-16,"RUBINO,SHELLEY M",2011-07-27,2011-07-27,FOOD & BEVERAGE,76.78,FISCAL YEAR 2011,AP,Accounts payable,235970,"RUBINO,SHELLEY M"
,DEMOCRATIC CAUCUS,2011Q3,SUPPLIES AND MATERIALS,2019-08-17,"RUBINO,SHELLEY M",2011-08-01,2011-08-01,FOOD & BEVERAGE,685.52,FISCAL YEAR 2011,AP,Accounts payable,239666,"RUBINO,SHELLEY M"
,DEMOCRATIC CAUCUS,2011Q3,SUPPLIES AND MATERIALS,2019-08-17,"RUBINO,SHELLEY M",2011-07-20,2011-07-20,FOOD & BEVERAGE,167.02,FISCAL YEAR 2011,AP,Accounts payable,239668,"RUBINO,SHELLEY M"
,DEMOCRATIC CAUCUS,2011Q3,SUPPLIES AND MATERIALS,2019-08-17,"RUBINO,SHELLEY M",2011-07-25,2011-07-25,FOOD & BEVERAGE,238.74,FISCAL YEAR 2011,AP,Accounts payable,239669,"RUBINO,SHELLEY M"
,DEMOCRATIC CAUCUS,2011Q3,SUPPLIES AND MATERIALS,2019-08-17,"RUBINO,SHELLEY M",2011-07-28,2011-07-28,FOOD & BEVERAGE,175.54,FISCAL YEAR 2011,AP,Accounts payable,239671,"RUBINO,SHELLEY M"
,DEMOCRATIC CAUCUS,2011Q3,SUPPLIES AND MATERIALS,2019-08-17,"RUBINO,SHELLEY M",2011-07-29,2011-07-29,FOOD & BEVERAGE,105.03,FISCAL YEAR 2011,AP,Accounts payable,239673,"RUBINO,SHELLEY M"
,DEMOCRATIC CAUCUS,2011Q3,SUPPLIES AND MATERIALS,2019-08-18,DEER PARK,2011-07-31,2011-07-31,WATER,106.92,FISCAL YEAR 2011,AP,Accounts payable,244250,DEER PARK
,DEMOCRATIC CAUCUS,2011Q3,SUPPLIES AND MATERIALS,2019-09-06,"RUBINO,SHELLEY M",2011-07-11,2011-07-11,FOOD & BEVERAGE,171.38,FISCAL YEAR 2011,AP,Accounts payable,229191,"RUBINO,SHELLEY M"
,DEMOCRATIC CAUCUS,2011Q3,SUPPLIES AND MATERIALS,2019-09-06,THE WALL STREET JOURNAL,2011-09-01,2012-08-31,PUBLICATIONS/REFERENCE MAT'L,396.86,FISCAL YEAR 2011,AP,Accounts payable,253083,THE WALL STREET JOURNAL
,DEMOCRATIC CAUCUS,2011Q3,SUPPLIES AND MATERIALS,2019-09-22,DEER PARK,2011-08-31,2011-08-31,WATER,88.98,FISCAL YEAR 2011,AP,Accounts payable,268362,DEER PARK
,REPUBLICAN CONFERENCE,2011Q3,PERSONNEL COMPENSATION,,"BUCHANAN, MICHAEL D",2011-07-01,2011-09-30,CHIEF OF STAFF (STATUTORY),"41,875.00",FISCAL YEAR 2011,,,,"BUCHANAN, MICHAEL D"
,REPUBLICAN CONFERENCE,2011Q3,PERSONNEL COMPENSATION,,"MCGAHN, SHANNON",2011-07-01,2011-09-07,COMMUNICATIONS DIR (STATUTORY),"26,055.56",FISCAL YEAR 2011,,,,"MCGAHN, SHANNON"
,REPUBLICAN CONFERENCE,2011Q3,PERSONNEL COMPENSATION,,"MCGAHN, SHANNON",2011-09-08,2011-09-30,COMMUNICATIONS DIRECTOR,"8,944.44",FISCAL YEAR 2011,,,,"MCGAHN, SHANNON"
,REPUBLICAN CONFERENCE,2011Q3,PERSONNEL COMPENSATION,,"BROWN, CHELSEA E",2011-07-01,2011-07-17,DEPUTY DIRECTOR OF MEMBER SVCS,"3,305.56",FISCAL YEAR 2011,,,,"BROWN, CHELSEA E"
,REPUBLICAN CONFERENCE,2011Q3,PERSONNEL COMPENSATION,,"BROWN, CHELSEA E",2011-07-18,2011-09-30,DIR OPS/DEP DIR MBR SERV&EVENT,"17,236.10",FISCAL YEAR 2011,,,,"BROWN, CHELSEA E"
,REPUBLICAN CONFERENCE,2011Q3,PERSONNEL COMPENSATION,,"COLLIGAN,DYLAN H",2011-07-01,2011-09-30,STAFF ASSISTANT,"7,500.00",FISCAL YEAR 2011,,,,"COLLIGAN,DYLAN H"
,REPUBLICAN CONFERENCE,2011Q3,PERSONNEL COMPENSATION,,"HILER,JONATHAN D",2011-07-01,2011-09-30,POLICY ADVISOR,"12,833.34",FISCAL YEAR 2011,,,,"HILER,JONATHAN D"
,REPUBLICAN CONFERENCE,2011Q3,PERSONNEL COMPENSATION,,"KLINGLER,HANS J",2011-09-09,2011-09-30,DEPUTY CHIEF OF STAFF,"9,319.44",FISCAL YEAR 2011,,,,"KLINGLER,HANS J"
,REPUBLICAN CONFERENCE,2011Q3,PERSONNEL COMPENSATION,,"KOENIG,ANDREW D",2011-07-01,2011-09-30,DEPUTY POLICY DIRECTOR,"18,750.00",FISCAL YEAR 2011,,,,"KOENIG,ANDREW D"
,REPUBLICAN CONFERENCE,2011Q3,PERSONNEL COMPENSATION,,"MAKIN, SARAH E",2011-07-01,2011-09-30,"SR POL ADV, DIR OF COALITIONS","16,749.99",FISCAL YEAR 2011,,,,"MAKIN, SARAH E"
,REPUBLICAN CONFERENCE,2011Q3,PERSONNEL COMPENSATION,,"MEEKS,DARIS",2011-07-01,2011-09-30,POLICY DIRECTOR,"29,833.33",FISCAL YEAR 2011,,,,"MEEKS,DARIS"
,REPUBLICAN CONFERENCE,2011Q3,PERSONNEL COMPENSATION,,"PATRU, KATHRYN M",2011-07-01,2011-09-30,DIR OF MEMBER SERVICES,"35,000.01",FISCAL YEAR 2011,,,,"PATRU, KATHRYN M"
,REPUBLICAN CONFERENCE,2011Q3,PERSONNEL COMPENSATION,,"PINEGAR,PHILLIP",2011-08-10,2011-09-30,STAFF ASSISTANT,"4,250.00",FISCAL YEAR 2011,,,,"PINEGAR,PHILLIP"
,REPUBLICAN CONFERENCE,2011Q3,PERSONNEL COMPENSATION,,"POPP, DAVID M",2011-07-01,2011-09-30,DEPUTY COMMUNICATIONS DIRECTOR,"16,250.01",FISCAL YEAR 2011,,,,"POPP, DAVID M"
,REPUBLICAN CONFERENCE,2011Q3,PERSONNEL COMPENSATION,,"PROPP,ELIZABETH R",2011-07-01,2011-09-25,DEPUTY PRESS SECRETARY,"9,916.67",FISCAL YEAR 2011,,,,"PROPP,ELIZABETH R"
,REPUBLICAN CONFERENCE,2011Q3,PERSONNEL COMPENSATION,,"PUSKAR,JOHN E",2011-07-01,2011-09-30,STAFF ASSISTANT,"7,500.00",FISCAL YEAR 2011,,,,"PUSKAR,JOHN E"
,REPUBLICAN CONFERENCE,2011Q3,PERSONNEL COMPENSATION,,"QUALTERE,THOMAS A",2011-07-01,2011-09-30,SPEECHWRITER,"10,500.00",FISCAL YEAR 2011,,,,"QUALTERE,THOMAS A"
,REPUBLICAN CONFERENCE,2011Q3,PERSONNEL COMPENSATION,,"ROSENFELD,DAVID M",2011-07-01,2011-09-30,SENIOR HEALTH COUNSEL,"15,000.00",FISCAL YEAR 2011,,,,"ROSENFELD,DAVID M"
,REPUBLICAN CONFERENCE,2011Q3,PERSONNEL COMPENSATION,,"SEIDEL, EMILY R",2011-07-01,2011-07-31,DEPUTY CHIEF OF STAFF,"4,583.33",FISCAL YEAR 2011,,,,"SEIDEL, EMILY R"
,REPUBLICAN CONFERENCE,2011Q3,PERSONNEL COMPENSATION,,"SUTTON,CLAY",2011-07-01,2011-09-30,PRESS ASSISTANT,"7,500.00",FISCAL YEAR 2011,,,,"SUTTON,CLAY"
,REPUBLICAN CONFERENCE,2011Q3,TRAVEL,2019-07-15,"MAKIN, SARAH E",2011-06-29,2011-06-29,TAXI/PARKING/TOLLS,24,FISCAL YEAR 2011,AP,Accounts payable,214856,"MAKIN, SARAH E"
,REPUBLICAN CONFERENCE,2011Q3,TRAVEL,2019-07-15,"SEIDEL, EMILY R",2011-07-07,2011-07-07,PRIVATE AUTO MILEAGE,4.08,FISCAL YEAR 2011,AP,Accounts payable,214860,"SEIDEL, EMILY R"
,REPUBLICAN CONFERENCE,2011Q3,TRAVEL,2019-08-10,"MAKIN, SARAH E",2011-07-13,2011-07-13,TAXI/PARKING/TOLLS,22,FISCAL YEAR 2011,AP,Accounts payable,233872,"MAKIN, SARAH E"
,REPUBLICAN CONFERENCE,2011Q3,TRAVEL,2019-08-10,"MAKIN, SARAH E",2011-07-20,2011-07-20,TAXI/PARKING/TOLLS,18,FISCAL YEAR 2011,AP,Accounts payable,233874,"MAKIN, SARAH E"
,REPUBLICAN CONFERENCE,2011Q3,TRAVEL,2019-09-07,"MAKIN, SARAH E",2011-07-27,2011-07-27,TAXI/PARKING/TOLLS,13.75,FISCAL YEAR 2011,AP,Accounts payable,253748,"MAKIN, SARAH E"
,REPUBLICAN CONFERENCE,2011Q3,SUPPLIES AND MATERIALS,2019-07-15,CAPITOLHOST,2011-06-01,2011-06-01,FOOD & BEVERAGE,740,FISCAL YEAR 2011,AP,Accounts payable,214854,CAPITOLHOST
,REPUBLICAN CONFERENCE,2011Q3,SUPPLIES AND MATERIALS,2019-07-15,"POPP, DAVID M",2011-06-30,2011-06-30,FOOD & BEVERAGE,14.23,FISCAL YEAR 2011,AP,Accounts payable,214858,"POPP, DAVID M"
,REPUBLICAN CONFERENCE,2011Q3,SUPPLIES AND MATERIALS,2019-07-15,"SEIDEL, EMILY R",2011-07-05,2011-07-05,FOOD & BEVERAGE,23.33,FISCAL YEAR 2011,AP,Accounts payable,214859,"SEIDEL, EMILY R"
,REPUBLICAN CONFERENCE,2011Q3,SUPPLIES AND MATERIALS,2019-07-15,"CRAWFORD, CHRISTOPHER K",2011-06-15,2011-06-15,FOOD & BEVERAGE,37.55,FISCAL YEAR 2011,AP,Accounts payable,214861,"CRAWFORD, CHRISTOPHER K"
,REPUBLICAN CONFERENCE,2011Q3,SUPPLIES AND MATERIALS,2019-07-15,"KENDRICK, ALEXANDRA",2011-06-16,2011-06-16,FOOD & BEVERAGE,16.32,FISCAL YEAR 2011,AP,Accounts payable,214862,"KENDRICK, ALEXANDRA"
,REPUBLICAN CONFERENCE,2011Q3,SUPPLIES AND MATERIALS,2019-07-15,"CRAWFORD, CHRISTOPHER K",2011-06-22,2011-06-22,FOOD & BEVERAGE,26.05,FISCAL YEAR 2011,AP,Accounts payable,214865,"CRAWFORD, CHRISTOPHER K"
,REPUBLICAN CONFERENCE,2011Q3,SUPPLIES AND MATERIALS,2019-07-15,"KENDRICK, ALEXANDRA",2011-06-23,2011-06-23,FOOD & BEVERAGE,16.32,FISCAL YEAR 2011,AP,Accounts payable,214867,"KENDRICK, ALEXANDRA"
,REPUBLICAN CONFERENCE,2011Q3,SUPPLIES AND MATERIALS,2019-07-22,CAPITOLHOST,2011-06-14,2011-06-14,FOOD & BEVERAGE,740,FISCAL YEAR 2011,AP,Accounts payable,223072,CAPITOLHOST
,REPUBLICAN CONFERENCE,2011Q3,SUPPLIES AND MATERIALS,2019-07-22,CQ ROLL CALL GROUP,2011-06-27,2011-09-26,PUBLICATIONS/REFERENCE MAT'L,750,FISCAL YEAR 2011,AP,Accounts payable,223078,CQ ROLL CALL GROUP
,REPUBLICAN CONFERENCE,2011Q3,SUPPLIES AND MATERIALS,2019-07-27,DEER PARK,2011-06-30,2011-06-30,WATER,184.8,FISCAL YEAR 2011,AP,Accounts payable,226319,DEER PARK
,REPUBLICAN CONFERENCE,2011Q3,SUPPLIES AND MATERIALS,2019-07-29,CITIBANK GOV CARD SERVICE,2011-05-26,2011-06-23,FOOD & BEVERAGE,"2,685.97",FISCAL YEAR 2011,AP,Accounts payable,226255,CITIBANK GOV CARD SERVICE
,REPUBLICAN CONFERENCE,2011Q3,SUPPLIES AND MATERIALS,2019-07-29,CITIBANK GOV CARD SERVICE,2011-05-31,2011-06-15,PUBLICATIONS/REFERENCE MAT'L,180.95,FISCAL YEAR 2011,AP,Accounts payable,226259,CITIBANK GOV CARD SERVICE
,REPUBLICAN CONFERENCE,2011Q3,SUPPLIES AND MATERIALS,2019-07-29,,2011-06-02,2011-06-02,FRAMING (TRANSFER),10,FISCAL YEAR 2011,GL,General ledger,FRM0010804,
,REPUBLICAN CONFERENCE,2011Q3,SUPPLIES AND MATERIALS,2019-08-10,CAPITOLHOST,2011-07-27,2011-07-27,FOOD & BEVERAGE,740,FISCAL YEAR 2011,AP,Accounts payable,233868,CAPITOLHOST
,REPUBLICAN CONFERENCE,2011Q3,SUPPLIES AND MATERIALS,2019-08-10,"BROWN, CHELSEA E",2011-07-21,2011-07-21,FOOD & BEVERAGE,121.1,FISCAL YEAR 2011,AP,Accounts payable,233879,"BROWN, CHELSEA E"
,REPUBLICAN CONFERENCE,2011Q3,SUPPLIES AND MATERIALS,2019-08-10,"BROWN, CHELSEA E",2011-07-22,2011-07-22,OFFICE SUPPLIES (OUTSIDE),193.6,FISCAL YEAR 2011,AP,Accounts payable,233883,"BROWN, CHELSEA E"
,REPUBLICAN CONFERENCE,2011Q3,SUPPLIES AND MATERIALS,2019-08-10,"BROWN, CHELSEA E",2011-07-24,2011-07-24,FOOD & BEVERAGE,82.73,FISCAL YEAR 2011,AP,Accounts payable,233886,"BROWN, CHELSEA E"
,REPUBLICAN CONFERENCE,2011Q3,SUPPLIES AND MATERIALS,2019-08-10,"COLLIGAN, DYLAN H",2011-07-25,2011-07-25,FOOD & BEVERAGE,63.16,FISCAL YEAR 2011,AP,Accounts payable,233891,"COLLIGAN, DYLAN H"
,REPUBLICAN CONFERENCE,2011Q3,SUPPLIES AND MATERIALS,2019-08-10,"BROWN, CHELSEA E",2011-07-29,2011-07-29,FOOD & BEVERAGE,357.15,FISCAL YEAR 2011,AP,Accounts payable,233895,"BROWN, CHELSEA E"
,REPUBLICAN CONFERENCE,2011Q3,SUPPLIES AND MATERIALS,2019-08-17,CAPITOLHOST,2011-07-12,2011-07-12,FOOD & BEVERAGE,740,FISCAL YEAR 2011,AP,Accounts payable,239677,CAPITOLHOST
,REPUBLICAN CONFERENCE,2011Q3,SUPPLIES AND MATERIALS,2019-08-17,CAPITOLHOST,2011-07-15,2011-07-15,FOOD & BEVERAGE,725.6,FISCAL YEAR 2011,AP,Accounts payable,239679,CAPITOLHOST
,REPUBLICAN CONFERENCE,2011Q3,SUPPLIES AND MATERIALS,2019-08-17,CAPITOLHOST,2011-07-19,2011-07-19,FOOD & BEVERAGE,740,FISCAL YEAR 2011,AP,Accounts payable,239681,CAPITOLHOST
,REPUBLICAN CONFERENCE,2011Q3,SUPPLIES AND MATERIALS,2019-08-17,"BROWN, CHELSEA E",2011-07-26,2011-07-26,FOOD & BEVERAGE,136.29,FISCAL YEAR 2011,AP,Accounts payable,239683,"BROWN, CHELSEA E"
,REPUBLICAN CONFERENCE,2011Q3,SUPPLIES AND MATERIALS,2019-08-18,DEER PARK,2011-07-31,2011-07-31,WATER,297.54,FISCAL YEAR 2011,AP,Accounts payable,244250,DEER PARK
,REPUBLICAN CONFERENCE,2011Q3,SUPPLIES AND MATERIALS,2019-08-22,CAPITOL HOST,2011-07-29,2011-07-29,FOOD & BEVERAGE,419.99,FISCAL YEAR 2011,AP,Accounts payable,245881,CAPITOL HOST
,REPUBLICAN CONFERENCE,2011Q3,SUPPLIES AND MATERIALS,2019-08-22,"BROWN, CHELSEA E",2011-08-06,2011-08-06,OFFICE SUPPLIES (OUTSIDE),31.49,FISCAL YEAR 2011,AP,Accounts payable,245883,"BROWN, CHELSEA E"
,REPUBLICAN CONFERENCE,2011Q3,SUPPLIES AND MATERIALS,2019-08-22,CAPITOLHOST,2011-07-20,2011-07-20,FOOD & BEVERAGE,889.5,FISCAL YEAR 2011,AP,Accounts payable,245885,CAPITOLHOST
,REPUBLICAN CONFERENCE,2011Q3,SUPPLIES AND MATERIALS,2019-08-22,CAPITOLHOST,2011-07-22,2011-07-22,FOOD & BEVERAGE,725.6,FISCAL YEAR 2011,AP,Accounts payable,245888,CAPITOLHOST
,REPUBLICAN CONFERENCE,2011Q3,SUPPLIES AND MATERIALS,2019-08-22,CAPITOLHOST,2011-07-25,2011-07-25,FOOD & BEVERAGE,234,FISCAL YEAR 2011,AP,Accounts payable,245889,CAPITOLHOST
,REPUBLICAN CONFERENCE,2011Q3,SUPPLIES AND MATERIALS,2019-08-22,CAPITOLHOST,2011-07-27,2011-07-27,FOOD & BEVERAGE,729.2,FISCAL YEAR 2011,AP,Accounts payable,245891,CAPITOLHOST
,REPUBLICAN CONFERENCE,2011Q3,SUPPLIES AND MATERIALS,2019-08-22,CAPITOLHOST,2011-07-28,2011-07-28,FOOD & BEVERAGE,315,FISCAL YEAR 2011,AP,Accounts payable,245893,CAPITOLHOST
,REPUBLICAN CONFERENCE,2011Q3,SUPPLIES AND MATERIALS,2019-09-07,"KENDRICK, ALEXANDRA",2011-07-14,2011-07-14,FOOD & BEVERAGE,16.3,FISCAL YEAR 2011,AP,Accounts payable,253750,"KENDRICK, ALEXANDRA"
,REPUBLICAN CONFERENCE,2011Q3,SUPPLIES AND MATERIALS,2019-09-07,"KENDRICK, ALEXANDRA",2011-07-21,2011-07-21,FOOD & BEVERAGE,16.3,FISCAL YEAR 2011,AP,Accounts payable,253753,"KENDRICK, ALEXANDRA"
,REPUBLICAN CONFERENCE,2011Q3,SUPPLIES AND MATERIALS,2019-09-07,"CRAWFORD, CHRISTOPHER K",2011-07-13,2011-07-13,FOOD & BEVERAGE,37.47,FISCAL YEAR 2011,AP,Accounts payable,253756,"CRAWFORD, CHRISTOPHER K"
,REPUBLICAN CONFERENCE,2011Q3,SUPPLIES AND MATERIALS,2019-09-07,"CRAWFORD, CHRISTOPHER K",2011-07-20,2011-07-20,FOOD & BEVERAGE,48.26,FISCAL YEAR 2011,AP,Accounts payable,253759,"CRAWFORD, CHRISTOPHER K"
,REPUBLICAN CONFERENCE,2011Q3,SUPPLIES AND MATERIALS,2019-09-12,"BROWN, CHELSEA E",2011-09-02,2011-09-02,FOOD & BEVERAGE,442.43,FISCAL YEAR 2011,AP,Accounts payable,257347,"BROWN, CHELSEA E"
,REPUBLICAN CONFERENCE,2011Q3,SUPPLIES AND MATERIALS,2019-09-12,"BROWN, CHELSEA E",2011-09-02,2011-09-02,OFFICE SUPPLIES (OUTSIDE),43.04,FISCAL YEAR 2011,AP,Accounts payable,257351,"BROWN, CHELSEA E"
,REPUBLICAN CONFERENCE,2011Q3,SUPPLIES AND MATERIALS,2019-09-22,DEER PARK,2011-08-31,2011-08-31,WATER,207.76,FISCAL YEAR 2011,AP,Accounts payable,268362,DEER PARK
,REPUBLICAN CONFERENCE,2011Q3,SUPPLIES AND MATERIALS,2019-09-29,ACCURATE WORD LLC,2011-09-07,2011-09-07,OFFICE SUPPLIES (OUTSIDE),31.9,FISCAL YEAR 2011,AP,Accounts payable,273397,ACCURATE WORD LLC
,REPUBLICAN CONFERENCE,2011Q3,SUPPLIES AND MATERIALS,2019-09-29,"BROWN, CHELSEA E",2011-09-07,2011-09-07,FOOD & BEVERAGE,19.01,FISCAL YEAR 2011,AP,Accounts payable,273399,"BROWN, CHELSEA E"
,REPUBLICAN POLICY COMMITTEE,2011Q3,PERSONNEL COMPENSATION,,"BELAIR, BRENDAN M",2011-07-01,2011-09-30,SHARED EMPLOYEE,"20,000.01",FISCAL YEAR 2011,,,,"BELAIR, BRENDAN M"
,REPUBLICAN POLICY COMMITTEE,2011Q3,PERSONNEL COMPENSATION,,"DEUTSCH,JEREMY",2011-07-01,2011-09-30,SHARED EMPLOYEE,"20,000.01",FISCAL YEAR 2011,,,,"DEUTSCH,JEREMY"
,REPUBLICAN POLICY COMMITTEE,2011Q3,PERSONNEL COMPENSATION,,"MACDONALD, B",2011-07-01,2011-09-30,SHARED EMPLOYEE,"20,000.01",FISCAL YEAR 2011,,,,"MACDONALD, B"
,REPUBLICAN POLICY COMMITTEE,2011Q3,PERSONNEL COMPENSATION,,"SKRZYCKI, KRISTIN S",2011-07-01,2011-09-30,SHARED EMPLOYEE,"20,000.01",FISCAL YEAR 2011,,,,"SKRZYCKI, KRISTIN S"
,REPUBLICAN STEERING COMMITTEE,2011Q3,PERSONNEL COMPENSATION,2019-09-30,,2011-05-01,2011-05-31,NON-STATUTORY COMPENSATION,"7,000.00",FISCAL YEAR 2011,GL,General ledger,PAD0012831,
,REPUBLICAN STEERING COMMITTEE,2011Q3,PERSONNEL COMPENSATION,,"CATANZARO,MICHAEL J",2011-07-01,2011-09-30,ASST TO THE SPEAKER FOR POLICY,"42,000.00",FISCAL YEAR 2011,,,,"CATANZARO,MICHAEL J"
,REPUBLICAN STEERING COMMITTEE,2011Q3,PERSONNEL COMPENSATION,,"LOPER,BRETT S",2011-07-01,2011-09-30,POLICY DIRECTOR,"42,999.99",FISCAL YEAR 2011,,,,"LOPER,BRETT S"
,REPUBLICAN STEERING COMMITTEE,2011Q3,PERSONNEL COMPENSATION,,"ROGERS, GEORGE R",2011-07-01,2011-09-30,ASST TO THE SPEAKER FOR POLICY,"37,500.00",FISCAL YEAR 2011,,,,"ROGERS, GEORGE R"
,REPUBLICAN STEERING COMMITTEE,2011Q3,PERSONNEL COMPENSATION,,"SMITH, KEVIN",2011-07-01,2011-09-30,DIRECTOR OF COMMUNICATIONS,"38,874.99",FISCAL YEAR 2011,,,,"SMITH, KEVIN"
,REPUBLICAN STEERING COMMITTEE,2011Q3,PERSONNEL COMPENSATION,2019-09-30,,2011-05-01,2011-05-31,NON-STATUTORY COMPENSATION,"-7,000.00",FISCAL YEAR 2011,GL,General ledger,PAD0012831,
,MINORITY EMPLOYEES,2011Q3,PERSONNEL COMPENSATION,,"ELSHAMI,NADEEM",2011-07-01,2011-09-30,COMM DIR/SENIOR ADVISOR (STAT),"43,125.00",FISCAL YEAR 2011,,,,"ELSHAMI,NADEEM"
,MINORITY EMPLOYEES,2011Q3,PERSONNEL COMPENSATION,,"HAMMILL, ANDREW T",2011-07-01,2011-09-30,PRESS SEC & DEPUTY COMM DIR,"40,626.00",FISCAL YEAR 2011,,,,"HAMMILL, ANDREW T"
,MINORITY EMPLOYEES,2011Q3,PERSONNEL COMPENSATION,,"HARTZ, JERRY",2011-07-01,2011-09-30,DIRECTOR OF FLOOR OPERATIONS,"42,585.67",FISCAL YEAR 2011,,,,"HARTZ, JERRY"
,MINORITY EMPLOYEES,2011Q3,PERSONNEL COMPENSATION,,"KUNDANIS, GEORGE",2011-07-01,2011-09-30,DEPUTY CHIEF OF STAFF,"43,125.00",FISCAL YEAR 2011,,,,"KUNDANIS, GEORGE"
,MINORITY EMPLOYEES,2011Q3,PERSONNEL COMPENSATION,,"LAWRENCE, JOHN A",2011-07-01,2011-09-30,CHIEF OF STAFF,"43,125.00",FISCAL YEAR 2011,,,,"LAWRENCE, JOHN A"
,MINORITY EMPLOYEES,2011Q3,PERSONNEL COMPENSATION,,"LIZARRAGA, JAIME E",2011-07-01,2011-09-30,SR ADV & DIR OF MEMBER SVC,"39,905.49",FISCAL YEAR 2011,,,,"LIZARRAGA, JAIME E"
,MINORITY EMPLOYEES,2011Q3,PERSONNEL COMPENSATION,,"MELTZER,RICHARD",2011-07-01,2011-09-30,POLICY ADVISOR,"43,125.00",FISCAL YEAR 2011,,,,"MELTZER,RICHARD"
,MINORITY EMPLOYEES,2011Q3,PERSONNEL COMPENSATION,,"PARKER, WYNDEE R",2011-07-01,2011-09-30,SENIOR POLICY ADVISOR,"43,125.00",FISCAL YEAR 2011,,,,"PARKER, WYNDEE R"
,MINORITY EMPLOYEES,2011Q3,PERSONNEL COMPENSATION,,"PRIMUS, WENDELL E",2011-07-01,2011-09-30,SENIOR POLICY ADVISOR,"43,125.00",FISCAL YEAR 2011,,,,"PRIMUS, WENDELL E"
,LEGISLATIVE FLOOR ACTIVITIES,2011Q3,PERSONNEL COMPENSATION,,"KOLEGO, TREVOR W",2011-07-01,2011-09-30,DEPUTY DIR MEMBERS SERVICES,"32,499.99",FISCAL YEAR 2011,,,,"KOLEGO, TREVOR W"
,RC-TRAINING & PROGRAM DEVEL.,2011Q3,PERSONNEL COMPENSATION,2019-08-22,,2010-10-01,2011-07-31,NON-STATUTORY COMPENSATION,"99,813.33",FISCAL YEAR 2011,GL,General ledger,PAD0011459,
,RC-TRAINING & PROGRAM DEVEL.,2011Q3,PERSONNEL COMPENSATION,2019-08-22,,2010-10-01,2010-12-31,PROGRAM CHANGE (OVERTIME),"1,857.53",FISCAL YEAR 2011,GL,General ledger,PAD0011459,
,RC-TRAINING & PROGRAM DEVEL.,2011Q3,PERSONNEL COMPENSATION,,"BARNETT,MITCHELL H",2011-08-01,2011-09-30,SHARED EMPLOYEE,"8,333.34",FISCAL YEAR 2011,,,,"BARNETT,MITCHELL H"
,RC-TRAINING & PROGRAM DEVEL.,2011Q3,PERSONNEL COMPENSATION,,"FINNEGAN,PATRICK",2011-08-01,2011-09-30,HOUSE OPERATIONS ASSISTANT,"6,666.66",FISCAL YEAR 2011,,,,"FINNEGAN,PATRICK"
,RC-TRAINING & PROGRAM DEVEL.,2011Q3,PERSONNEL COMPENSATION,2019-08-22,,2010-10-01,2011-07-31,NON-STATUTORY COMPENSATION,"-99,813.33",FISCAL YEAR 2011,GL,General ledger,PAD0011459,
,RC-TRAINING & PROGRAM DEVEL.,2011Q3,PERSONNEL COMPENSATION,2019-08-22,,2010-10-01,2010-12-31,PROGRAM CHANGE (OVERTIME),"-1,857.53",FISCAL YEAR 2011,GL,General ledger,PAD0011459,
,RC-TRAINING & PROGRAM DEVEL.,2011Q3,PERSONNEL COMPENSATION,,"BARNETT,MITCHELL H",2011-07-01,2011-07-31,SHARED EMPLOYEE,"4,166.67",FISCAL YEAR 2011,,,,"BARNETT,MITCHELL H"
,RC-TRAINING & PROGRAM DEVEL.,2011Q3,PERSONNEL COMPENSATION,,"FINNEGAN,PATRICK",2011-07-01,2011-07-31,HOUSE OPERATIONS ASSISTANT,"3,333.33",FISCAL YEAR 2011,,,,"FINNEGAN,PATRICK"
,DS-TRAINING & PROGRAM DEVEL.,2011Q3,PERSONNEL COMPENSATION,2019-08-22,,2010-10-01,2011-07-31,NON-STATUTORY COMPENSATION,"212,112.38",FISCAL YEAR 2011,GL,General ledger,PAD0011459,
,DS-TRAINING & PROGRAM DEVEL.,2011Q3,PERSONNEL COMPENSATION,,"MERZ, JULIE E",2011-08-01,2011-09-30,DIR OF MEMBER SERVICES,"16,666.66",FISCAL YEAR 2011,,,,"MERZ, JULIE E"
,DS-TRAINING & PROGRAM DEVEL.,2011Q3,PERSONNEL COMPENSATION,,"PRICE, REVA B",2011-08-01,2011-09-30,ADVISOR TO THE LEADER,"21,282.84",FISCAL YEAR 2011,,,,"PRICE, REVA B"
,DS-TRAINING & PROGRAM DEVEL.,2011Q3,PERSONNEL COMPENSATION,,"SCHMIDT, AARON",2011-08-01,2011-09-30,POLICY ADVISOR,"15,000.00",FISCAL YEAR 2011,,,,"SCHMIDT, AARON"
,DS-TRAINING & PROGRAM DEVEL.,2011Q3,PERSONNEL COMPENSATION,2019-08-22,,2010-10-01,2011-07-31,NON-STATUTORY COMPENSATION,"-212,112.38",FISCAL YEAR 2011,GL,General ledger,PAD0011459,
,DS-TRAINING & PROGRAM DEVEL.,2011Q3,PERSONNEL COMPENSATION,,"MERZ, JULIE E",2011-07-01,2011-07-31,DIR OF MEMBER SERVICES,"8,333.33",FISCAL YEAR 2011,,,,"MERZ, JULIE E"
,DS-TRAINING & PROGRAM DEVEL.,2011Q3,PERSONNEL COMPENSATION,,"PRICE, REVA B",2011-07-01,2011-07-31,ADVISOR TO THE LEADER,"10,641.42",FISCAL YEAR 2011,,,,"PRICE, REVA B"
,DS-TRAINING & PROGRAM DEVEL.,2011Q3,PERSONNEL COMPENSATION,,"SCHMIDT, AARON",2011-07-01,2011-07-31,POLICY ADVISOR,"6,833.33",FISCAL YEAR 2011,,,,"SCHMIDT, AARON"
,CLOAKROOM PERSONNEL - MAJ,2011Q3,PERSONNEL COMPENSATION,,"EICHHORN, JARED D",2011-07-01,2011-09-30,FLOOR ASSISTANT,"12,000.00",FISCAL YEAR 2011,,,,"EICHHORN, JARED D"
,CLOAKROOM PERSONNEL - MAJ,2011Q3,PERSONNEL COMPENSATION,,"HARROUN, TIMOTHY J",2011-07-01,2011-09-30,MANAGER REPUBLICAN CLOAKROOM,"33,287.49",FISCAL YEAR 2011,,,,"HARROUN, TIMOTHY J"
,CLOAKROOM PERSONNEL - MAJ,2011Q3,PERSONNEL COMPENSATION,,"HUTCHESON,NATHANIEL J",2011-07-11,2011-09-30,FLOOR ASSISTANT,"8,888.88",FISCAL YEAR 2011,,,,"HUTCHESON,NATHANIEL J"
,CLOAKROOM PERSONNEL - MAJ,2011Q3,PERSONNEL COMPENSATION,,"STEEL, MICHAEL",2011-07-01,2011-09-30,PRESS SECRETARY,"33,125.01",FISCAL YEAR 2011,,,,"STEEL, MICHAEL"
,CLOAKROOM PERSONNEL - MIN,2011Q3,PERSONNEL COMPENSATION,,"FISCHER JR, ROBERT V",2011-07-01,2011-09-30,ASST FLOOR CHIEF,"33,289.50",FISCAL YEAR 2011,,,,"FISCHER JR, ROBERT V"
,CLOAKROOM PERSONNEL - MIN,2011Q3,PERSONNEL COMPENSATION,,"IVESTER, WREN",2011-07-01,2011-09-30,ASST FLOOR CHIEF,"29,974.50",FISCAL YEAR 2011,,,,"IVESTER, WREN"
,CLOAKROOM PERSONNEL - MIN,2011Q3,PERSONNEL COMPENSATION,,"O'NEILL, CATLIN W",2011-07-01,2011-09-11,DEPUTY DIR LEG OPERATIONS,"11,018.32",FISCAL YEAR 2011,,,,"O'NEILL, CATLIN W"
,CLOAKROOM PERSONNEL - MIN,2011Q3,PERSONNEL COMPENSATION,,"PEPPER, LORI J",2011-09-12,2011-09-30,DEPUTY DIRECTOR OF FLOOR OPERA,"2,948.56",FISCAL YEAR 2011,,,,"PEPPER, LORI J"
,CLOAKROOM PERSONNEL - MIN,2011Q3,PERSONNEL COMPENSATION,,"SULLIVAN, BARRY K",2011-07-01,2011-09-30,CHIEF FLOOR SERVICE (MIN),"43,125.00",FISCAL YEAR 2011,,,,"SULLIVAN, BARRY K"
,CHIEF ADMIN OFCR OF THE HOUSE,2011Q3,OTHER SERVICES,2019-07-18,BOOZE - ALLEN & HAMILTON,2011-05-01,2011-05-31,TECHNOLOGY SERVICE CONTRACTS,"28,972.50",FISCAL YEAR 2011,AP,Accounts payable,217292,BOOZE - ALLEN & HAMILTON
,CHIEF ADMIN OFCR OF THE HOUSE,2011Q3,OTHER SERVICES,2019-08-04,BOOZE - ALLEN & HAMILTON,2011-06-01,2011-06-30,TECHNOLOGY SERVICE CONTRACTS,"28,487.93",FISCAL YEAR 2011,AP,Accounts payable,230143,BOOZE - ALLEN & HAMILTON
,CHIEF ADMIN OFCR OF THE HOUSE,2011Q3,OTHER SERVICES,2019-08-04,MANTECH INT. DATA SYSTEMS CORP,2011-05-28,2011-06-15,TECHNOLOGY SERVICE CONTRACTS,366.57,FISCAL YEAR 2011,AP,Accounts payable,230228,MANTECH INT. DATA SYSTEMS CORP
,CHIEF ADMIN OFCR OF THE HOUSE,2011Q3,OTHER SERVICES,2019-08-04,MANTECH INT. DATA SYSTEMS CORP,2011-05-28,2011-06-24,TECHNOLOGY SERVICE CONTRACTS,"18,246.08",FISCAL YEAR 2011,AP,Accounts payable,230237,MANTECH INT. DATA SYSTEMS CORP
,CHIEF ADMIN OFCR OF THE HOUSE,2011Q3,OTHER SERVICES,2019-09-20,MANTECH INT. DATA SYSTEMS CORP,2011-06-25,2011-07-29,TECHNOLOGY SERVICE CONTRACTS,"18,822.37",FISCAL YEAR 2011,AP,Accounts payable,260243,MANTECH INT. DATA SYSTEMS CORP
,CHIEF ADMIN OFCR OF THE HOUSE,2011Q3,EQUIPMENT,2019-07-25,DLT SOLUTIONS,2011-04-18,2011-04-18,MAINTENANCE / REPAIRS QTY - 3000,"3,990.00",FISCAL YEAR 2011,AP,Accounts payable,224274,DLT SOLUTIONS
,CHIEF ADMIN OFCR OF THE HOUSE,2011Q3,EQUIPMENT,2019-07-25,DLT SOLUTIONS,2011-04-18,2011-04-18,MAINTENANCE / REPAIRS QTY - 18000,"19,260.00",FISCAL YEAR 2011,AP,Accounts payable,224274,DLT SOLUTIONS
,CHIEF ADMIN OFCR OF THE HOUSE,2011Q3,EQUIPMENT,2019-07-27,CDW GOVERNMENT INC. C/O ISM IN,2011-04-27,2011-04-27,"COMPUTER HARDW PURCH LESS THAN $25,000","31,286.80",FISCAL YEAR 2011,AP,Accounts payable,225964,CDW GOVERNMENT INC. C/O ISM IN
,CHIEF ADMIN OFCR OF THE HOUSE,2011Q3,EQUIPMENT,2019-07-27,CDW GOVERNMENT INC. C/O ISM IN,2011-04-27,2011-04-27,WARRANTIES QTY - 2,"1,497.40",FISCAL YEAR 2011,AP,Accounts payable,225964,CDW GOVERNMENT INC. C/O ISM IN
,CHIEF ADMIN OFCR OF THE HOUSE,2011Q3,EQUIPMENT,2019-08-05,TVAR SOLUTIONS,2011-06-21,2011-06-21,MAINTENANCE / REPAIRS,"112,000.00",FISCAL YEAR 2011,AP,Accounts payable,232021,TVAR SOLUTIONS
,CHIEF ADMIN OFCR OF THE HOUSE,2011Q3,OTHER SERVICES,2019-07-01,INTERNATIONAL SYSTEMS MKTG,2011-06-01,2011-06-30,TECHNOLOGY SERVICE CONTRACTS,"26,758.67",FISCAL YEAR 2011,AP,Accounts payable,208748,INTERNATIONAL SYSTEMS MKTG
,CHIEF ADMIN OFCR OF THE HOUSE,2011Q3,OTHER SERVICES,2019-08-10,INTERNATIONAL SYSTEMS MKTG,2011-07-01,2011-07-31,TECHNOLOGY SERVICE CONTRACTS,"26,758.67",FISCAL YEAR 2011,AP,Accounts payable,230410,INTERNATIONAL SYSTEMS MKTG
,CHIEF ADMIN OFCR OF THE HOUSE,2011Q3,OTHER SERVICES,2019-09-08,INTERNATIONAL SYSTEMS MKTG,2011-08-31,2011-08-31,TECHNOLOGY SERVICE CONTRACTS,"26,758.67",FISCAL YEAR 2011,AP,Accounts payable,255426,INTERNATIONAL SYSTEMS MKTG
,CHIEF ADMIN OFCR OF THE HOUSE,2011Q3,SUPPLIES AND MATERIALS,2019-07-05,CDW GOVERNMENT INC. C/O ISM IN,2011-05-16,2011-05-16,OFFICE SUPPLIES (OUTSIDE) QTY - 6,-572.7,FISCAL YEAR 2011,AP,Accounts payable,205777,CDW GOVERNMENT INC. C/O ISM IN
,CHIEF ADMIN OFCR OF THE HOUSE,2011Q3,SUPPLIES AND MATERIALS,2019-07-05,CDW GOVERNMENT INC. C/O ISM IN,2011-05-16,2011-05-16,OFFICE SUPPLIES (OUTSIDE),-13.15,FISCAL YEAR 2011,AP,Accounts payable,205777,CDW GOVERNMENT INC. C/O ISM IN
,CHIEF ADMIN OFCR OF THE HOUSE,2011Q3,SUPPLIES AND MATERIALS,2019-07-13,CDW GOVERNMENT INC. C/O ISM IN,2011-06-22,2011-06-22,OFFICE SUPPLIES (OUTSIDE),9.66,FISCAL YEAR 2011,AP,Accounts payable,213334,CDW GOVERNMENT INC. C/O ISM IN
,CHIEF ADMIN OFCR OF THE HOUSE,2011Q3,SUPPLIES AND MATERIALS,2019-07-13,CDW GOVERNMENT INC. C/O ISM IN,2011-06-22,2011-06-22,OFFICE SUPPLIES (OUTSIDE) QTY - 10,100,FISCAL YEAR 2011,AP,Accounts payable,213334,CDW GOVERNMENT INC. C/O ISM IN
,CHIEF ADMIN OFCR OF THE HOUSE,2011Q3,SUPPLIES AND MATERIALS,2019-07-29,DELL MARKETING LP,2011-06-03,2011-06-03,OFFICE SUPPLIES (OUTSIDE) QTY - 22,"3,908.30",FISCAL YEAR 2011,AP,Accounts payable,226489,DELL MARKETING LP
,CHIEF ADMIN OFCR OF THE HOUSE,2011Q3,SUPPLIES AND MATERIALS,2019-08-03,CDW GOVERNMENT INC. C/O ISM IN,2011-06-23,2011-06-23,OFFICE SUPPLIES (OUTSIDE),40,FISCAL YEAR 2011,AP,Accounts payable,229630,CDW GOVERNMENT INC. C/O ISM IN
,CHIEF ADMIN OFCR OF THE HOUSE,2011Q3,SUPPLIES AND MATERIALS,2019-08-03,CDW GOVERNMENT INC. C/O ISM IN,2011-06-23,2011-06-23,OFFICE SUPPLIES (OUTSIDE) QTY - 25,"1,125.00",FISCAL YEAR 2011,AP,Accounts payable,229630,CDW GOVERNMENT INC. C/O ISM IN
,CHIEF ADMIN OFCR OF THE HOUSE,2011Q3,SUPPLIES AND MATERIALS,2019-09-08,CITIBANK GOV CARD SERVICE,2011-06-29,2011-07-28,OFFICE SUPPLIES (OUTSIDE),"3,489.90",FISCAL YEAR 2011,AP,Accounts payable,254829,CITIBANK GOV CARD SERVICE
,CHIEF ADMIN OFCR OF THE HOUSE,2011Q3,SUPPLIES AND MATERIALS,2019-09-30,CITIBANK GOV CARD SERVICE,2011-07-29,2011-08-28,OFFICE SUPPLIES (OUTSIDE),680,FISCAL YEAR 2011,AP,Accounts payable,274247,CITIBANK GOV CARD SERVICE
,CHIEF ADMIN OFCR OF THE HOUSE,2011Q3,EQUIPMENT,2019-07-01,CDW GOVERNMENT INC. C/O ISM IN,2011-06-17,2011-06-17,"COMPUTER HARDW PURCH LESS THAN $25,000","54,600.00",FISCAL YEAR 2011,AP,Accounts payable,208001,CDW GOVERNMENT INC. C/O ISM IN
,CHIEF ADMIN OFCR OF THE HOUSE,2011Q3,EQUIPMENT,2019-08-26,CDW GOVERNMENT INC. C/O ISM IN,2011-07-08,2011-07-08,"COMPUTER HARDW PURCH LESS THAN $25,000","3,702.46",FISCAL YEAR 2011,AP,Accounts payable,240112,CDW GOVERNMENT INC. C/O ISM IN
,CHIEF ADMIN OFCR OF THE HOUSE,2011Q3,EQUIPMENT,2019-08-30,CDW GOVERNMENT INC. C/O ISM IN,2011-06-17,2011-06-17,"COMPUTER HARDW PURCH LESS THAN $25,000","1,100.00",FISCAL YEAR 2011,AP,Accounts payable,248743,CDW GOVERNMENT INC. C/O ISM IN
,CHIEF ADMIN OFCR OF THE HOUSE,2011Q3,PERSONNEL COMPENSATION,,"ABBOTT, JESSICA A",2011-07-01,2011-09-30,FINANCIAL ANALYST,"30,960.24",FISCAL YEAR 2011,,,,"ABBOTT, JESSICA A"
,CHIEF ADMIN OFCR OF THE HOUSE,2011Q3,PERSONNEL COMPENSATION,,"ABEL, TIMOTHY",2011-07-01,2011-09-30,SR TECHNICAL SUPPORT REP (A),"23,444.76",FISCAL YEAR 2011,,,,"ABEL, TIMOTHY"
,CHIEF ADMIN OFCR OF THE HOUSE,2011Q3,PERSONNEL COMPENSATION,,"ACORNLEY, MARK A",2011-07-01,2011-09-30,SENIOR OFFICE COORDINATOR,"15,789.00",FISCAL YEAR 2011,,,,"ACORNLEY, MARK A"
,CHIEF ADMIN OFCR OF THE HOUSE,2011Q3,PERSONNEL COMPENSATION,,"ACUESTA,JULY J",2011-07-01,2011-09-30,SENIOR SYSTEMS ENGINEER,"25,912.74",FISCAL YEAR 2011,,,,"ACUESTA,JULY J"
,CHIEF ADMIN OFCR OF THE HOUSE,2011Q3,PERSONNEL COMPENSATION,,"ADDISON, TRACY",2011-07-01,2011-09-30,LOGISTICS & DIST SPEC (A),"11,274.00",FISCAL YEAR 2011,,,,"ADDISON, TRACY"
,CHIEF ADMIN OFCR OF THE HOUSE,2011Q3,PERSONNEL COMPENSATION,,"ADDISON, TRACY",2011-06-01,2011-06-30,LOGISTICS & DIST SPEC (A) (OVERTIME),43.36,FISCAL YEAR 2011,,,,"ADDISON, TRACY"
,CHIEF ADMIN OFCR OF THE HOUSE,2011Q3,PERSONNEL COMPENSATION,,"ADELAKUN, DEEN A",2011-07-01,2011-09-30,SR TECH SOLUTIONS ENGINEER,"21,663.00",FISCAL YEAR 2011,,,,"ADELAKUN, DEEN A"
,CHIEF ADMIN OFCR OF THE HOUSE,2011Q3,PERSONNEL COMPENSATION,,"AGEE, MATTHEW P",2011-07-01,2011-09-30,RESOURCE MANAGER,"29,298.99",FISCAL YEAR 2011,,,,"AGEE, MATTHEW P"
,CHIEF ADMIN OFCR OF THE HOUSE,2011Q3,PERSONNEL COMPENSATION,,"AGEE, TINA M",2011-07-01,2011-09-30,DIRECTOR PHOTOGRAPHY,"26,252.74",FISCAL YEAR 2011,,,,"AGEE, TINA M"
,CHIEF ADMIN OFCR OF THE HOUSE,2011Q3,PERSONNEL COMPENSATION,,"AGNEW, ROSE M",2011-07-01,2011-09-30,PAYROLL & BENEFITS GENERALIST,"17,544.51",FISCAL YEAR 2011,,,,"AGNEW, ROSE M"
,CHIEF ADMIN OFCR OF THE HOUSE,2011Q3,PERSONNEL COMPENSATION,,"AKINSEGUN, PATRICIA A",2011-07-01,2011-09-30,TELEPHONE SYSTEMS CONSULTANT,"21,663.00",FISCAL YEAR 2011,,,,"AKINSEGUN, PATRICIA A"
,CHIEF ADMIN OFCR OF THE HOUSE,2011Q3,PERSONNEL COMPENSATION,,"ALEXANDER, GORDON",2011-07-01,2011-09-30,TECH SOLUTIONS ENGINEER,"17,735.76",FISCAL YEAR 2011,,,,"ALEXANDER, GORDON"
,CHIEF ADMIN OFCR OF THE HOUSE,2011Q3,PERSONNEL COMPENSATION,,"ALEXANDER, SHARYN B",2011-07-01,2011-09-30,SPECIAL ASSISTANT,"26,384.49",FISCAL YEAR 2011,,,,"ALEXANDER, SHARYN B"
,CHIEF ADMIN OFCR OF THE HOUSE,2011Q3,PERSONNEL COMPENSATION,,"ALLARD,KENNETH V",2011-07-01,2011-09-30,ADA AIDE,"6,683.88",FISCAL YEAR 2011,,,,"ALLARD,KENNETH V"
,CHIEF ADMIN OFCR OF THE HOUSE,2011Q3,PERSONNEL COMPENSATION,,"ALLARD,KENNETH V",2011-06-01,2011-08-31,ADA AIDE (OVERTIME),"6,927.48",FISCAL YEAR 2011,,,,"ALLARD,KENNETH V"
,CHIEF ADMIN OFCR OF THE HOUSE,2011Q3,PERSONNEL COMPENSATION,,"ALLEN, MICHAEL K",2011-06-01,2011-06-30,RECEIVING/WAREHOUSE SPEC (A) (OTHER COMPENSATION),234.85,FISCAL YEAR 2011,,,,"ALLEN, MICHAEL K"
,CHIEF ADMIN OFCR OF THE HOUSE,2011Q3,PERSONNEL COMPENSATION,,"ALLISON, KEVIN M",2011-07-01,2011-09-30,LOGISTICS & DIST SPEC (A),"12,914.01",FISCAL YEAR 2011,,,,"ALLISON, KEVIN M"
,CHIEF ADMIN OFCR OF THE HOUSE,2011Q3,PERSONNEL COMPENSATION,,"ALLISON, KEVIN M",2011-07-01,2011-07-31,LOGISTICS & DIST SPEC (A) (OVERTIME),242.13,FISCAL YEAR 2011,,,,"ALLISON, KEVIN M"
,CHIEF ADMIN OFCR OF THE HOUSE,2011Q3,PERSONNEL COMPENSATION,,"ALSTON,MARK A",2011-07-01,2011-09-30,TECH SOLUTIONS ENGINEER,"16,957.26",FISCAL YEAR 2011,,,,"ALSTON,MARK A"
,CHIEF ADMIN OFCR OF THE HOUSE,2011Q3,PERSONNEL COMPENSATION,,"ALVEY, LISA M",2011-07-01,2011-09-30,FINANCIAL COUNSELOR,"20,025.24",FISCAL YEAR 2011,,,,"ALVEY, LISA M"
,CHIEF ADMIN OFCR OF THE HOUSE,2011Q3,PERSONNEL COMPENSATION,,"ANDERSEN, FREDERIC E",2011-07-01,2011-09-30,2ND ASST SUPERINTENDENT,"21,811.00",FISCAL YEAR 2011,,,,"ANDERSEN, FREDERIC E"
,CHIEF ADMIN OFCR OF THE HOUSE,2011Q3,PERSONNEL COMPENSATION,,"ANDREWS-MOBLEY, RACHELLE G",2011-07-01,2011-09-30,PRINCIPAL TECHNICAL TRAINER,"24,001.84",FISCAL YEAR 2011,,,,"ANDREWS-MOBLEY, RACHELLE G"
,CHIEF ADMIN OFCR OF THE HOUSE,2011Q3,PERSONNEL COMPENSATION,,"ARMAS, KENTON A",2011-07-01,2011-09-30,JOURNEYMAN TEXTILE SPEC,"18,903.24",FISCAL YEAR 2011,,,,"ARMAS, KENTON A"
,CHIEF ADMIN OFCR OF THE HOUSE,2011Q3,PERSONNEL COMPENSATION,,"ARMSTRONG,JANCIERA C",2011-07-01,2011-09-30,STAFF ACCOUNTANT,"22,107.00",FISCAL YEAR 2011,,,,"ARMSTRONG,JANCIERA C"
,CHIEF ADMIN OFCR OF THE HOUSE,2011Q3,PERSONNEL COMPENSATION,,"ARTHUR, CAMILLA S",2011-07-01,2011-09-30,ASSISTANT CAO,"37,384.26",FISCAL YEAR 2011,,,,"ARTHUR, CAMILLA S"
,CHIEF ADMIN OFCR OF THE HOUSE,2011Q3,PERSONNEL COMPENSATION,,"ATCHISON, DARRYL A",2011-07-01,2011-09-30,DEPUTY CHIEF ENGINEER,"30,037.74",FISCAL YEAR 2011,,,,"ATCHISON, DARRYL A"
,CHIEF ADMIN OFCR OF THE HOUSE,2011Q3,PERSONNEL COMPENSATION,,"AWAN, OMAR",2011-07-01,2011-09-30,SR BUSINESS PROCESS APPL SPEC,"34,547.25",FISCAL YEAR 2011,,,,"AWAN, OMAR"
,CHIEF ADMIN OFCR OF THE HOUSE,2011Q3,PERSONNEL COMPENSATION,,"BABCOCK, TIMOTHY W",2011-07-01,2011-09-30,JOURNEYMAN TEXTILE SPEC,"14,470.50",FISCAL YEAR 2011,,,,"BABCOCK, TIMOTHY W"
,CHIEF ADMIN OFCR OF THE HOUSE,2011Q3,PERSONNEL COMPENSATION,,"BAER, PETER L",2011-07-01,2011-09-30,BUSINESS PROC APPLIC SPEC,"32,010.99",FISCAL YEAR 2011,,,,"BAER, PETER L"
,CHIEF ADMIN OFCR OF THE HOUSE,2011Q3,PERSONNEL COMPENSATION,,"BAHAM,TODD",2011-07-01,2011-09-30,BROADCAST PRODUCTION TECHNICIA,"18,329.01",FISCAL YEAR 2011,,,,"BAHAM,TODD"
,CHIEF ADMIN OFCR OF THE HOUSE,2011Q3,PERSONNEL COMPENSATION,,"BAHAM,TODD",2011-06-01,2011-07-31,BROADCAST PRODUCTION TECHNICIA (OVERTIME),951.69,FISCAL YEAR 2011,,,,"BAHAM,TODD"
,CHIEF ADMIN OFCR OF THE HOUSE,2011Q3,PERSONNEL COMPENSATION,,"BAILEY, DAVID E",2011-07-01,2011-09-30,SR TECHNICAL SUPPORT REP (A),"23,888.25",FISCAL YEAR 2011,,,,"BAILEY, DAVID E"
,CHIEF ADMIN OFCR OF THE HOUSE,2011Q3,PERSONNEL COMPENSATION,,"BAKER, DARRELL F",2011-07-01,2011-09-30,SENIOR NETWORK TECHNICIAN,"24,150.51",FISCAL YEAR 2011,,,,"BAKER, DARRELL F"
,CHIEF ADMIN OFCR OF THE HOUSE,2011Q3,PERSONNEL COMPENSATION,,"BANFIELD,KELLI C",2011-07-01,2011-09-30,BROADCAST ENGINEER/PROD SPEC,"20,323.74",FISCAL YEAR 2011,,,,"BANFIELD,KELLI C"
,CHIEF ADMIN OFCR OF THE HOUSE,2011Q3,PERSONNEL COMPENSATION,,"BANFIELD,KELLI C",2011-06-01,2011-07-31,BROADCAST ENGINEER/PROD SPEC. (OVERTIME),436.47,FISCAL YEAR 2011,,,,"BANFIELD,KELLI C"
,CHIEF ADMIN OFCR OF THE HOUSE,2011Q3,PERSONNEL COMPENSATION,,"BANKS,BIANCA N",2011-07-01,2011-09-30,RETAIL INVENTORY SPECIALIST,"16,179.24",FISCAL YEAR 2011,,,,"BANKS,BIANCA N"
,CHIEF ADMIN OFCR OF THE HOUSE,2011Q3,PERSONNEL COMPENSATION,,"BARBEE, GLENN",2011-07-01,2011-09-30,NETWORK TECHNICIAN,"21,214.74",FISCAL YEAR 2011,,,,"BARBEE, GLENN"
,CHIEF ADMIN OFCR OF THE HOUSE,2011Q3,PERSONNEL COMPENSATION,,"BARBEE,DONELL G",2011-07-01,2011-09-30,RETAIL INVENTORY SPECIALIST,"9,801.00",FISCAL YEAR 2011,,,,"BARBEE,DONELL G"
,CHIEF ADMIN OFCR OF THE HOUSE,2011Q3,PERSONNEL COMPENSATION,,"BARBEE,DONELL G",2011-06-01,2011-08-31,RETAIL INVENTORY SPECIALIST (OVERTIME),55.7,FISCAL YEAR 2011,,,,"BARBEE,DONELL G"
,CHIEF ADMIN OFCR OF THE HOUSE,2011Q3,PERSONNEL COMPENSATION,,"BARBER, CRAIG",2011-07-01,2011-09-11,TECHNICAL SUPPORT REP (A),"13,000.56",FISCAL YEAR 2011,,,,"BARBER, CRAIG"
,CHIEF ADMIN OFCR OF THE HOUSE,2011Q3,PERSONNEL COMPENSATION,,"BARBER, CRAIG",2011-09-01,2011-09-11,TECHNICAL SUPPORT REP (A) (OTHER COMPENSATION),"5,652.42",FISCAL YEAR 2011,,,,"BARBER, CRAIG"
,CHIEF ADMIN OFCR OF THE HOUSE,2011Q3,PERSONNEL COMPENSATION,,"BARBOUR, JUNE M",2011-07-01,2011-09-30,BROADCAST PRODUCTION TECHNICIA,"18,329.01",FISCAL YEAR 2011,,,,"BARBOUR, JUNE M"
,CHIEF ADMIN OFCR OF THE HOUSE,2011Q3,PERSONNEL COMPENSATION,,"BARBOUR, JUNE M",2011-06-01,2011-08-30,BROADCAST PRODUCTION TECHNICIA (OVERTIME),872.38,FISCAL YEAR 2011,,,,"BARBOUR, JUNE M"
,CHIEF ADMIN OFCR OF THE HOUSE,2011Q3,PERSONNEL COMPENSATION,,"BARCINIAK, DANA L",2011-07-01,2011-09-30,SENIOR PHOTOGRAPHER,"21,069.99",FISCAL YEAR 2011,,,,"BARCINIAK, DANA L"
,CHIEF ADMIN OFCR OF THE HOUSE,2011Q3,PERSONNEL COMPENSATION,,"BARCINIAK, DANA L",2011-07-01,2011-07-31,SENIOR PHOTOGRAPHER (OVERTIME),698.95,FISCAL YEAR 2011,,,,"BARCINIAK, DANA L"
,CHIEF ADMIN OFCR OF THE HOUSE,2011Q3,PERSONNEL COMPENSATION,,"BAREFOOT,JEFFREY",2011-07-01,2011-09-30,PRODUCTION/ENGINEER SPEC (TEMP,"10,049.44",FISCAL YEAR 2011,,,,"BAREFOOT,JEFFREY"
,CHIEF ADMIN OFCR OF THE HOUSE,2011Q3,PERSONNEL COMPENSATION,,"BARKELL, WILLIAM M",2011-07-01,2011-09-06,SR SYSTEMS SECURITY ENGINEER,"22,704.18",FISCAL YEAR 2011,,,,"BARKELL, WILLIAM M"
,CHIEF ADMIN OFCR OF THE HOUSE,2011Q3,PERSONNEL COMPENSATION,,"BARKELL, WILLIAM M",2011-09-01,2011-09-06,SR SYSTEMS SECURITY ENGINEER (OTHER COMPENSATION),"7,654.06",FISCAL YEAR 2011,,,,"BARKELL, WILLIAM M"
,CHIEF ADMIN OFCR OF THE HOUSE,2011Q3,PERSONNEL COMPENSATION,,"BARNABAE-SIEGELMAN, MONICA M",2011-07-01,2011-09-30,DIRECTOR-HOUSE CHILD CARE CNTR,"25,743.08",FISCAL YEAR 2011,,,,"BARNABAE-SIEGELMAN, MONICA M"
,CHIEF ADMIN OFCR OF THE HOUSE,2011Q3,PERSONNEL COMPENSATION,,"BARRETT, ROBERT R",2011-07-01,2011-09-30,SR BUSINESS PROCESS APPL SPEC,"33,323.25",FISCAL YEAR 2011,,,,"BARRETT, ROBERT R"
,CHIEF ADMIN OFCR OF THE HOUSE,2011Q3,PERSONNEL COMPENSATION,,"BARTHOLOMEW, DEBORAH",2011-07-01,2011-09-30,SR PAYROLL & BENS GENERALIST,"20,771.49",FISCAL YEAR 2011,,,,"BARTHOLOMEW, DEBORAH"
,CHIEF ADMIN OFCR OF THE HOUSE,2011Q3,PERSONNEL COMPENSATION,,"BASILIO, TYRONE A",2011-07-01,2011-09-30,TECHNICAL SUPPORT REP,"18,980.25",FISCAL YEAR 2011,,,,"BASILIO, TYRONE A"
,CHIEF ADMIN OFCR OF THE HOUSE,2011Q3,PERSONNEL COMPENSATION,,"BATES, DEBORAH A",2011-07-01,2011-09-30,PRODUCTION/ENGINEER SPEC (TEMP,"5,627.68",FISCAL YEAR 2011,,,,"BATES, DEBORAH A"
,CHIEF ADMIN OFCR OF THE HOUSE,2011Q3,PERSONNEL COMPENSATION,,"BATRA, LALIT",2011-07-01,2011-09-30,NETWORK COMM SPECIALIST,"25,491.51",FISCAL YEAR 2011,,,,"BATRA, LALIT"
,CHIEF ADMIN OFCR OF THE HOUSE,2011Q3,PERSONNEL COMPENSATION,,"BAULEY, PATRICK J",2011-07-01,2011-09-30,TECHNICAL DIRECTOR (A),"28,454.01",FISCAL YEAR 2011,,,,"BAULEY, PATRICK J"
,CHIEF ADMIN OFCR OF THE HOUSE,2011Q3,PERSONNEL COMPENSATION,,"BAULEY, PATRICK J",2011-06-01,2011-07-31,TECHNICAL DIRECTOR (A) (OVERTIME),"1,559.48",FISCAL YEAR 2011,,,,"BAULEY, PATRICK J"
,CHIEF ADMIN OFCR OF THE HOUSE,2011Q3,PERSONNEL COMPENSATION,,"BAXTER,KRISTIE N",2011-06-01,2011-08-31,PHOTOGRAPHER/LAB TECH (TEMP),"11,657.35",FISCAL YEAR 2011,,,,"BAXTER,KRISTIE N"
,CHIEF ADMIN OFCR OF THE HOUSE,2011Q3,PERSONNEL COMPENSATION,,"BEAN, SAUNDRA D",2011-07-01,2011-09-30,CUSTOMER SOLUTIONS REP,"16,505.25",FISCAL YEAR 2011,,,,"BEAN, SAUNDRA D"
,CHIEF ADMIN OFCR OF THE HOUSE,2011Q3,PERSONNEL COMPENSATION,,"BEAUBIAN, TRACI R",2011-07-01,2011-09-30,"DEPUTY CAO, FINANCE","42,102.75",FISCAL YEAR 2011,,,,"BEAUBIAN, TRACI R"
,CHIEF ADMIN OFCR OF THE HOUSE,2011Q3,PERSONNEL COMPENSATION,,"BEAUDOIN, GORDON",2011-07-01,2011-09-30,VOICE & VIDEO BRANCH MGR (A),"35,775.51",FISCAL YEAR 2011,,,,"BEAUDOIN, GORDON"
,CHIEF ADMIN OFCR OF THE HOUSE,2011Q3,PERSONNEL COMPENSATION,,"BEIDEL, BERNARD E",2011-07-01,2011-09-30,"DIR, OFFICE OF EMPLOYEE ASSIST","42,102.75",FISCAL YEAR 2011,,,,"BEIDEL, BERNARD E"
,CHIEF ADMIN OFCR OF THE HOUSE,2011Q3,PERSONNEL COMPENSATION,,"BENAVIDEZ, OSCAR",2011-07-01,2011-09-30,LOGISTICS & DIST SPEC (A),"12,029.49",FISCAL YEAR 2011,,,,"BENAVIDEZ, OSCAR"
,CHIEF ADMIN OFCR OF THE HOUSE,2011Q3,PERSONNEL COMPENSATION,,"BENN, PHILLIP F",2011-07-01,2011-09-30,ELECTRONICS TECHNICIAN (A),"22,107.00",FISCAL YEAR 2011,,,,"BENN, PHILLIP F"
,CHIEF ADMIN OFCR OF THE HOUSE,2011Q3,PERSONNEL COMPENSATION,,"BENN, PHILLIP F",2011-06-01,2011-06-30,ELECTRONICS TECHNICIAN (A) (OVERTIME),"1,562.35",FISCAL YEAR 2011,,,,"BENN, PHILLIP F"
,CHIEF ADMIN OFCR OF THE HOUSE,2011Q3,PERSONNEL COMPENSATION,,"BENNETT, GERALD E",2011-07-01,2011-09-30,"DEPUTY CAO, ASSETS, FURN & LOG","42,102.75",FISCAL YEAR 2011,,,,"BENNETT, GERALD E"
,CHIEF ADMIN OFCR OF THE HOUSE,2011Q3,PERSONNEL COMPENSATION,,"BERGER, DONALD W",2011-07-01,2011-09-30,BROADCAST PRODUCTION TECHNICIA,"19,877.25",FISCAL YEAR 2011,,,,"BERGER, DONALD W"
,CHIEF ADMIN OFCR OF THE HOUSE,2011Q3,PERSONNEL COMPENSATION,,"BERGER, DONALD W",2011-07-01,2011-07-31,BROADCAST PRODUCTION TECHNICIA (OVERTIME),401.36,FISCAL YEAR 2011,,,,"BERGER, DONALD W"
,CHIEF ADMIN OFCR OF THE HOUSE,2011Q3,PERSONNEL COMPENSATION,,"BEST, CHARLENE",2011-07-01,2011-09-30,MANAGER,"22,360.50",FISCAL YEAR 2011,,,,"BEST, CHARLENE"
,CHIEF ADMIN OFCR OF THE HOUSE,2011Q3,PERSONNEL COMPENSATION,,"BETHEA,LASHON L",2011-07-01,2011-09-30,TECHNICAL TRAINER,"24,595.50",FISCAL YEAR 2011,,,,"BETHEA,LASHON L"
,CHIEF ADMIN OFCR OF THE HOUSE,2011Q3,PERSONNEL COMPENSATION,,"BILLARD, MICHAEL A",2011-07-01,2011-09-30,COMMUNICATIONS SPEC,"24,150.51",FISCAL YEAR 2011,,,,"BILLARD, MICHAEL A"
,CHIEF ADMIN OFCR OF THE HOUSE,2011Q3,PERSONNEL COMPENSATION,,"BILLUPS, BRIAN E",2011-07-01,2011-09-30,NETWORK TECHNICIAN (A),"18,719.25",FISCAL YEAR 2011,,,,"BILLUPS, BRIAN E"
,CHIEF ADMIN OFCR OF THE HOUSE,2011Q3,PERSONNEL COMPENSATION,,"BLACK,CAROL",2011-07-01,2011-09-30,ADMINISTRATIVE COUNSEL,"39,794.25",FISCAL YEAR 2011,,,,"BLACK,CAROL"
,CHIEF ADMIN OFCR OF THE HOUSE,2011Q3,PERSONNEL COMPENSATION,,"BLAKNEY, HAROLD",2011-07-01,2011-09-30,SENIOR SYSTEMS ENGINEER,"36,389.01",FISCAL YEAR 2011,,,,"BLAKNEY, HAROLD"
,CHIEF ADMIN OFCR OF THE HOUSE,2011Q3,PERSONNEL COMPENSATION,,"BOGAN, DAVID S",2011-07-01,2011-09-30,"SUPERVISOR, RETAIL INVENTORY","18,719.25",FISCAL YEAR 2011,,,,"BOGAN, DAVID S"
,CHIEF ADMIN OFCR OF THE HOUSE,2011Q3,PERSONNEL COMPENSATION,,"BOGER, KELLY M",2011-07-01,2011-09-30,ACCOUNT MANAGEMENT COUNSELOR,"19,110.75",FISCAL YEAR 2011,,,,"BOGER, KELLY M"
,CHIEF ADMIN OFCR OF THE HOUSE,2011Q3,PERSONNEL COMPENSATION,,"BOOKER, CARLOS",2011-07-01,2011-09-30,SALES SPECIALIST,"9,801.00",FISCAL YEAR 2011,,,,"BOOKER, CARLOS"
,CHIEF ADMIN OFCR OF THE HOUSE,2011Q3,PERSONNEL COMPENSATION,,"BOOKER, CARLOS",2011-06-01,2011-08-31,SALES SPECIALIST (OVERTIME),47.12,FISCAL YEAR 2011,,,,"BOOKER, CARLOS"
,CHIEF ADMIN OFCR OF THE HOUSE,2011Q3,PERSONNEL COMPENSATION,,"BOONE, RUSSELL",2011-07-01,2011-09-30,TECHNICAL SUPPORT REP,"21,069.99",FISCAL YEAR 2011,,,,"BOONE, RUSSELL"
,CHIEF ADMIN OFCR OF THE HOUSE,2011Q3,PERSONNEL COMPENSATION,,"BOWERS,KAREN L",2011-07-01,2011-09-30,FINANCIAL COUNSELOR,"18,329.01",FISCAL YEAR 2011,,,,"BOWERS,KAREN L"
,CHIEF ADMIN OFCR OF THE HOUSE,2011Q3,PERSONNEL COMPENSATION,,"BOWERS,KAREN L",2011-06-01,2011-06-30,FINANCIAL COUNSELOR (OVERTIME),528.72,FISCAL YEAR 2011,,,,"BOWERS,KAREN L"
,CHIEF ADMIN OFCR OF THE HOUSE,2011Q3,PERSONNEL COMPENSATION,,"BOWLDING, SONIA R",2011-07-01,2011-09-30,REC/WAREHOUSE SPEC (A),"10,980.00",FISCAL YEAR 2011,,,,"BOWLDING, SONIA R"
,CHIEF ADMIN OFCR OF THE HOUSE,2011Q3,PERSONNEL COMPENSATION,,"BOWLES JR, FREDERICK H",2011-07-01,2011-09-30,"SUPERVISOR-LOGISTICS, SUPP EQU","23,444.76",FISCAL YEAR 2011,,,,"BOWLES JR, FREDERICK H"
,CHIEF ADMIN OFCR OF THE HOUSE,2011Q3,PERSONNEL COMPENSATION,,"BOWLES, JAMES A",2011-07-01,2011-09-30,JOURNEYMAN FURNITURE SPEC,"18,903.24",FISCAL YEAR 2011,,,,"BOWLES, JAMES A"
,CHIEF ADMIN OFCR OF THE HOUSE,2011Q3,PERSONNEL COMPENSATION,,"BOWLING-STOKES,CHAUNETTE L",2011-07-01,2011-07-31,FINANCIAL COUNSELOR (A),"5,523.08",FISCAL YEAR 2011,,,,"BOWLING-STOKES,CHAUNETTE L"
,CHIEF ADMIN OFCR OF THE HOUSE,2011Q3,PERSONNEL COMPENSATION,,"BOWLING-STOKES,CHAUNETTE L",2011-07-01,2011-09-30,SUPERVISOR,"15,743.51",FISCAL YEAR 2011,,,,"BOWLING-STOKES,CHAUNETTE L"
,CHIEF ADMIN OFCR OF THE HOUSE,2011Q3,PERSONNEL COMPENSATION,,"BOWLING-STOKES,CHAUNETTE L",2011-06-01,2011-06-30,FINANCIAL COUNSELOR (A) (OVERTIME),"1,481.66",FISCAL YEAR 2011,,,,"BOWLING-STOKES,CHAUNETTE L"
,CHIEF ADMIN OFCR OF THE HOUSE,2011Q3,PERSONNEL COMPENSATION,,"BOWMAN,SHELIA",2011-07-01,2011-09-30,FINANCIAL COUNSELOR,"15,401.76",FISCAL YEAR 2011,,,,"BOWMAN,SHELIA"
,CHIEF ADMIN OFCR OF THE HOUSE,2011Q3,PERSONNEL COMPENSATION,,"BOYD, PETRINA",2011-07-01,2011-09-30,SALES SPECIALIST,"11,146.50",FISCAL YEAR 2011,,,,"BOYD, PETRINA"
,CHIEF ADMIN OFCR OF THE HOUSE,2011Q3,PERSONNEL COMPENSATION,,"BOYD, PETRINA",2011-06-01,2011-08-31,SALES SPECIALIST (OVERTIME),26.51,FISCAL YEAR 2011,,,,"BOYD, PETRINA"
,CHIEF ADMIN OFCR OF THE HOUSE,2011Q3,PERSONNEL COMPENSATION,,"BOYLE, KEVIN J",2011-07-01,2011-09-30,SR BUSINESS PROCESS APPL SPEC,"37,613.25",FISCAL YEAR 2011,,,,"BOYLE, KEVIN J"
,CHIEF ADMIN OFCR OF THE HOUSE,2011Q3,PERSONNEL COMPENSATION,,"BRACKENS, ROBERT",2011-07-01,2011-09-30,BROADCAST PRODUCTION TECHNICIA,"20,323.74",FISCAL YEAR 2011,,,,"BRACKENS, ROBERT"
,CHIEF ADMIN OFCR OF THE HOUSE,2011Q3,PERSONNEL COMPENSATION,,"BRACKENS, ROBERT",2011-06-01,2011-06-30,BROADCAST PRODUCTION TECHNICIA (OVERTIME),87.94,FISCAL YEAR 2011,,,,"BRACKENS, ROBERT"
,CHIEF ADMIN OFCR OF THE HOUSE,2011Q3,PERSONNEL COMPENSATION,,"BRADDY,JIMMY R",2011-07-01,2011-09-30,TECH SOLUTIONS ENGINEER,"16,957.26",FISCAL YEAR 2011,,,,"BRADDY,JIMMY R"
,CHIEF ADMIN OFCR OF THE HOUSE,2011Q3,PERSONNEL COMPENSATION,,"BRANCH,PAMELA J",2011-07-01,2011-09-30,SENIOR BENEFITS SPECIALIST,"25,939.74",FISCAL YEAR 2011,,,,"BRANCH,PAMELA J"
,CHIEF ADMIN OFCR OF THE HOUSE,2011Q3,PERSONNEL COMPENSATION,,"BRAXTON, BRANDON A",2011-07-01,2011-09-30,LOGISTICS & DIST SPEC (A),"10,684.50",FISCAL YEAR 2011,,,,"BRAXTON, BRANDON A"
,CHIEF ADMIN OFCR OF THE HOUSE,2011Q3,PERSONNEL COMPENSATION,,"BRAYE, LORENZO",2011-07-01,2011-09-30,SR BROADCAST ENG/PROD SPECLST,"23,555.00",FISCAL YEAR 2011,,,,"BRAYE, LORENZO"
,CHIEF ADMIN OFCR OF THE HOUSE,2011Q3,PERSONNEL COMPENSATION,,"BREWSTER III,JAMES E",2011-07-01,2011-09-30,LOGISTICS & DIST SPEC (A),"8,834.99",FISCAL YEAR 2011,,,,"BREWSTER III,JAMES E"
,CHIEF ADMIN OFCR OF THE HOUSE,2011Q3,PERSONNEL COMPENSATION,,"BRIDGEFORTH, TOINETTA A",2011-07-01,2011-09-30,PROCUREMENT SPECIALIST,"21,663.00",FISCAL YEAR 2011,,,,"BRIDGEFORTH, TOINETTA A"
,CHIEF ADMIN OFCR OF THE HOUSE,2011Q3,PERSONNEL COMPENSATION,,"BRISCOE, KEVIN",2011-07-01,2011-09-30,LOGISTICS & DIST SPEC (A),"10,684.50",FISCAL YEAR 2011,,,,"BRISCOE, KEVIN"
,CHIEF ADMIN OFCR OF THE HOUSE,2011Q3,PERSONNEL COMPENSATION,,"BRITT,SHANNON W",2011-07-01,2011-09-30,HUMAN RESOURCES SPECIALIST,"13,584.42",FISCAL YEAR 2011,,,,"BRITT,SHANNON W"
,CHIEF ADMIN OFCR OF THE HOUSE,2011Q3,PERSONNEL COMPENSATION,,"BROBBEY-MENSAH, KWAME",2011-07-01,2011-09-30,SR INFO SYST. SECURITY ANALYST,"27,946.26",FISCAL YEAR 2011,,,,"BROBBEY-MENSAH, KWAME"
,CHIEF ADMIN OFCR OF THE HOUSE,2011Q3,PERSONNEL COMPENSATION,,"BROWN SR, DEMETRICE T",2011-07-01,2011-09-30,SUPERVISOR,"23,704.50",FISCAL YEAR 2011,,,,"BROWN SR, DEMETRICE T"
,CHIEF ADMIN OFCR OF THE HOUSE,2011Q3,PERSONNEL COMPENSATION,,"BROWN, ANNETTE G",2011-07-01,2011-09-30,SR SOFTWARE ENGINEER,"26,384.49",FISCAL YEAR 2011,,,,"BROWN, ANNETTE G"
,CHIEF ADMIN OFCR OF THE HOUSE,2011Q3,PERSONNEL COMPENSATION,,"BROWN, KEITH S",2011-07-01,2011-09-30,REC/WAREHOUSE SPEC (A),"13,460.01",FISCAL YEAR 2011,,,,"BROWN, KEITH S"
,CHIEF ADMIN OFCR OF THE HOUSE,2011Q3,PERSONNEL COMPENSATION,,"BROWN, PAMELA L",2011-07-01,2011-09-30,OFFICE COORDINATOR,"17,735.76",FISCAL YEAR 2011,,,,"BROWN, PAMELA L"
,CHIEF ADMIN OFCR OF THE HOUSE,2011Q3,PERSONNEL COMPENSATION,,"BROWN,JASON",2011-07-01,2011-09-30,BROADCAST PRODUCTION TECHNICIA,"17,937.75",FISCAL YEAR 2011,,,,"BROWN,JASON"
,CHIEF ADMIN OFCR OF THE HOUSE,2011Q3,PERSONNEL COMPENSATION,,"BROWN,KIMBERLY K",2011-07-01,2011-09-30,RESOURCE ANALYST,"16,179.24",FISCAL YEAR 2011,,,,"BROWN,KIMBERLY K"
,CHIEF ADMIN OFCR OF THE HOUSE,2011Q3,PERSONNEL COMPENSATION,,"BROWN,LAWRENCE",2011-07-01,2011-09-30,BROADCAST ENGINEER/PROD SPEC,"21,214.74",FISCAL YEAR 2011,,,,"BROWN,LAWRENCE"
,CHIEF ADMIN OFCR OF THE HOUSE,2011Q3,PERSONNEL COMPENSATION,,"BROWN,LAWRENCE",2011-06-01,2011-07-31,BROADCAST ENGINEER/PROD SPEC. (OVERTIME),458.97,FISCAL YEAR 2011,,,,"BROWN,LAWRENCE"
,CHIEF ADMIN OFCR OF THE HOUSE,2011Q3,PERSONNEL COMPENSATION,,"BRUMMELL,JENELLE L",2011-07-01,2011-09-30,PARALEGAL,"16,309.24",FISCAL YEAR 2011,,,,"BRUMMELL,JENELLE L"
,CHIEF ADMIN OFCR OF THE HOUSE,2011Q3,PERSONNEL COMPENSATION,,"BUCKLER, RICKY L",2011-07-01,2011-09-30,ACQUISITION COUNSELOR,"17,937.75",FISCAL YEAR 2011,,,,"BUCKLER, RICKY L"
,CHIEF ADMIN OFCR OF THE HOUSE,2011Q3,PERSONNEL COMPENSATION,,"BUCKLER, RICKY L",2011-06-01,2011-08-30,ACQUISITION COUNSELOR (OVERTIME),896.87,FISCAL YEAR 2011,,,,"BUCKLER, RICKY L"
,CHIEF ADMIN OFCR OF THE HOUSE,2011Q3,PERSONNEL COMPENSATION,,"BUCKLER, TROY D",2011-07-01,2011-09-30,ACQUISITION COUNSELOR,"15,830.01",FISCAL YEAR 2011,,,,"BUCKLER, TROY D"
,CHIEF ADMIN OFCR OF THE HOUSE,2011Q3,PERSONNEL COMPENSATION,,"BUCKLER, TROY D",2011-06-01,2011-08-30,ACQUISITION COUNSELOR (OVERTIME),913.26,FISCAL YEAR 2011,,,,"BUCKLER, TROY D"
,CHIEF ADMIN OFCR OF THE HOUSE,2011Q3,PERSONNEL COMPENSATION,,"BUFORD, MARCIA L",2011-07-01,2011-09-30,COMPUTER FAC OP SUPERVISOR,"25,939.74",FISCAL YEAR 2011,,,,"BUFORD, MARCIA L"
,CHIEF ADMIN OFCR OF THE HOUSE,2011Q3,PERSONNEL COMPENSATION,,"BURCH, KENNETH J",2011-07-01,2011-09-30,BUSINESS PROC APPLIC SPEC,"28,962.75",FISCAL YEAR 2011,,,,"BURCH, KENNETH J"
,CHIEF ADMIN OFCR OF THE HOUSE,2011Q3,PERSONNEL COMPENSATION,,"BURNHAM, ELIZABETH",2011-07-01,2011-09-30,PAYROLL & BENEFITS MANAGER,"26,422.74",FISCAL YEAR 2011,,,,"BURNHAM, ELIZABETH"
,CHIEF ADMIN OFCR OF THE HOUSE,2011Q3,PERSONNEL COMPENSATION,,"BUTLER, CLARENCE G",2011-07-01,2011-09-30,JOURNEYMAN FURNITURE SPEC,"14,819.25",FISCAL YEAR 2011,,,,"BUTLER, CLARENCE G"
,CHIEF ADMIN OFCR OF THE HOUSE,2011Q3,PERSONNEL COMPENSATION,,"BUTLER, JAMES F",2011-07-01,2011-09-30,PAYROLL & BENEFITS MANAGER,"25,044.51",FISCAL YEAR 2011,,,,"BUTLER, JAMES F"
